Directorate,Department,Expenditure Type,Ref.Doc.1,Vendor Name,Expenditure Amount (exc VAT),Payment Date
Assurance,Assurance,Equipment and Materials Purcha,80008147,ST JOHN AMBULANCE,46.00,01/02/2017
Assurance,Assurance,Other Indirect Employee Expens,80008475,ENFIELD CYPRIOTS ASSOCIATION,20.00,17/02/2017
Assurance,Assurance,Other Indirect Employee Expens,80008295,LB HOUNSLOW MAYORS CHARITIES A,80.00,07/02/2017
Assurance,Assurance,Other Indirect Employee Expens,80008538,LBH MAYOR CHARITY APPEAL C,80.00,24/02/2017
Assurance,Assurance,Other Indirect Employee Expens,80008670,LONDON BOROUGH OF HILLINGDON,80.00,28/02/2017
Assurance,Assurance,Other Indirect Employee Expens,80008433,MAYOR OF BRENT'S CHARITY APPE,50.00,14/02/2017
Assurance,Assurance,Other Indirect Employee Expens,80008245,MAYOR OF ENFIELD APPEAL FUND,20.00,07/02/2017
Assurance,Assurance,Other Indirect Employee Expens,80008507,MAYOR OF WANDSWORTH'S CHARITY,60.00,21/02/2017
Assurance,Assurance,Other Indirect Employee Expens,80008478,REDACTED - PERSONAL DATA,84.00,21/02/2017
Assurance,Assurance,Other Indirect Employee Expens,80008382,THE MAYOR'S CHARITY APPEAL,120.00,10/02/2017
Assurance,Assurance,Postage,60071445,ROYAL MAIL GROUP LIMITED,255.34,10/02/2017
Assurance,Assurance,Printing-Contract,60071443,ELECTORAL REFORM SERVICES,"1,755.68",06/02/2017
Assurance,Assurance,Professional Services,60070618,PRICEWATERHOUSE COOPERS,"37,849.43",16/02/2017
Assurance,Assurance,Professional Services,60070816,PRICEWATERHOUSE COOPERS,"3,064.29",21/02/2017
Assurance,Assurance,Professional Services,60071511,REDACTED - PERSONAL DATA,275.00,15/02/2017
Assurance,Assurance,Professional Services,80008411,THE BARNET BAND,200.00,14/02/2017
Assurance,Assurance,Rents,60072182,NEW BARNET COMMUNITY ASSOCIATION,855.00,14/02/2017
Assurance,Assurance,Subscriptions,60070289,ASSOCIATION OF ELECTORAL ADMINISTRA,715.00,14/02/2017
Assurance,Assurance,Subscriptions,60071410,SKILLS TRAINING CENTRE LTD,250.00,03/02/2017
Assurance,Assurance,Training,60072223,GOVNET COMMUNICATIONS,298.00,14/02/2017
Assurance,Assurance,Training,60072247,ITS TRAINING (UK) LTD,"5,830.00",28/02/2017
Assurance,Assurance,Translation Exp / Interpret,60071113,PRIME PRODUCTION LTD,39.50,01/02/2017
Assurance,Assurance,Translation Exp / Interpret,60071210,PRIME PRODUCTION LTD,39.50,02/02/2017
Assurance,Assurance,Translation Exp / Interpret,60070388,REDACTED - PERSONAL DATA,282.50,14/02/2017
Assurance,Assurance,Ttl IT & Comms,10013613,BRITISH TELECOM PLC,"8,040.57",01/02/2017
Assurance,Assurance,Venue Hire,80008311,FRIENDSOF RELIGIOUS SETTLEMENT,50.00,07/02/2017
Central Expenses,Central Expenses,Grant Payments,60069701,TRANSPORT FOR LONDON,"107,434.59",01/02/2017
Central Expenses,Central Expenses,Insurance Claims,80008235,ALPHA INSURANCE,"2,308.26",07/02/2017
Central Expenses,Central Expenses,Insurance Claims,80008175,ANGLIAN ASSESSORS LIMITED,60.00,03/02/2017
Central Expenses,Central Expenses,Insurance Claims,80008151,BAKERS SOLICITORS,"14,230.00",02/02/2017
Central Expenses,Central Expenses,Insurance Claims,80007941,BERRYMANS LACE MAWER,"4,132.50",15/02/2017
Central Expenses,Central Expenses,Insurance Claims,80008633,BROWNE JACOBSON SOLS.,"1,395.00",27/02/2017
Central Expenses,Central Expenses,Insurance Claims,80008105,CAMP LAW,"3,000.00",02/02/2017
Central Expenses,Central Expenses,Insurance Claims,60069553,CHARLES DUKES ASSESSORS,150.00,10/02/2017
Central Expenses,Central Expenses,Insurance Claims,60069562,CHARLES DUKES ASSESSORS,60.00,10/02/2017
Central Expenses,Central Expenses,Insurance Claims,80008440,CLEAR LAW LLP,"7,160.00",16/02/2017
Central Expenses,Central Expenses,Insurance Claims,60066187,CLYDE & CO LLP,465.00,07/02/2017
Central Expenses,Central Expenses,Insurance Claims,80008248,DAC BEACHCROFT CLAIMS LIMITED,"11,000.00",06/02/2017
Central Expenses,Central Expenses,Insurance Claims,80008106,DWP COMPENSATION RECOVERY UNIT,627.00,02/02/2017
Central Expenses,Central Expenses,Insurance Claims,80008152,DWP COMPENSATION RECOVERY UNIT,829.00,02/02/2017
Central Expenses,Central Expenses,Insurance Claims,80008441,DWP COMPENSATION RECOVERY UNIT,647.00,16/02/2017
Central Expenses,Central Expenses,Insurance Claims,80008484,DWP COMPENSATION RECOVERY UNIT,585.00,23/02/2017
Central Expenses,Central Expenses,Insurance Claims,80008559,DWP COMPENSATION RECOVERY UNIT,647.00,23/02/2017
Central Expenses,Central Expenses,Insurance Claims,80008560,DWP COMPENSATION RECOVERY UNIT,991.00,23/02/2017
Central Expenses,Central Expenses,Insurance Claims,80008103,HOLMES & HILLS LLP,"2,500.00",02/02/2017
Central Expenses,Central Expenses,Insurance Claims,80008422,IRWIN MITCHELL,"1,764.00",15/02/2017
Central Expenses,Central Expenses,Insurance Claims,80008627,IRWIN MITCHELL SOLICITORS,"1,257.08",27/02/2017
Central Expenses,Central Expenses,Insurance Claims,60067282,JOHNSON AUSTIN PARTNERSHIP LLP,375.00,10/02/2017
Central Expenses,Central Expenses,Insurance Claims,60070750,JOHNSON AUSTIN PARTNERSHIP LLP,375.00,10/02/2017
Central Expenses,Central Expenses,Insurance Claims,80008526,M & K SOLICITORS LTD,240.00,23/02/2017
Central Expenses,Central Expenses,Insurance Claims,80008170,MCKEAG & CO SOLICITORS,"6,720.00",02/02/2017
Central Expenses,Central Expenses,Insurance Claims,80008171,MCKEAG & CO SOLICITORS,"1,020.00",02/02/2017
Central Expenses,Central Expenses,Insurance Claims,80008348,MULBERRY MEDICAL PRACTICE,50.00,10/02/2017
Central Expenses,Central Expenses,Insurance Claims,80008420,PD LAW SOLICITORS,240.00,15/02/2017
Central Expenses,Central Expenses,Insurance Claims,80008066,PLEXUS LAW,"11,185.00",02/02/2017
Central Expenses,Central Expenses,Insurance Claims,80008345,PRIVILEGE MOTOR CLAIMS,721.20,10/02/2017
Central Expenses,Central Expenses,Insurance Claims,80008344,QUOTEMEHAPPY,"1,021.98",10/02/2017
Central Expenses,Central Expenses,Insurance Claims,80008182,RSA MOTABILITY,386.11,03/02/2017
Central Expenses,Central Expenses,Insurance Claims,80008185,TESCO UNDERWRITING LIMITED,"1,348.00",03/02/2017
Central Expenses,Central Expenses,Insurance Claims,80008385,TRADE UNION LEGAL LLP,"1,122.50",14/02/2017
Central Expenses,Central Expenses,Insurance Claims,80008493,TUDOR CLOSE RESIDENCE ASSOC.,"3,000.00",23/02/2017
Central Expenses,Central Expenses,Insurance Claims,60070862,WEIGHTMANS LLP,187.50,17/02/2017
Central Expenses,Central Expenses,Other Establishments - Third P,60071357,CITY OF LONDON,"93,788.00",03/02/2017
Central Expenses,Central Expenses,Other Establishments - Third P,60072860,CITY OF LONDON,"89,454.67",20/02/2017
Central Expenses,Central Expenses,Other Establishments - Third P,EBX0157425,LEE VALLEY REGIONAL PARK AUTH.,"32,219.58",16/02/2017
Central Expenses,Central Expenses,Other Establishments - Third P,EBX0159066,TRANSPORT TRADING LIMITED,"3,952,090.00",24/02/2017
Central Expenses,Central Expenses,Other Local Authorities - Thir,60071346,CITY OF LONDON,"98,793.00",17/02/2017
Commercial,Births Deaths & Marriages,Cleaning and domestic material,60069723,CHURCHILL CONTRACT SERVICES,664.48,15/02/2017
Commercial,Births Deaths & Marriages,Other Services,80008450,LEE SECURITY,45.42,16/02/2017
Commercial,Customer Support Group,Books-CDs-Audio-Video,60070952,SM ELECTRICAL SERVICES,170.00,02/02/2017
Commercial,Customer Support Group,Books-CDs-Audio-Video,60071130,SM ELECTRICAL SERVICES,70.00,24/02/2017
Commercial,Customer Support Group,Books-CDs-Audio-Video,60071143,SM ELECTRICAL SERVICES,400.00,24/02/2017
Commercial,Customer Support Group,Books-CDs-Audio-Video,60071150,SM ELECTRICAL SERVICES,100.00,24/02/2017
Commercial,Customer Support Group,Building Repairs & Maintenance,60070218,ADAMS ENVIRONMENTAL LTD,375.00,08/02/2017
Commercial,Customer Support Group,Building Repairs & Maintenance,60071189,ADAMS ENVIRONMENTAL LTD,300.00,21/02/2017
Commercial,Customer Support Group,Building Repairs & Maintenance,60071184,AFFINITY WATER LIMITED,35.52,20/02/2017
Commercial,Customer Support Group,Building Repairs & Maintenance,60071193,AFFINITY WATER LIMITED,15.24,20/02/2017
Commercial,Customer Support Group,Building Repairs & Maintenance,60016629,AJS LTD,33.00,27/02/2017
Commercial,Customer Support Group,Building Repairs & Maintenance,60071154,AJS LTD,305.76,01/02/2017
Commercial,Customer Support Group,Building Repairs & Maintenance,60071188,AJS LTD,86.24,01/02/2017
Commercial,Customer Support Group,Building Repairs & Maintenance,60071192,AJS LTD,109.76,01/02/2017
Commercial,Customer Support Group,Building Repairs & Maintenance,60071195,AJS LTD,329.28,17/02/2017
Commercial,Customer Support Group,Building Repairs & Maintenance,60071203,AJS LTD,172.48,01/02/2017
Commercial,Customer Support Group,Building Repairs & Maintenance,60071208,AJS LTD,313.60,01/02/2017
Commercial,Customer Support Group,Building Repairs & Maintenance,60071235,AJS LTD,125.44,02/02/2017
Commercial,Customer Support Group,Building Repairs & Maintenance,60071251,AJS LTD,180.32,02/02/2017
Commercial,Customer Support Group,Building Repairs & Maintenance,60071254,AJS LTD,211.68,02/02/2017
Commercial,Customer Support Group,Building Repairs & Maintenance,60071279,AJS LTD,423.36,02/02/2017
Commercial,Customer Support Group,Building Repairs & Maintenance,60071290,AJS LTD,101.92,02/02/2017
Commercial,Customer Support Group,Building Repairs & Maintenance,60071295,AJS LTD,313.60,02/02/2017
Commercial,Customer Support Group,Building Repairs & Maintenance,60072496,AJS LTD,258.72,16/02/2017
Commercial,Customer Support Group,Building Repairs & Maintenance,60072507,AJS LTD,125.44,16/02/2017
Commercial,Customer Support Group,Building Repairs & Maintenance,60072533,AJS LTD,296.87,17/02/2017
Commercial,Customer Support Group,Building Repairs & Maintenance,60072541,AJS LTD,296.87,17/02/2017
Commercial,Customer Support Group,Building Repairs & Maintenance,60072568,AJS LTD,296.87,17/02/2017
Commercial,Customer Support Group,Building Repairs & Maintenance,60072574,AJS LTD,133.28,16/02/2017
Commercial,Customer Support Group,Building Repairs & Maintenance,60072586,AJS LTD,296.87,17/02/2017
Commercial,Customer Support Group,Building Repairs & Maintenance,60072592,AJS LTD,156.80,16/02/2017
Commercial,Customer Support Group,Building Repairs & Maintenance,60072601,AJS LTD,156.80,16/02/2017
Commercial,Customer Support Group,Building Repairs & Maintenance,60072664,AJS LTD,400.00,17/02/2017
Commercial,Customer Support Group,Building Repairs & Maintenance,60072929,AJS LTD,211.68,21/02/2017
Commercial,Customer Support Group,Building Repairs & Maintenance,60072968,AJS LTD,62.72,21/02/2017
Commercial,Customer Support Group,Building Repairs & Maintenance,60073458,AJS LTD,24.80,27/02/2017
Commercial,Customer Support Group,Building Repairs & Maintenance,60072155,CHARLES WILSON ENGINEERS LTD,"2,640.00",23/02/2017
Commercial,Customer Support Group,Building Repairs & Maintenance,60072175,CHARLES WILSON ENGINEERS LTD,242.00,16/02/2017
Commercial,Customer Support Group,Building Repairs & Maintenance,60072268,CHARLES WILSON ENGINEERS LTD,"2,640.00",16/02/2017
Commercial,Customer Support Group,Building Repairs & Maintenance,60071162,EARLSWOOD INDUSTRIAL SVCS LTD,397.00,23/02/2017
Commercial,Customer Support Group,Building Repairs & Maintenance,60046701,HERTEL (UK) LTD,40.83,15/02/2017
Commercial,Customer Support Group,Building Repairs & Maintenance,60046761,HERTEL (UK) LTD,40.83,15/02/2017
Commercial,Customer Support Group,Building Repairs & Maintenance,60046804,HERTEL (UK) LTD,40.83,15/02/2017
Commercial,Customer Support Group,Building Repairs & Maintenance,60047216,HERTEL (UK) LTD,40.83,15/02/2017
Commercial,Customer Support Group,Building Repairs & Maintenance,60047307,HERTEL (UK) LTD,40.83,15/02/2017
Commercial,Customer Support Group,Building Repairs & Maintenance,60047588,HERTEL (UK) LTD,40.83,15/02/2017
Commercial,Customer Support Group,Building Repairs & Maintenance,60048680,HERTEL (UK) LTD,40.83,15/02/2017
Commercial,Customer Support Group,Building Repairs & Maintenance,60048757,HERTEL (UK) LTD,40.83,15/02/2017
Commercial,Customer Support Group,Building Repairs & Maintenance,60048821,HERTEL (UK) LTD,40.83,15/02/2017
Commercial,Customer Support Group,Building Repairs & Maintenance,60048829,HERTEL (UK) LTD,40.83,23/02/2017
Commercial,Customer Support Group,Building Repairs & Maintenance,60048912,HERTEL (UK) LTD,40.83,15/02/2017
Commercial,Customer Support Group,Building Repairs & Maintenance,60049005,HERTEL (UK) LTD,40.83,15/02/2017
Commercial,Customer Support Group,Building Repairs & Maintenance,60049010,HERTEL (UK) LTD,40.83,15/02/2017
Commercial,Customer Support Group,Building Repairs & Maintenance,60049034,HERTEL (UK) LTD,40.83,15/02/2017
Commercial,Customer Support Group,Building Repairs & Maintenance,60049084,HERTEL (UK) LTD,40.83,15/02/2017
Commercial,Customer Support Group,Building Repairs & Maintenance,60049095,HERTEL (UK) LTD,40.83,15/02/2017
Commercial,Customer Support Group,Building Repairs & Maintenance,60062862,HERTEL (UK) LTD,38.79,21/02/2017
Commercial,Customer Support Group,Building Repairs & Maintenance,60071153,HERTEL (UK) LTD,34.91,27/02/2017
Commercial,Customer Support Group,Building Repairs & Maintenance,60071156,HERTEL (UK) LTD,34.91,01/02/2017
Commercial,Customer Support Group,Building Repairs & Maintenance,60071161,HERTEL (UK) LTD,34.91,01/02/2017
Commercial,Customer Support Group,Building Repairs & Maintenance,60071166,HERTEL (UK) LTD,34.91,01/02/2017
Commercial,Customer Support Group,Building Repairs & Maintenance,60071178,HERTEL (UK) LTD,34.91,01/02/2017
Commercial,Customer Support Group,Building Repairs & Maintenance,60071179,HERTEL (UK) LTD,34.91,02/02/2017
Commercial,Customer Support Group,Building Repairs & Maintenance,60071185,HERTEL (UK) LTD,34.91,02/02/2017
Commercial,Customer Support Group,Building Repairs & Maintenance,60071197,HERTEL (UK) LTD,34.91,01/02/2017
Commercial,Customer Support Group,Building Repairs & Maintenance,60071205,HERTEL (UK) LTD,34.91,02/02/2017
Commercial,Customer Support Group,Building Repairs & Maintenance,60071212,HERTEL (UK) LTD,34.91,02/02/2017
Commercial,Customer Support Group,Building Repairs & Maintenance,60071215,HERTEL (UK) LTD,34.91,01/02/2017
Commercial,Customer Support Group,Building Repairs & Maintenance,60071219,HERTEL (UK) LTD,34.91,02/02/2017
Commercial,Customer Support Group,Building Repairs & Maintenance,60071502,HERTEL (UK) LTD,34.91,16/02/2017
Commercial,Customer Support Group,Building Repairs & Maintenance,60071503,HERTEL (UK) LTD,34.91,09/02/2017
Commercial,Customer Support Group,Building Repairs & Maintenance,60071508,HERTEL (UK) LTD,34.91,09/02/2017
Commercial,Customer Support Group,Building Repairs & Maintenance,60071510,HERTEL (UK) LTD,34.91,16/02/2017
Commercial,Customer Support Group,Building Repairs & Maintenance,60071519,HERTEL (UK) LTD,34.91,24/02/2017
Commercial,Customer Support Group,Building Repairs & Maintenance,60071520,HERTEL (UK) LTD,34.91,24/02/2017
Commercial,Customer Support Group,Building Repairs & Maintenance,60071521,HERTEL (UK) LTD,34.91,09/02/2017
Commercial,Customer Support Group,Building Repairs & Maintenance,60071523,HERTEL (UK) LTD,34.91,09/02/2017
Commercial,Customer Support Group,Building Repairs & Maintenance,60071533,HERTEL (UK) LTD,34.91,24/02/2017
Commercial,Customer Support Group,Building Repairs & Maintenance,60071536,HERTEL (UK) LTD,34.91,24/02/2017
Commercial,Customer Support Group,Building Repairs & Maintenance,60071541,HERTEL (UK) LTD,34.91,09/02/2017
Commercial,Customer Support Group,Building Repairs & Maintenance,60071548,HERTEL (UK) LTD,34.91,09/02/2017
Commercial,Customer Support Group,Building Repairs & Maintenance,60071550,HERTEL (UK) LTD,34.91,09/02/2017
Commercial,Customer Support Group,Building Repairs & Maintenance,60071551,HERTEL (UK) LTD,34.91,24/02/2017
Commercial,Customer Support Group,Building Repairs & Maintenance,60071557,HERTEL (UK) LTD,34.91,16/02/2017
Commercial,Customer Support Group,Building Repairs & Maintenance,60071561,HERTEL (UK) LTD,34.91,16/02/2017
Commercial,Customer Support Group,Building Repairs & Maintenance,60071567,HERTEL (UK) LTD,34.91,16/02/2017
Commercial,Customer Support Group,Building Repairs & Maintenance,60071572,HERTEL (UK) LTD,34.91,09/02/2017
Commercial,Customer Support Group,Building Repairs & Maintenance,60071581,HERTEL (UK) LTD,34.91,16/02/2017
Commercial,Customer Support Group,Building Repairs & Maintenance,60071587,HERTEL (UK) LTD,34.91,09/02/2017
Commercial,Customer Support Group,Building Repairs & Maintenance,60071592,HERTEL (UK) LTD,34.91,16/02/2017
Commercial,Customer Support Group,Building Repairs & Maintenance,60071596,HERTEL (UK) LTD,34.91,24/02/2017
Commercial,Customer Support Group,Building Repairs & Maintenance,60071597,HERTEL (UK) LTD,34.91,09/02/2017
Commercial,Customer Support Group,Building Repairs & Maintenance,60071601,HERTEL (UK) LTD,34.91,24/02/2017
Commercial,Customer Support Group,Building Repairs & Maintenance,60071604,HERTEL (UK) LTD,34.91,16/02/2017
Commercial,Customer Support Group,Building Repairs & Maintenance,60071605,HERTEL (UK) LTD,34.91,09/02/2017
Commercial,Customer Support Group,Building Repairs & Maintenance,60071608,HERTEL (UK) LTD,34.91,16/02/2017
Commercial,Customer Support Group,Building Repairs & Maintenance,60071612,HERTEL (UK) LTD,34.91,09/02/2017
Commercial,Customer Support Group,Building Repairs & Maintenance,60071613,HERTEL (UK) LTD,34.91,09/02/2017
Commercial,Customer Support Group,Building Repairs & Maintenance,60071615,HERTEL (UK) LTD,34.91,16/02/2017
Commercial,Customer Support Group,Building Repairs & Maintenance,60071616,HERTEL (UK) LTD,34.91,24/02/2017
Commercial,Customer Support Group,Building Repairs & Maintenance,60071619,HERTEL (UK) LTD,34.91,09/02/2017
Commercial,Customer Support Group,Building Repairs & Maintenance,60071620,HERTEL (UK) LTD,34.91,24/02/2017
Commercial,Customer Support Group,Building Repairs & Maintenance,60071623,HERTEL (UK) LTD,34.91,09/02/2017
Commercial,Customer Support Group,Building Repairs & Maintenance,60071624,HERTEL (UK) LTD,34.91,24/02/2017
Commercial,Customer Support Group,Building Repairs & Maintenance,60071626,HERTEL (UK) LTD,34.91,09/02/2017
Commercial,Customer Support Group,Building Repairs & Maintenance,60071627,HERTEL (UK) LTD,34.91,16/02/2017
Commercial,Customer Support Group,Building Repairs & Maintenance,60071630,HERTEL (UK) LTD,34.91,09/02/2017
Commercial,Customer Support Group,Building Repairs & Maintenance,60071632,HERTEL (UK) LTD,34.91,24/02/2017
Commercial,Customer Support Group,Building Repairs & Maintenance,60071637,HERTEL (UK) LTD,34.91,24/02/2017
Commercial,Customer Support Group,Building Repairs & Maintenance,60071638,HERTEL (UK) LTD,34.91,09/02/2017
Commercial,Customer Support Group,Building Repairs & Maintenance,60071644,HERTEL (UK) LTD,34.91,16/02/2017
Commercial,Customer Support Group,Building Repairs & Maintenance,60071647,HERTEL (UK) LTD,34.91,16/02/2017
Commercial,Customer Support Group,Building Repairs & Maintenance,60071650,HERTEL (UK) LTD,34.91,09/02/2017
Commercial,Customer Support Group,Building Repairs & Maintenance,60071654,HERTEL (UK) LTD,34.91,09/02/2017
Commercial,Customer Support Group,Building Repairs & Maintenance,60071657,HERTEL (UK) LTD,34.91,09/02/2017
Commercial,Customer Support Group,Building Repairs & Maintenance,60071658,HERTEL (UK) LTD,34.91,16/02/2017
Commercial,Customer Support Group,Building Repairs & Maintenance,60071663,HERTEL (UK) LTD,34.91,24/02/2017
Commercial,Customer Support Group,Building Repairs & Maintenance,60071668,HERTEL (UK) LTD,34.91,09/02/2017
Commercial,Customer Support Group,Building Repairs & Maintenance,60071669,HERTEL (UK) LTD,34.91,24/02/2017
Commercial,Customer Support Group,Building Repairs & Maintenance,60071675,HERTEL (UK) LTD,34.91,09/02/2017
Commercial,Customer Support Group,Building Repairs & Maintenance,60071676,HERTEL (UK) LTD,34.91,09/02/2017
Commercial,Customer Support Group,Building Repairs & Maintenance,60071679,HERTEL (UK) LTD,34.91,09/02/2017
Commercial,Customer Support Group,Building Repairs & Maintenance,60071682,HERTEL (UK) LTD,34.91,09/02/2017
Commercial,Customer Support Group,Building Repairs & Maintenance,60071683,HERTEL (UK) LTD,34.91,24/02/2017
Commercial,Customer Support Group,Building Repairs & Maintenance,60071686,HERTEL (UK) LTD,34.91,16/02/2017
Commercial,Customer Support Group,Building Repairs & Maintenance,60071762,HERTEL (UK) LTD,119.70,08/02/2017
Commercial,Customer Support Group,Building Repairs & Maintenance,60071789,HERTEL (UK) LTD,159.16,08/02/2017
Commercial,Customer Support Group,Building Repairs & Maintenance,60072621,HERTEL (UK) LTD,200.00,17/02/2017
Commercial,Customer Support Group,Building Repairs & Maintenance,60072623,HERTEL (UK) LTD,7.00,17/02/2017
Commercial,Customer Support Group,Building Repairs & Maintenance,60072624,HERTEL (UK) LTD,38.79,17/02/2017
Commercial,Customer Support Group,Building Repairs & Maintenance,60072625,HERTEL (UK) LTD,38.79,17/02/2017
Commercial,Customer Support Group,Building Repairs & Maintenance,60072626,HERTEL (UK) LTD,40.83,17/02/2017
Commercial,Customer Support Group,Building Repairs & Maintenance,60072636,HERTEL (UK) LTD,448.88,17/02/2017
Commercial,Customer Support Group,Building Repairs & Maintenance,60072640,HERTEL (UK) LTD,38.79,17/02/2017
Commercial,Customer Support Group,Building Repairs & Maintenance,60072642,HERTEL (UK) LTD,448.00,17/02/2017
Commercial,Customer Support Group,Building Repairs & Maintenance,60072646,HERTEL (UK) LTD,38.79,17/02/2017
Commercial,Customer Support Group,Building Repairs & Maintenance,60072647,HERTEL (UK) LTD,38.79,17/02/2017
Commercial,Customer Support Group,Building Repairs & Maintenance,60072653,HERTEL (UK) LTD,7.00,17/02/2017
Commercial,Customer Support Group,Building Repairs & Maintenance,60072659,HERTEL (UK) LTD,38.79,17/02/2017
Commercial,Customer Support Group,Building Repairs & Maintenance,60072660,HERTEL (UK) LTD,"1,952.86",17/02/2017
Commercial,Customer Support Group,Building Repairs & Maintenance,60072663,HERTEL (UK) LTD,7.00,17/02/2017
Commercial,Customer Support Group,Building Repairs & Maintenance,60072670,HERTEL (UK) LTD,38.79,20/02/2017
Commercial,Customer Support Group,Building Repairs & Maintenance,60072672,HERTEL (UK) LTD,7.00,17/02/2017
Commercial,Customer Support Group,Building Repairs & Maintenance,60072683,HERTEL (UK) LTD,38.79,17/02/2017
Commercial,Customer Support Group,Building Repairs & Maintenance,60072685,HERTEL (UK) LTD,7.00,17/02/2017
Commercial,Customer Support Group,Building Repairs & Maintenance,60072687,HERTEL (UK) LTD,38.79,17/02/2017
Commercial,Customer Support Group,Building Repairs & Maintenance,60072688,HERTEL (UK) LTD,134.00,17/02/2017
Commercial,Customer Support Group,Building Repairs & Maintenance,60072691,HERTEL (UK) LTD,175.00,17/02/2017
Commercial,Customer Support Group,Building Repairs & Maintenance,60072695,HERTEL (UK) LTD,140.00,17/02/2017
Commercial,Customer Support Group,Building Repairs & Maintenance,60072697,HERTEL (UK) LTD,175.00,17/02/2017
Commercial,Customer Support Group,Building Repairs & Maintenance,60072700,HERTEL (UK) LTD,7.00,17/02/2017
Commercial,Customer Support Group,Building Repairs & Maintenance,60072704,HERTEL (UK) LTD,38.79,17/02/2017
Commercial,Customer Support Group,Building Repairs & Maintenance,60072706,HERTEL (UK) LTD,7.00,17/02/2017
Commercial,Customer Support Group,Building Repairs & Maintenance,60072707,HERTEL (UK) LTD,255.00,17/02/2017
Commercial,Customer Support Group,Building Repairs & Maintenance,60072709,HERTEL (UK) LTD,150.00,17/02/2017
Commercial,Customer Support Group,Building Repairs & Maintenance,60072710,HERTEL (UK) LTD,38.79,20/02/2017
Commercial,Customer Support Group,Building Repairs & Maintenance,60072711,HERTEL (UK) LTD,38.79,17/02/2017
Commercial,Customer Support Group,Building Repairs & Maintenance,60072714,HERTEL (UK) LTD,600.00,17/02/2017
Commercial,Customer Support Group,Building Repairs & Maintenance,60072716,HERTEL (UK) LTD,38.79,17/02/2017
Commercial,Customer Support Group,Building Repairs & Maintenance,60072722,HERTEL (UK) LTD,134.68,17/02/2017
Commercial,Customer Support Group,Building Repairs & Maintenance,60072727,HERTEL (UK) LTD,400.00,17/02/2017
Commercial,Customer Support Group,Building Repairs & Maintenance,60072733,HERTEL (UK) LTD,40.83,20/02/2017
Commercial,Customer Support Group,Building Repairs & Maintenance,60072739,HERTEL (UK) LTD,7.00,17/02/2017
Commercial,Customer Support Group,Building Repairs & Maintenance,60072740,HERTEL (UK) LTD,130.00,17/02/2017
Commercial,Customer Support Group,Building Repairs & Maintenance,60072743,HERTEL (UK) LTD,7.00,17/02/2017
Commercial,Customer Support Group,Building Repairs & Maintenance,60072744,HERTEL (UK) LTD,130.00,17/02/2017
Commercial,Customer Support Group,Building Repairs & Maintenance,60072745,HERTEL (UK) LTD,7.00,17/02/2017
Commercial,Customer Support Group,Building Repairs & Maintenance,60072748,HERTEL (UK) LTD,135.00,17/02/2017
Commercial,Customer Support Group,Building Repairs & Maintenance,60072750,HERTEL (UK) LTD,260.00,17/02/2017
Commercial,Customer Support Group,Building Repairs & Maintenance,60072751,HERTEL (UK) LTD,7.00,17/02/2017
Commercial,Customer Support Group,Building Repairs & Maintenance,60072753,HERTEL (UK) LTD,210.00,17/02/2017
Commercial,Customer Support Group,Building Repairs & Maintenance,60072779,HERTEL (UK) LTD,38.79,20/02/2017
Commercial,Customer Support Group,Building Repairs & Maintenance,60072791,HERTEL (UK) LTD,122.50,21/02/2017
Commercial,Customer Support Group,Building Repairs & Maintenance,60072854,HERTEL (UK) LTD,300.00,20/02/2017
Commercial,Customer Support Group,Building Repairs & Maintenance,60073284,HERTEL (UK) LTD,119.70,24/02/2017
Commercial,Customer Support Group,Building Repairs & Maintenance,60073286,HERTEL (UK) LTD,133.00,24/02/2017
Commercial,Customer Support Group,Building Repairs & Maintenance,60073295,HERTEL (UK) LTD,7.00,24/02/2017
Commercial,Customer Support Group,Building Repairs & Maintenance,60073303,HERTEL (UK) LTD,38.79,24/02/2017
Commercial,Customer Support Group,Building Repairs & Maintenance,60073311,HERTEL (UK) LTD,300.00,24/02/2017
Commercial,Customer Support Group,Building Repairs & Maintenance,60073336,HERTEL (UK) LTD,250.00,24/02/2017
Commercial,Customer Support Group,Building Repairs & Maintenance,60073341,HERTEL (UK) LTD,119.70,24/02/2017
Commercial,Customer Support Group,Building Repairs & Maintenance,60073343,HERTEL (UK) LTD,140.00,27/02/2017
Commercial,Customer Support Group,Building Repairs & Maintenance,60073345,HERTEL (UK) LTD,179.55,24/02/2017
Commercial,Customer Support Group,Building Repairs & Maintenance,60073350,HERTEL (UK) LTD,133.00,24/02/2017
Commercial,Customer Support Group,Building Repairs & Maintenance,60073353,HERTEL (UK) LTD,268.00,24/02/2017
Commercial,Customer Support Group,Building Repairs & Maintenance,60073357,HERTEL (UK) LTD,38.79,27/02/2017
Commercial,Customer Support Group,Building Repairs & Maintenance,60073364,HERTEL (UK) LTD,500.00,24/02/2017
Commercial,Customer Support Group,Building Repairs & Maintenance,60073381,HERTEL (UK) LTD,38.79,27/02/2017
Commercial,Customer Support Group,Building Repairs & Maintenance,60073404,HERTEL (UK) LTD,"1,455.51",24/02/2017
Commercial,Customer Support Group,Building Repairs & Maintenance,60073414,HERTEL (UK) LTD,225.00,24/02/2017
Commercial,Customer Support Group,Building Repairs & Maintenance,60071785,LEE SECURITY LONDON LIMITED,761.00,08/02/2017
Commercial,Customer Support Group,Building Repairs & Maintenance,60071749,LIFT & ENGINEERING SERVICES LTD,740.00,09/02/2017
Commercial,Customer Support Group,Building Repairs & Maintenance,60072503,LIFT & ENGINEERING SERVICES LTD,47.10,16/02/2017
Commercial,Customer Support Group,Building Repairs & Maintenance,60072510,LIFT & ENGINEERING SERVICES LTD,94.21,17/02/2017
Commercial,Customer Support Group,Building Repairs & Maintenance,60072534,LIFT & ENGINEERING SERVICES LTD,94.21,16/02/2017
Commercial,Customer Support Group,Building Repairs & Maintenance,60072544,LIFT & ENGINEERING SERVICES LTD,94.21,16/02/2017
Commercial,Customer Support Group,Building Repairs & Maintenance,60072569,LIFT & ENGINEERING SERVICES LTD,174.00,16/02/2017
Commercial,Customer Support Group,Building Repairs & Maintenance,60072578,LIFT & ENGINEERING SERVICES LTD,47.10,17/02/2017
Commercial,Customer Support Group,Building Repairs & Maintenance,60072617,LIFT & ENGINEERING SERVICES LTD,47.10,17/02/2017
Commercial,Customer Support Group,Building Repairs & Maintenance,60059413,OAKRAY LIMITED,96.00,17/02/2017
Commercial,Customer Support Group,Building Repairs & Maintenance,60065785,OAKRAY LIMITED,"2,898.00",01/02/2017
Commercial,Customer Support Group,Building Repairs & Maintenance,60065843,OAKRAY LIMITED,802.30,01/02/2017
Commercial,Customer Support Group,Building Repairs & Maintenance,60068502,OAKRAY LIMITED,64.00,17/02/2017
Commercial,Customer Support Group,Building Repairs & Maintenance,60068533,OAKRAY LIMITED,644.46,17/02/2017
Commercial,Customer Support Group,Building Repairs & Maintenance,60070744,OAKRAY LIMITED,72.00,16/02/2017
Commercial,Customer Support Group,Building Repairs & Maintenance,60071327,OAKRAY LIMITED,291.51,03/02/2017
Commercial,Customer Support Group,Building Repairs & Maintenance,60071345,OAKRAY LIMITED,272.00,03/02/2017
Commercial,Customer Support Group,Building Repairs & Maintenance,60071504,OAKRAY LIMITED,70.25,07/02/2017
Commercial,Customer Support Group,Building Repairs & Maintenance,60071517,OAKRAY LIMITED,330.60,07/02/2017
Commercial,Customer Support Group,Building Repairs & Maintenance,60071526,OAKRAY LIMITED,909.15,07/02/2017
Commercial,Customer Support Group,Building Repairs & Maintenance,60071528,OAKRAY LIMITED,330.60,07/02/2017
Commercial,Customer Support Group,Building Repairs & Maintenance,60071538,OAKRAY LIMITED,330.60,07/02/2017
Commercial,Customer Support Group,Building Repairs & Maintenance,60071543,OAKRAY LIMITED,330.60,07/02/2017
Commercial,Customer Support Group,Building Repairs & Maintenance,60071544,OAKRAY LIMITED,578.55,07/02/2017
Commercial,Customer Support Group,Building Repairs & Maintenance,60071546,OAKRAY LIMITED,330.60,07/02/2017
Commercial,Customer Support Group,Building Repairs & Maintenance,60071547,OAKRAY LIMITED,330.60,07/02/2017
Commercial,Customer Support Group,Building Repairs & Maintenance,60071552,OAKRAY LIMITED,"1,058.30",07/02/2017
Commercial,Customer Support Group,Building Repairs & Maintenance,60071555,OAKRAY LIMITED,330.60,07/02/2017
Commercial,Customer Support Group,Building Repairs & Maintenance,60071558,OAKRAY LIMITED,578.55,07/02/2017
Commercial,Customer Support Group,Building Repairs & Maintenance,60071562,OAKRAY LIMITED,330.60,17/02/2017
Commercial,Customer Support Group,Building Repairs & Maintenance,60071563,OAKRAY LIMITED,"1,074.45",10/02/2017
Commercial,Customer Support Group,Building Repairs & Maintenance,60071564,OAKRAY LIMITED,330.60,07/02/2017
Commercial,Customer Support Group,Building Repairs & Maintenance,60071566,OAKRAY LIMITED,661.20,17/02/2017
Commercial,Customer Support Group,Building Repairs & Maintenance,60071571,OAKRAY LIMITED,578.55,07/02/2017
Commercial,Customer Support Group,Building Repairs & Maintenance,60071575,OAKRAY LIMITED,909.15,07/02/2017
Commercial,Customer Support Group,Building Repairs & Maintenance,60071576,OAKRAY LIMITED,"2,396.85",07/02/2017
Commercial,Customer Support Group,Building Repairs & Maintenance,60071577,OAKRAY LIMITED,148.20,07/02/2017
Commercial,Customer Support Group,Building Repairs & Maintenance,60071578,OAKRAY LIMITED,285.00,07/02/2017
Commercial,Customer Support Group,Building Repairs & Maintenance,60071582,OAKRAY LIMITED,330.60,07/02/2017
Commercial,Customer Support Group,Building Repairs & Maintenance,60071586,OAKRAY LIMITED,330.60,07/02/2017
Commercial,Customer Support Group,Building Repairs & Maintenance,60071589,OAKRAY LIMITED,619.68,07/02/2017
Commercial,Customer Support Group,Building Repairs & Maintenance,60071590,OAKRAY LIMITED,330.60,07/02/2017
Commercial,Customer Support Group,Building Repairs & Maintenance,60071591,OAKRAY LIMITED,330.60,07/02/2017
Commercial,Customer Support Group,Building Repairs & Maintenance,60071593,OAKRAY LIMITED,330.60,07/02/2017
Commercial,Customer Support Group,Building Repairs & Maintenance,60071594,OAKRAY LIMITED,"2,644.80",07/02/2017
Commercial,Customer Support Group,Building Repairs & Maintenance,60071595,OAKRAY LIMITED,330.60,07/02/2017
Commercial,Customer Support Group,Building Repairs & Maintenance,60071599,OAKRAY LIMITED,"1,128.40",07/02/2017
Commercial,Customer Support Group,Building Repairs & Maintenance,60071617,OAKRAY LIMITED,185.25,07/02/2017
Commercial,Customer Support Group,Building Repairs & Maintenance,60071618,OAKRAY LIMITED,330.60,07/02/2017
Commercial,Customer Support Group,Building Repairs & Maintenance,60071622,OAKRAY LIMITED,330.60,07/02/2017
Commercial,Customer Support Group,Building Repairs & Maintenance,60071629,OAKRAY LIMITED,330.60,07/02/2017
Commercial,Customer Support Group,Building Repairs & Maintenance,60071631,OAKRAY LIMITED,"1,735.65",07/02/2017
Commercial,Customer Support Group,Building Repairs & Maintenance,60071636,OAKRAY LIMITED,743.85,07/02/2017
Commercial,Customer Support Group,Building Repairs & Maintenance,60071640,OAKRAY LIMITED,330.60,07/02/2017
Commercial,Customer Support Group,Building Repairs & Maintenance,60071641,OAKRAY LIMITED,330.60,07/02/2017
Commercial,Customer Support Group,Building Repairs & Maintenance,60071642,OAKRAY LIMITED,446.31,07/02/2017
Commercial,Customer Support Group,Building Repairs & Maintenance,60071645,OAKRAY LIMITED,330.60,07/02/2017
Commercial,Customer Support Group,Building Repairs & Maintenance,60071646,OAKRAY LIMITED,330.60,07/02/2017
Commercial,Customer Support Group,Building Repairs & Maintenance,60071649,OAKRAY LIMITED,578.55,07/02/2017
Commercial,Customer Support Group,Building Repairs & Maintenance,60071652,OAKRAY LIMITED,330.60,07/02/2017
Commercial,Customer Support Group,Building Repairs & Maintenance,60071670,OAKRAY LIMITED,330.60,17/02/2017
Commercial,Customer Support Group,Building Repairs & Maintenance,60071674,OAKRAY LIMITED,"1,818.30",20/02/2017
Commercial,Customer Support Group,Building Repairs & Maintenance,60071678,OAKRAY LIMITED,"2,132.37",07/02/2017
Commercial,Customer Support Group,Building Repairs & Maintenance,60071680,OAKRAY LIMITED,330.60,07/02/2017
Commercial,Customer Support Group,Building Repairs & Maintenance,60071681,OAKRAY LIMITED,330.60,07/02/2017
Commercial,Customer Support Group,Building Repairs & Maintenance,60071687,OAKRAY LIMITED,330.60,07/02/2017
Commercial,Customer Support Group,Building Repairs & Maintenance,60071688,OAKRAY LIMITED,595.08,07/02/2017
Commercial,Customer Support Group,Building Repairs & Maintenance,60071692,OAKRAY LIMITED,42.75,08/02/2017
Commercial,Customer Support Group,Building Repairs & Maintenance,60071693,OAKRAY LIMITED,530.10,08/02/2017
Commercial,Customer Support Group,Building Repairs & Maintenance,60071694,OAKRAY LIMITED,338.43,08/02/2017
Commercial,Customer Support Group,Building Repairs & Maintenance,60071697,OAKRAY LIMITED,"1,340.93",08/02/2017
Commercial,Customer Support Group,Building Repairs & Maintenance,60071698,OAKRAY LIMITED,865.69,08/02/2017
Commercial,Customer Support Group,Building Repairs & Maintenance,60071704,OAKRAY LIMITED,"4,225.60",08/02/2017
Commercial,Customer Support Group,Building Repairs & Maintenance,60071706,OAKRAY LIMITED,702.00,08/02/2017
Commercial,Customer Support Group,Building Repairs & Maintenance,60071707,OAKRAY LIMITED,356.25,08/02/2017
Commercial,Customer Support Group,Building Repairs & Maintenance,60071708,OAKRAY LIMITED,648.75,08/02/2017
Commercial,Customer Support Group,Building Repairs & Maintenance,60071709,OAKRAY LIMITED,452.43,08/02/2017
Commercial,Customer Support Group,Building Repairs & Maintenance,60071711,OAKRAY LIMITED,181.68,08/02/2017
Commercial,Customer Support Group,Building Repairs & Maintenance,60071713,OAKRAY LIMITED,210.18,08/02/2017
Commercial,Customer Support Group,Building Repairs & Maintenance,60071714,OAKRAY LIMITED,395.43,08/02/2017
Commercial,Customer Support Group,Building Repairs & Maintenance,60071715,OAKRAY LIMITED,"1,521.19",08/02/2017
Commercial,Customer Support Group,Building Repairs & Maintenance,60071716,OAKRAY LIMITED,769.50,08/02/2017
Commercial,Customer Support Group,Building Repairs & Maintenance,60071717,OAKRAY LIMITED,502.31,08/02/2017
Commercial,Customer Support Group,Building Repairs & Maintenance,60071718,OAKRAY LIMITED,"1,310.29",08/02/2017
Commercial,Customer Support Group,Building Repairs & Maintenance,60071721,OAKRAY LIMITED,605.62,08/02/2017
Commercial,Customer Support Group,Building Repairs & Maintenance,60071722,OAKRAY LIMITED,485.93,08/02/2017
Commercial,Customer Support Group,Building Repairs & Maintenance,60071723,OAKRAY LIMITED,"4,285.68",08/02/2017
Commercial,Customer Support Group,Building Repairs & Maintenance,60071726,OAKRAY LIMITED,448.87,08/02/2017
Commercial,Customer Support Group,Building Repairs & Maintenance,60071727,OAKRAY LIMITED,"1,044.53",08/02/2017
Commercial,Customer Support Group,Building Repairs & Maintenance,60071728,OAKRAY LIMITED,193.80,08/02/2017
Commercial,Customer Support Group,Building Repairs & Maintenance,60071733,OAKRAY LIMITED,889.91,08/02/2017
Commercial,Customer Support Group,Building Repairs & Maintenance,60071736,OAKRAY LIMITED,"1,297.46",08/02/2017
Commercial,Customer Support Group,Building Repairs & Maintenance,60071737,OAKRAY LIMITED,356.25,08/02/2017
Commercial,Customer Support Group,Building Repairs & Maintenance,60071738,OAKRAY LIMITED,"1,773.40",08/02/2017
Commercial,Customer Support Group,Building Repairs & Maintenance,60071741,OAKRAY LIMITED,"1,072.31",08/02/2017
Commercial,Customer Support Group,Building Repairs & Maintenance,60071743,OAKRAY LIMITED,587.10,08/02/2017
Commercial,Customer Support Group,Building Repairs & Maintenance,60071744,OAKRAY LIMITED,330.60,08/02/2017
Commercial,Customer Support Group,Building Repairs & Maintenance,60071747,OAKRAY LIMITED,71.25,08/02/2017
Commercial,Customer Support Group,Building Repairs & Maintenance,60071750,OAKRAY LIMITED,384.75,17/02/2017
Commercial,Customer Support Group,Building Repairs & Maintenance,60071751,OAKRAY LIMITED,394.01,08/02/2017
Commercial,Customer Support Group,Building Repairs & Maintenance,60071753,OAKRAY LIMITED,"1,836.82",08/02/2017
Commercial,Customer Support Group,Building Repairs & Maintenance,60071758,OAKRAY LIMITED,"1,710.00",08/02/2017
Commercial,Customer Support Group,Building Repairs & Maintenance,60071759,OAKRAY LIMITED,"4,856.40",08/02/2017
Commercial,Customer Support Group,Building Repairs & Maintenance,60071763,OAKRAY LIMITED,178.12,08/02/2017
Commercial,Customer Support Group,Building Repairs & Maintenance,60071764,OAKRAY LIMITED,973.27,08/02/2017
Commercial,Customer Support Group,Building Repairs & Maintenance,60071765,OAKRAY LIMITED,329.88,08/02/2017
Commercial,Customer Support Group,Building Repairs & Maintenance,60071766,OAKRAY LIMITED,327.75,08/02/2017
Commercial,Customer Support Group,Building Repairs & Maintenance,60071768,OAKRAY LIMITED,"1,164.22",08/02/2017
Commercial,Customer Support Group,Building Repairs & Maintenance,60071771,OAKRAY LIMITED,366.93,08/02/2017
Commercial,Customer Support Group,Building Repairs & Maintenance,60071775,OAKRAY LIMITED,"2,545.05",08/02/2017
Commercial,Customer Support Group,Building Repairs & Maintenance,60071777,OAKRAY LIMITED,174.56,08/02/2017
Commercial,Customer Support Group,Building Repairs & Maintenance,60071779,OAKRAY LIMITED,"2,493.75",08/02/2017
Commercial,Customer Support Group,Building Repairs & Maintenance,60071782,OAKRAY LIMITED,679.00,08/02/2017
Commercial,Customer Support Group,Building Repairs & Maintenance,60071784,OAKRAY LIMITED,484.50,08/02/2017
Commercial,Customer Support Group,Building Repairs & Maintenance,60071786,OAKRAY LIMITED,452.43,08/02/2017
Commercial,Customer Support Group,Building Repairs & Maintenance,60071788,OAKRAY LIMITED,"1,203.00",08/02/2017
Commercial,Customer Support Group,Building Repairs & Maintenance,60071791,OAKRAY LIMITED,678.30,08/02/2017
Commercial,Customer Support Group,Building Repairs & Maintenance,60071792,OAKRAY LIMITED,567.15,08/02/2017
Commercial,Customer Support Group,Building Repairs & Maintenance,60071793,OAKRAY LIMITED,488.77,08/02/2017
Commercial,Customer Support Group,Building Repairs & Maintenance,60071794,OAKRAY LIMITED,542.50,08/02/2017
Commercial,Customer Support Group,Building Repairs & Maintenance,60071795,OAKRAY LIMITED,307.08,08/02/2017
Commercial,Customer Support Group,Building Repairs & Maintenance,60071796,OAKRAY LIMITED,284.28,08/02/2017
Commercial,Customer Support Group,Building Repairs & Maintenance,60071797,OAKRAY LIMITED,65.55,08/02/2017
Commercial,Customer Support Group,Building Repairs & Maintenance,60071798,OAKRAY LIMITED,835.76,08/02/2017
Commercial,Customer Support Group,Building Repairs & Maintenance,60071799,OAKRAY LIMITED,"1,425.00",08/02/2017
Commercial,Customer Support Group,Building Repairs & Maintenance,60071800,OAKRAY LIMITED,389.02,08/02/2017
Commercial,Customer Support Group,Building Repairs & Maintenance,60071804,OAKRAY LIMITED,794.44,08/02/2017
Commercial,Customer Support Group,Building Repairs & Maintenance,60071805,OAKRAY LIMITED,"1,077.30",08/02/2017
Commercial,Customer Support Group,Building Repairs & Maintenance,60071808,OAKRAY LIMITED,199.50,08/02/2017
Commercial,Customer Support Group,Building Repairs & Maintenance,60071809,OAKRAY LIMITED,"1,147.12",08/02/2017
Commercial,Customer Support Group,Building Repairs & Maintenance,60071811,OAKRAY LIMITED,617.74,08/02/2017
Commercial,Customer Support Group,Building Repairs & Maintenance,60071814,OAKRAY LIMITED,28.50,08/02/2017
Commercial,Customer Support Group,Building Repairs & Maintenance,60071815,OAKRAY LIMITED,199.50,08/02/2017
Commercial,Customer Support Group,Building Repairs & Maintenance,60071816,OAKRAY LIMITED,114.00,08/02/2017
Commercial,Customer Support Group,Building Repairs & Maintenance,60071821,OAKRAY LIMITED,"5,173.70",08/02/2017
Commercial,Customer Support Group,Building Repairs & Maintenance,60071824,OAKRAY LIMITED,285.00,08/02/2017
Commercial,Customer Support Group,Building Repairs & Maintenance,60071831,OAKRAY LIMITED,904.88,08/02/2017
Commercial,Customer Support Group,Building Repairs & Maintenance,60071832,OAKRAY LIMITED,"1,034.55",08/02/2017
Commercial,Customer Support Group,Building Repairs & Maintenance,60071833,OAKRAY LIMITED,748.12,08/02/2017
Commercial,Customer Support Group,Building Repairs & Maintenance,60071834,OAKRAY LIMITED,655.50,08/02/2017
Commercial,Customer Support Group,Building Repairs & Maintenance,60071838,OAKRAY LIMITED,"2,224.42",08/02/2017
Commercial,Customer Support Group,Building Repairs & Maintenance,60072962,OAKRAY LIMITED,80.00,21/02/2017
Commercial,Customer Support Group,Building Repairs & Maintenance,60070049,PENMILNE CONTRACTORS LIMITED,"16,015.67",01/02/2017
Commercial,Customer Support Group,Building Repairs & Maintenance,60069936,RGE SERVICES,62.00,01/02/2017
Commercial,Customer Support Group,Building Repairs & Maintenance,60069940,RGE SERVICES,62.00,02/02/2017
Commercial,Customer Support Group,Building Repairs & Maintenance,60069942,RGE SERVICES,62.00,02/02/2017
Commercial,Customer Support Group,Building Repairs & Maintenance,60069944,RGE SERVICES,55.90,02/02/2017
Commercial,Customer Support Group,Building Repairs & Maintenance,60069951,RGE SERVICES,212.35,02/02/2017
Commercial,Customer Support Group,Building Repairs & Maintenance,60069953,RGE SERVICES,62.00,02/02/2017
Commercial,Customer Support Group,Building Repairs & Maintenance,60069958,RGE SERVICES,62.00,02/02/2017
Commercial,Customer Support Group,Building Repairs & Maintenance,60069961,RGE SERVICES,117.80,02/02/2017
Commercial,Customer Support Group,Building Repairs & Maintenance,60069964,RGE SERVICES,223.04,01/02/2017
Commercial,Customer Support Group,Building Repairs & Maintenance,60069968,RGE SERVICES,62.00,02/02/2017
Commercial,Customer Support Group,Building Repairs & Maintenance,60069974,RGE SERVICES,62.90,01/02/2017
Commercial,Customer Support Group,Building Repairs & Maintenance,60069977,RGE SERVICES,75.72,01/02/2017
Commercial,Customer Support Group,Building Repairs & Maintenance,60069983,RGE SERVICES,124.00,01/02/2017
Commercial,Customer Support Group,Building Repairs & Maintenance,60069994,RGE SERVICES,62.00,02/02/2017
Commercial,Customer Support Group,Building Repairs & Maintenance,60069995,RGE SERVICES,62.00,01/02/2017
Commercial,Customer Support Group,Building Repairs & Maintenance,60069998,RGE SERVICES,162.15,01/02/2017
Commercial,Customer Support Group,Building Repairs & Maintenance,60070000,RGE SERVICES,62.00,01/02/2017
Commercial,Customer Support Group,Building Repairs & Maintenance,60070013,RGE SERVICES,75.72,02/02/2017
Commercial,Customer Support Group,Building Repairs & Maintenance,60070016,RGE SERVICES,62.00,01/02/2017
Commercial,Customer Support Group,Building Repairs & Maintenance,60070017,RGE SERVICES,62.00,02/02/2017
Commercial,Customer Support Group,Building Repairs & Maintenance,60070019,RGE SERVICES,62.00,02/02/2017
Commercial,Customer Support Group,Building Repairs & Maintenance,60070024,RGE SERVICES,101.10,01/02/2017
Commercial,Customer Support Group,Building Repairs & Maintenance,60070272,RGE SERVICES,926.58,02/02/2017
Commercial,Customer Support Group,Building Repairs & Maintenance,60070277,RGE SERVICES,345.80,01/02/2017
Commercial,Customer Support Group,Building Repairs & Maintenance,60070281,RGE SERVICES,"1,908.69",01/02/2017
Commercial,Customer Support Group,Building Repairs & Maintenance,60070286,RGE SERVICES,409.94,01/02/2017
Commercial,Customer Support Group,Building Repairs & Maintenance,60070292,RGE SERVICES,722.87,02/02/2017
Commercial,Customer Support Group,Building Repairs & Maintenance,60070298,RGE SERVICES,288.34,02/02/2017
Commercial,Customer Support Group,Building Repairs & Maintenance,60070299,RGE SERVICES,"1,081.15",02/02/2017
Commercial,Customer Support Group,Building Repairs & Maintenance,60070300,RGE SERVICES,"12,878.83",01/02/2017
Commercial,Customer Support Group,Building Repairs & Maintenance,60070305,RGE SERVICES,"1,621.28",01/02/2017
Commercial,Customer Support Group,Building Repairs & Maintenance,60070309,RGE SERVICES,469.16,02/02/2017
Commercial,Customer Support Group,Building Repairs & Maintenance,60070315,RGE SERVICES,557.80,02/02/2017
Commercial,Customer Support Group,Building Repairs & Maintenance,60070324,RGE SERVICES,"2,232.00",01/02/2017
Commercial,Customer Support Group,Building Repairs & Maintenance,60070847,RGE SERVICES,106.88,01/02/2017
Commercial,Customer Support Group,Building Repairs & Maintenance,60071206,RGE SERVICES,575.30,01/02/2017
Commercial,Customer Support Group,Building Repairs & Maintenance,60069946,ROMFORD INSULATIONS LTD.,350.00,02/02/2017
Commercial,Customer Support Group,Building Repairs & Maintenance,60068345,S W BRUCE & CO LTD,25.00,17/02/2017
Commercial,Customer Support Group,Building Repairs & Maintenance,60068990,S W BRUCE & CO LTD,"1,706.37",15/02/2017
Commercial,Customer Support Group,Building Repairs & Maintenance,60071461,SECOM PLC,79.00,16/02/2017
Commercial,Customer Support Group,Building Repairs & Maintenance,60071497,SECOM PLC,89.00,16/02/2017
Commercial,Customer Support Group,Building Repairs & Maintenance,60072827,SECOM PLC,320.06,20/02/2017
Commercial,Customer Support Group,Building Repairs & Maintenance,60071063,TANN SYNCHRONOME LTD,400.00,03/02/2017
Commercial,Customer Support Group,Building Repairs & Maintenance,60062136,WINTERS HAULAGE LTD,250.00,08/02/2017
Commercial,Customer Support Group,Building Repairs & Maintenance,60070971,WINTERS HAULAGE LTD,240.00,01/02/2017
Commercial,Customer Support Group,Cleaning and domestic material,60067353,CHURCHILL CONTRACT SERVICES,500.00,28/02/2017
Commercial,Customer Support Group,Cleaning and domestic material,60069700,CHURCHILL CONTRACT SERVICES,661.80,20/02/2017
Commercial,Customer Support Group,Cleaning and domestic material,60069709,CHURCHILL CONTRACT SERVICES,"7,329.82",20/02/2017
Commercial,Customer Support Group,Cleaning and domestic material,60069715,CHURCHILL CONTRACT SERVICES,"1,133.45",20/02/2017
Commercial,Customer Support Group,Cleaning and domestic material,60070528,CHURCHILL CONTRACT SERVICES,420.00,16/02/2017
Commercial,Customer Support Group,Cleaning and domestic material,60072538,CHURCHILL CONTRACT SERVICES,64.51,16/02/2017
Commercial,Customer Support Group,Cleaning and domestic material,60072608,CHURCHILL CONTRACT SERVICES,517.92,16/02/2017
Commercial,Customer Support Group,Cleaning and domestic material,60071719,HERTFORDSHIRE SUPPLIES   COUNTY CO,280.05,08/02/2017
Commercial,Customer Support Group,Contract Cleaning,60052393,CHURCHILL CONTRACT SERVICES,"-1,644.81",20/02/2017
Commercial,Customer Support Group,Contract Cleaning,60069678,CHURCHILL CONTRACT SERVICES,294.16,09/02/2017
Commercial,Customer Support Group,CSG Services Contract Payment,10013609,CAPITA BUSINESS SERVICES LTD,-180.00,02/02/2017
Commercial,Customer Support Group,CSG Services Contract Payment,10013650,CAPITA BUSINESS SERVICES LTD,"-4,935.00",28/02/2017
Commercial,Customer Support Group,CSG Services Contract Payment,60068775,CAPITA BUSINESS SERVICES LTD,"15,625.00",10/02/2017
Commercial,Customer Support Group,CSG Services Contract Payment,60070696,CAPITA BUSINESS SERVICES LTD,"35,953.84",02/02/2017
Commercial,Customer Support Group,CSG Services Contract Payment,60070859,CAPITA BUSINESS SERVICES LTD,"27,657.52",06/02/2017
Commercial,Customer Support Group,CSG Services Contract Payment,60070930,CAPITA BUSINESS SERVICES LTD,"48,466.57",06/02/2017
Commercial,Customer Support Group,CSG Services Contract Payment,60071123,CAPITA BUSINESS SERVICES LTD,"186,858.74",09/02/2017
Commercial,Customer Support Group,CSG Services Contract Payment,60071194,CAPITA BUSINESS SERVICES LTD,"7,464.45",09/02/2017
Commercial,Customer Support Group,CSG Services Contract Payment,60071276,CAPITA BUSINESS SERVICES LTD,"11,942.90",09/02/2017
Commercial,Customer Support Group,CSG Services Contract Payment,60071739,CAPITA BUSINESS SERVICES LTD,"82,641.52",15/02/2017
Commercial,Customer Support Group,CSG Services Contract Payment,60071856,CAPITA BUSINESS SERVICES LTD,"2,439.35",09/02/2017
Commercial,Customer Support Group,CSG Services Contract Payment,60072622,CAPITA BUSINESS SERVICES LTD,"26,956.50",28/02/2017
Commercial,Customer Support Group,CSG Services Contract Payment,60072634,CAPITA BUSINESS SERVICES LTD,"618,532.16",28/02/2017
Commercial,Customer Support Group,CSG Services Contract Payment,60073021,CAPITA BUSINESS SERVICES LTD,"23,420.00",22/02/2017
Commercial,Customer Support Group,CSG Services Contract Payment,60073070,CAPITA BUSINESS SERVICES LTD,"201,614.00",22/02/2017
Commercial,Customer Support Group,CSG Services Contract Payment,60073111,CAPITA BUSINESS SERVICES LTD,"37,430.00",22/02/2017
Commercial,Customer Support Group,Electricity,60071781,BRITISH GAS BUSINESS,169.23,20/02/2017
Commercial,Customer Support Group,Electricity,60071783,BRITISH GAS BUSINESS,1.52,20/02/2017
Commercial,Customer Support Group,Electricity,10013646,E-ON ENERGY,723.53,27/02/2017
Commercial,Customer Support Group,Electricity,60071518,KENT COUNTY COUNCIL (KCS),685.99,07/02/2017
Commercial,Customer Support Group,Electricity,60071606,KENT COUNTY COUNCIL (KCS),268.16,07/02/2017
Commercial,Customer Support Group,Electricity,60071689,KENT COUNTY COUNCIL (KCS),"7,533.28",17/02/2017
Commercial,Customer Support Group,Electricity,60071755,KENT COUNTY COUNCIL (KCS),"1,188.44",20/02/2017
Commercial,Customer Support Group,Electricity,60072041,KENT COUNTY COUNCIL (KCS),511.26,21/02/2017
Commercial,Customer Support Group,Electricity,60072958,SOUTHERN ELECTRIC PLC,"1,318.03",21/02/2017
Commercial,Customer Support Group,Equipment and Materials Purcha,60071603,DAY PLANT HIRE CO LIMITED,483.48,20/02/2017
Commercial,Customer Support Group,Equipment and Materials Purcha,60071540,HERTEL (UK) LTD,34.91,09/02/2017
Commercial,Customer Support Group,Equipment and Materials Purcha,60072644,HERTEL (UK) LTD,38.79,20/02/2017
Commercial,Customer Support Group,Equipment and Materials Purcha,60072650,HERTEL (UK) LTD,38.79,17/02/2017
Commercial,Customer Support Group,Equipment and Materials Purcha,60072703,HERTEL (UK) LTD,38.79,20/02/2017
Commercial,Customer Support Group,Equipment and Materials Purcha,80008167,MET PARKING SERVICES LIMITED,87.50,02/02/2017
Commercial,Customer Support Group,Equipment and Materials Purcha,60069947,RGE SERVICES,62.00,02/02/2017
Commercial,Customer Support Group,Furniture-Purchase-Repair,60070496,HARROW GREEN LTD,18.00,15/02/2017
Commercial,Customer Support Group,Furniture-Purchase-Repair,60071085,OFFICE UPDATE LTD,"1,684.80",14/02/2017
Commercial,Customer Support Group,Furniture-Purchase-Repair,60072613,SCREWFIX DIRECT LTD,166.65,17/02/2017
Commercial,Customer Support Group,Furniture-Purchase-Repair,60073275,SCREWFIX DIRECT LTD,20.82,27/02/2017
Commercial,Customer Support Group,Furniture-Purchase-Repair,60073429,SCREWFIX DIRECT LTD,69.52,24/02/2017
Commercial,Customer Support Group,Furniture-Purchase-Repair,60071413,WAGSTAFF INTERIORS GROUP,20.00,06/02/2017
Commercial,Customer Support Group,Gas,10013625,E-ON ENERGY,218.06,14/02/2017
Commercial,Customer Support Group,Gas,10013626,E-ON ENERGY,5.95,14/02/2017
Commercial,Customer Support Group,Gas,10013627,E-ON ENERGY,47.73,14/02/2017
Commercial,Customer Support Group,Gas,10013628,E-ON ENERGY,10.85,14/02/2017
Commercial,Customer Support Group,Gas,10013629,E-ON ENERGY,25.01,14/02/2017
Commercial,Customer Support Group,Gas,10013630,E-ON ENERGY,21.95,15/02/2017
Commercial,Customer Support Group,Gas,10013631,E-ON ENERGY,-96.41,14/02/2017
Commercial,Customer Support Group,Gas,10013632,E-ON ENERGY,-0.35,15/02/2017
Commercial,Customer Support Group,Gas,60072151,E-ON ENERGY,62.98,15/02/2017
Commercial,Customer Support Group,Gas,60072260,E-ON ENERGY,11.79,14/02/2017
Commercial,Customer Support Group,Gas,60070852,KENT COUNTY COUNCIL (KCS),"9,746.98",01/02/2017
Commercial,Customer Support Group,Gas,60070871,KENT COUNTY COUNCIL (KCS),475.06,01/02/2017
Commercial,Customer Support Group,Gas,60070921,KENT COUNTY COUNCIL (KCS),"4,561.58",01/02/2017
Commercial,Customer Support Group,Gas,60070960,KENT COUNTY COUNCIL (KCS),549.14,06/02/2017
Commercial,Customer Support Group,Gas,60072134,KENT COUNTY COUNCIL (KCS),148.10,21/02/2017
Commercial,Customer Support Group,General Office Expenses,60071378,HSM (UK) LTD.,320.00,24/02/2017
Commercial,Customer Support Group,Grounds maintenance,60071091,RIBBEX UK LTD,590.38,14/02/2017
Commercial,Customer Support Group,Other Services,60072008,BLUE 9 SECURITY LIMITED,"18,340.21",13/02/2017
Commercial,Customer Support Group,Other Services,60072056,BLUE 9 SECURITY LIMITED,848.57,13/02/2017
Commercial,Customer Support Group,Other Services,60072070,BLUE 9 SECURITY LIMITED,"11,584.08",13/02/2017
Commercial,Customer Support Group,Other Services,60072085,BLUE 9 SECURITY LIMITED,"6,757.38",13/02/2017
Commercial,Customer Support Group,Other Services,60072094,BLUE 9 SECURITY LIMITED,"22,773.84",13/02/2017
Commercial,Customer Support Group,Other Services,20033274,LOOMIS UK LIMITED,49.52,14/02/2017
Commercial,Customer Support Group,Other Services,20033275,LOOMIS UK LIMITED,871.14,14/02/2017
Commercial,Customer Support Group,Other Services,20033276,LOOMIS UK LIMITED,871.14,14/02/2017
Commercial,Customer Support Group,Other Services,20033277,LOOMIS UK LIMITED,99.92,14/02/2017
Commercial,Customer Support Group,Other Services,20033278,LOOMIS UK LIMITED,871.14,14/02/2017
Commercial,Customer Support Group,Other Services,20033283,LOOMIS UK LIMITED,871.14,14/02/2017
Commercial,Customer Support Group,Other Services,20033284,LOOMIS UK LIMITED,99.84,14/02/2017
Commercial,Customer Support Group,Other Services,20033285,LOOMIS UK LIMITED,871.14,14/02/2017
Commercial,Customer Support Group,Other Services,20033286,LOOMIS UK LIMITED,871.14,14/02/2017
Commercial,Customer Support Group,Other Services,20033287,LOOMIS UK LIMITED,99.92,14/02/2017
Commercial,Customer Support Group,Postage,60071389,CPI LONDON,25.00,03/02/2017
Commercial,Customer Support Group,Postage,20033288,ROYAL MAIL GROUP LIMITED,331.38,14/02/2017
Commercial,Customer Support Group,Postage,20033289,ROYAL MAIL GROUP LIMITED,331.38,14/02/2017
Commercial,Customer Support Group,Postage,20033290,ROYAL MAIL GROUP LIMITED,331.38,14/02/2017
Commercial,Customer Support Group,Postage,20033291,ROYAL MAIL GROUP LIMITED,331.38,17/02/2017
Commercial,Customer Support Group,Postage,60070802,ROYAL MAIL GROUP LIMITED,"4,473.96",17/02/2017
Commercial,Customer Support Group,Postage,60071710,ROYAL MAIL GROUP LIMITED,"4,502.40",20/02/2017
Commercial,Customer Support Group,Postage,60071827,ROYAL MAIL GROUP LIMITED,"4,421.06",08/02/2017
Commercial,Customer Support Group,Postage,60072224,ROYAL MAIL GROUP LIMITED,152.47,14/02/2017
Commercial,Customer Support Group,Professional Services,60070021,EQUITA LTD HIGH COURT ENFORCEMENT,141.00,07/02/2017
Commercial,Customer Support Group,Professional Services,60071440,KPMG FEES ACCOUNT,875.00,06/02/2017
Commercial,Customer Support Group,Publications,10013614,TV LICENSING,145.50,01/02/2017
Commercial,Customer Support Group,Rents,60073413,MIDDLESEX UNIVERSITY,"207,588.20",24/02/2017
Commercial,Customer Support Group,Rubbish Collection,60072537,PREMIER SHREDDING,57.00,16/02/2017
Commercial,Customer Support Group,Rubbish Collection,60072557,PREMIER SHREDDING,50.00,16/02/2017
Commercial,Customer Support Group,Service Charges,60070126,BARNET & SOUTHGATE COLLEGE,"18,827.21",16/02/2017
Commercial,Customer Support Group,Service Charges,60070152,BARNET & SOUTHGATE COLLEGE,"18,827.21",17/02/2017
Commercial,Customer Support Group,Service Charges,60072763,MIDDLESEX UNIVERSITY,"63,161.79",20/02/2017
Commercial,Customer Support Group,Subscriptions,60073609,PUBLIC SECTOR CONNECT LTD,50.00,28/02/2017
Commercial,Customer Support Group,Training,60071110,SKILLS TRAINING CENTRE LTD,100.00,16/02/2017
Commercial,Customer Support Group,Ttl IT & Comms,60072666,TELEFONICA UK LTD,"13,754.80",22/02/2017
Commercial,Customer Support Group,Ttl IT & Comms,60072855,TELEFONICA UK LTD,211.20,21/02/2017
Commercial,Customer Support Group,Ttl IT & Comms,80008172,VODAFONE LTD (BILLS ONLY),"4,929.72",13/02/2017
Commercial,Customer Support Group,Water Services,60071186,AFFINITY WATER LIMITED,281.77,07/02/2017
Commercial,Customer Support Group,Water Services,60071388,AFFINITY WATER LIMITED,450.93,16/02/2017
Commercial,Customer Support Group,Water Services,60071174,BRITA WATER FILTER SYSTEMS LIMITED,177.07,01/02/2017
Commercial,Customer Support Group,Water Services,60071696,THAMES WATER UTILITIES LIMITED,460.09,08/02/2017
Commercial,Housing Needs Resources,Legal and Court Fees,60070925,THE BARNETGROUP LIMITED,"10,800.00",17/02/2017
Commercial,Housing Needs Resources,Legal and Court Fees,60071938,THE BARNETGROUP LIMITED,"15,000.00",23/02/2017
Commercial,Housing Needs Resources,Miscellaneous Expenses,60073054,THE BARNETGROUP LIMITED,"36,443.17",27/02/2017
Commercial,Housing Needs Resources,Other Services,60070791,THE BARNETGROUP LIMITED,"14,552.44",17/02/2017
Commercial,Housing Needs Resources,Private Contractors - Third Pa,60070787,THE BARNETGROUP LIMITED,"162,990.03",08/02/2017
Commercial,Housing Needs Resources,Private Contractors - Third Pa,60070823,THE BARNETGROUP LIMITED,"180,673.79",08/02/2017
Commercial,Housing Needs Resources,Private Contractors - Third Pa,60073127,THE BARNETGROUP LIMITED,"1,603,823.29",27/02/2017
Commercial,HRA,Agency/Interim Non Hays,60070718,CHILD'S HILL BAPTIST CHURCH,360.00,06/02/2017
Commercial,HRA,Consultants Fees,60070111,PRIORITY ESTATES PROJECT LTD,"1,885.95",08/02/2017
Commercial,HRA,Consultants Fees,60071968,PRIORITY ESTATES PROJECT LTD,"1,746.25",14/02/2017
Commercial,HRA,Consultants Fees,60070318,STRATEGIC URBAN FUTURES LIMITED,399.98,14/02/2017
Commercial,HRA,Consultants Fees,60071436,TMP (UK) LTD,239.58,06/02/2017
Commercial,HRA,Other Services,60070806,THE BARNETGROUP LIMITED,"153,468.74",08/02/2017
Commercial,HRA,Other Services,60073052,THE BARNETGROUP LIMITED,"72,526.00",27/02/2017
Commercial,HRA,Other Services,60073068,THE BARNETGROUP LIMITED,"346,662.50",27/02/2017
Commercial,HRA,Other Services,60073123,THE BARNETGROUP LIMITED,"2,175,334.34",27/02/2017
Commercial,HRA,Water Services,10012982,THAMES WATER UTILITIES LIMITED,800.85,16/02/2017
Commercial,HRA,Water Services,10013610,THAMES WATER UTILITIES LIMITED,"31,820.31",02/02/2017
Commercial,HRA,Water Services,10013611,THAMES WATER UTILITIES LIMITED,"238,449.69",01/02/2017
Commercial,Parking & Infrastructure,Electricity,60070929,BARNET LIGHTING SERVICES LTD,"538,325.09",02/02/2017
Commercial,Parking & Infrastructure,Electricity,60071559,BARNET LIGHTING SERVICES LTD,"112,829.58",20/02/2017
Commercial,Parking & Infrastructure,Equipment and Materials Purcha,60071336,AMARI PLASTICS LTD,137.98,20/02/2017
Commercial,Parking & Infrastructure,Equipment and Materials Purcha,60072017,ASD METAL SERVICES,691.20,13/02/2017
Commercial,Parking & Infrastructure,Equipment and Materials Purcha,60068036,GREENHAM TRADING LIMITED,670.74,20/02/2017
Commercial,Parking & Infrastructure,Equipment and Materials Purcha,60070888,GREENHAM TRADING LIMITED,840.06,21/02/2017
Commercial,Parking & Infrastructure,Equipment and Materials Purcha,60071053,GREENHAM TRADING LIMITED,78.36,23/02/2017
Commercial,Parking & Infrastructure,Equipment and Materials Purcha,60073590,INSTARMAC GROUP PLC,"4,091.36",28/02/2017
Commercial,Parking & Infrastructure,Equipment and Materials Purcha,60071070,KLOECKNER METALS UK,127.20,09/02/2017
Commercial,Parking & Infrastructure,Equipment and Materials Purcha,60071138,LAFARGE TARMAC TRADING LIMITED,128.83,17/02/2017
Commercial,Parking & Infrastructure,Equipment and Materials Purcha,60072029,LAFARGE TARMAC TRADING LIMITED,99.55,16/02/2017
Commercial,Parking & Infrastructure,Equipment and Materials Purcha,60072037,LAFARGE TARMAC TRADING LIMITED,122.98,28/02/2017
Commercial,Parking & Infrastructure,Equipment and Materials Purcha,60072117,LAFARGE TARMAC TRADING LIMITED,220.58,16/02/2017
Commercial,Parking & Infrastructure,Equipment and Materials Purcha,60072118,LAFARGE TARMAC TRADING LIMITED,132.74,16/02/2017
Commercial,Parking & Infrastructure,Equipment and Materials Purcha,60070378,SPANDEX LIMITED,168.00,09/02/2017
Commercial,Parking & Infrastructure,Equipment and Materials Purcha,60070055,VAISALA LTD,360.00,02/02/2017
Commercial,Parking & Infrastructure,Equipment and Materials Purcha,60071177,W. FAYERS & SONS,132.00,17/02/2017
Commercial,Parking & Infrastructure,Fees and Charges,60070067,REDCORN LTD,285.00,02/02/2017
Commercial,Parking & Infrastructure,Other Services,60070043,LONDON COUNCILS,"25,592.96",02/02/2017
Commercial,Parking & Infrastructure,Other Services,60072111,LONDON COUNCILS,"27,272.00",23/02/2017
Commercial,Parking & Infrastructure,Other Services,60073502,NSL LTD,"1,450.65",27/02/2017
Commercial,Parking & Infrastructure,Other Services,60070395,PARKEON LIMITED,"2,039.92",15/02/2017
Commercial,Parking & Infrastructure,Other Services,60070399,PARKEON LIMITED,810.00,15/02/2017
Commercial,Parking & Infrastructure,Professional Services,60073510,NSL LTD,"40,289.39",27/02/2017
Commercial,Parking & Infrastructure,Professional Services,60073533,NSL LTD,"1,308.62",27/02/2017
Commercial,Parking & Infrastructure,Professional Services,60073538,NSL LTD,"287,741.39",27/02/2017
Commercial,Parking & Infrastructure,Software Licences & Support,60073490,NSL LTD,"32,545.80",27/02/2017
Commercial,Parking & Infrastructure,Software Licences & Support,60073536,NSL LTD,"7,735.42",27/02/2017
Commercial,Parking & Infrastructure,Travelling Expenses,60070264,LONDON BUSES SERVICES LIMITED,21.00,09/02/2017
Commercial,Parking & Infrastructure,Water Services,60073112,ANGEL SPRINGS LTD,15.50,23/02/2017
Commercial,Public Health,Employee Expenses,10013633,CENTRAL LONDONCOMMUNITY HEALTHCARE,"37,500.00",17/02/2017
Commercial,Public Health,Employee Expenses,10013642,CENTRAL LONDONCOMMUNITY HEALTHCARE,"37,500.00",17/02/2017
Commercial,Public Health,Employee Expenses,10013643,CENTRAL LONDONCOMMUNITY HEALTHCARE,"37,500.00",17/02/2017
Commercial,Public Health,Employee Expenses,60073259,CENTRAL LONDONCOMMUNITY HEALTHCARE,"37,500.00",27/02/2017
Commercial,Public Health,Health authorities - Third Par,60067290,LONDON BOROUGH OF HARROW,"1,816,355.00",10/02/2017
Commercial,Public Health,Health authorities - Third Par,60071261,LONDON BOROUGH OF HARROW,"2,844,592.00",02/02/2017
Commercial,Public Health,Other Transfer Payments to Soc,60071002,CENTRAL LONDONCOMMUNITY HEALTHCARE,"356,000.00",08/02/2017
Commercial,Public Health,Other Transfer Payments to Soc,60071011,CENTRAL LONDONCOMMUNITY HEALTHCARE,"16,667.00",20/02/2017
Commercial,Public Health,Professional Services,60070985,CENTRAL LONDONCOMMUNITY HEALTHCARE,"4,917.00",20/02/2017
Commercial,Public Health,Professional Services,60071008,CENTRAL LONDONCOMMUNITY HEALTHCARE,"85,834.00",20/02/2017
Commercial,Public Health,Professional Services,60071012,CENTRAL LONDONCOMMUNITY HEALTHCARE,"9,583.00",20/02/2017
Commercial,Regional Enterprise,Advertising,60065311,TMP (UK) LTD,158.40,15/02/2017
Commercial,Regional Enterprise,Advertising,60071560,TMP (UK) LTD,369.58,14/02/2017
Commercial,Regional Enterprise,Advertising,60072049,TMP (UK) LTD,137.02,14/02/2017
Commercial,Regional Enterprise,Advertising,60072127,TMP (UK) LTD,144.16,14/02/2017
Commercial,Regional Enterprise,Advertising,60072149,TMP (UK) LTD,360.59,14/02/2017
Commercial,Regional Enterprise,Advertising,60072173,TMP (UK) LTD,57.02,14/02/2017
Commercial,Regional Enterprise,Advertising,60072196,TMP (UK) LTD,112.08,27/02/2017
Commercial,Regional Enterprise,Advertising,60072200,TMP (UK) LTD,151.28,14/02/2017
Commercial,Regional Enterprise,Advertising,60072201,TMP (UK) LTD,144.16,14/02/2017
Commercial,Regional Enterprise,Advertising,60072212,TMP (UK) LTD,122.77,23/02/2017
Commercial,Regional Enterprise,Advertising,60072221,TMP (UK) LTD,428.30,14/02/2017
Commercial,Regional Enterprise,Advertising,60072234,TMP (UK) LTD,112.08,16/02/2017
Commercial,Regional Enterprise,Advertising,60072235,TMP (UK) LTD,137.02,14/02/2017
Commercial,Regional Enterprise,Advertising,60072240,TMP (UK) LTD,151.28,14/02/2017
Commercial,Regional Enterprise,Advertising,60072249,TMP (UK) LTD,455.03,14/02/2017
Commercial,Regional Enterprise,Advertising,60072253,TMP (UK) LTD,32.08,16/02/2017
Commercial,Regional Enterprise,Advertising,60072254,TMP (UK) LTD,137.02,14/02/2017
Commercial,Regional Enterprise,Advertising,60072261,TMP (UK) LTD,401.57,14/02/2017
Commercial,Regional Enterprise,Advertising,60072270,TMP (UK) LTD,399.79,14/02/2017
Commercial,Regional Enterprise,Advertising,60072304,TMP (UK) LTD,112.08,27/02/2017
Commercial,Regional Enterprise,Advertising,60072312,TMP (UK) LTD,115.64,27/02/2017
Commercial,Regional Enterprise,Advertising,60072329,TMP (UK) LTD,42.77,24/02/2017
Commercial,Regional Enterprise,Advertising,60072378,TMP (UK) LTD,112.08,27/02/2017
Commercial,Regional Enterprise,Advertising,60072380,TMP (UK) LTD,32.08,27/02/2017
Commercial,Regional Enterprise,Advertising,60072512,TMP (UK) LTD,355.33,16/02/2017
Commercial,Regional Enterprise,Advertising,60073047,TMP (UK) LTD,32.08,27/02/2017
Commercial,Regional Enterprise,Advertising,60073058,TMP (UK) LTD,35.64,27/02/2017
Commercial,Regional Enterprise,Advertising,60073060,TMP (UK) LTD,32.08,27/02/2017
Commercial,Regional Enterprise,Cleaning and domestic material,60069682,CHURCHILL CONTRACT SERVICES,488.56,20/02/2017
Commercial,Regional Enterprise,Consultants Fees,60072136,AECOM INFRASTRUCTURE & ENVIRONMENT UK LT,"18,125.00",13/02/2017
Commercial,Regional Enterprise,Consultants Fees,60072139,AECOM INFRASTRUCTURE & ENVIRONMENT UK LT,"10,260.00",13/02/2017
Commercial,Regional Enterprise,Consultants Fees,60070644,GOWLING WLG,"12,978.35",06/02/2017
Commercial,Regional Enterprise,Consultants Fees,60073556,GOWLING WLG,"1,000.00",27/02/2017
Commercial,Regional Enterprise,Consultants Fees,60068336,MACLEOD SIMMONDS LTD,"17,820.00",02/02/2017
Commercial,Regional Enterprise,Consultants Fees,60071099,NETWORK RAIL INFRASTRUCTURE LTD,"32,520.99",22/02/2017
Commercial,Regional Enterprise,CSG Services Contract Payment,10013662,RE (REGIONAL ENTERPRISE) LIMITED,"167,500.00",28/02/2017
Commercial,Regional Enterprise,Electricity,60071672,BARNET LIGHTING SERVICES LTD,"179,991.35",07/02/2017
Commercial,Regional Enterprise,Grant Payments,80008600,ACCESS AUTOMATION,"1,625.00",24/02/2017
Commercial,Regional Enterprise,Grant Payments,80008518,AMWELL CONSTRUCTION LTD,"2,135.00",23/02/2017
Commercial,Regional Enterprise,Grant Payments,80008438,ARTHUR J. FERRYMAN ASSOCIATES,"1,118.40",24/02/2017
Commercial,Regional Enterprise,Grant Payments,80008557,ARTHUR J. FERRYMAN ASSOCIATES,715.20,24/02/2017
Commercial,Regional Enterprise,Grant Payments,80008437,BG BUILDING SOLUTIONS LTD,"9,786.00",24/02/2017
Commercial,Regional Enterprise,Grant Payments,80008288,CAPITAL  LOCKSMITHS,300.00,15/02/2017
Commercial,Regional Enterprise,Grant Payments,80008289,CAPITAL  LOCKSMITHS,257.50,15/02/2017
Commercial,Regional Enterprise,Grant Payments,80008291,CAPITAL  LOCKSMITHS,80.00,15/02/2017
Commercial,Regional Enterprise,Grant Payments,80008293,CAPITAL  LOCKSMITHS,198.00,15/02/2017
Commercial,Regional Enterprise,Grant Payments,80008294,CAPITAL  LOCKSMITHS,80.00,15/02/2017
Commercial,Regional Enterprise,Grant Payments,80008327,CAPITAL  LOCKSMITHS,279.00,16/02/2017
Commercial,Regional Enterprise,Grant Payments,80008328,CAPITAL  LOCKSMITHS,80.00,16/02/2017
Commercial,Regional Enterprise,Grant Payments,80008119,DP BUILDERS DISABLED ADAPTATIONS,"5,281.00",08/02/2017
Commercial,Regional Enterprise,Grant Payments,80008357,DP BUILDERS DISABLED ADAPTATIONS,"3,720.00",16/02/2017
Commercial,Regional Enterprise,Grant Payments,80007713,FREEWAY LIFT SERVICES LIMITED,"7,028.00",02/02/2017
Commercial,Regional Enterprise,Grant Payments,80008416,H D PROPERTY SERVICES LTD,"9,667.00",16/02/2017
Commercial,Regional Enterprise,Grant Payments,80008579,H D PROPERTY SERVICES LTD,"5,127.00",24/02/2017
Commercial,Regional Enterprise,Grant Payments,80008428,REDACTED - PERSONAL DATA,"3,622.50",16/02/2017
Commercial,Regional Enterprise,Grant Payments,80008452,REDACTED - PERSONAL DATA,"5,108.00",17/02/2017
Commercial,Regional Enterprise,Grant Payments,80008464,REDACTED - PERSONAL DATA,"2,257.50",17/02/2017
Commercial,Regional Enterprise,Grant Payments,80008477,REDACTED - PERSONAL DATA,"2,100.00",20/02/2017
Commercial,Regional Enterprise,Grant Payments,80008554,REDACTED - PERSONAL DATA,"2,840.00",24/02/2017
Commercial,Regional Enterprise,Grant Payments,80008565,REDACTED - PERSONAL DATA,"5,455.00",24/02/2017
Commercial,Regional Enterprise,Grant Payments,80008435,SEVO LTD,"21,726.00",24/02/2017
Commercial,Regional Enterprise,Grant Payments,80008146,SOUTH HERTFORDSHIRE,"5,725.00",01/02/2017
Commercial,Regional Enterprise,Grant Payments,80008179,SOUTH HERTFORDSHIRE,"1,781.00",06/02/2017
Commercial,Regional Enterprise,Grant Payments,80008278,SOUTH HERTFORDSHIRE,973.00,10/02/2017
Commercial,Regional Enterprise,Grant Payments,80008192,STANNAH STAIRLIFTS LTD,817.84,06/02/2017
Commercial,Regional Enterprise,Grant Payments,80008460,STANNAH STAIRLIFTS LTD,"2,775.00",17/02/2017
Commercial,Regional Enterprise,Grant Payments,80008574,STANNAH STAIRLIFTS LTD,"6,375.00",24/02/2017
Commercial,Regional Enterprise,Other Services,60070648,AFFINITY WATER LIMITED,176.96,02/02/2017
Commercial,Regional Enterprise,Other Services,60072020,AFFINITY WATER LIMITED,50.00,23/02/2017
Commercial,Regional Enterprise,Other Services,60072077,AFFINITY WATER LIMITED,50.00,23/02/2017
Commercial,Regional Enterprise,Other Services,60072525,AFFINITY WATER LIMITED,47.77,17/02/2017
Commercial,Regional Enterprise,Other Services,60072314,ARTS DEPOT PRODUCTIONS LTD,"2,815.60",15/02/2017
Commercial,Regional Enterprise,Other Services,60072419,ARTS DEPOT PRODUCTIONS LTD,"1,894.40",15/02/2017
Commercial,Regional Enterprise,Other Services,60072080,BRITISH TELECOMMUNICATIONS PLC,"2,107.20",27/02/2017
Commercial,Regional Enterprise,Other Services,60072368,BRITISH TELECOMMUNICATIONS PLC,"12,139.11",27/02/2017
Commercial,Regional Enterprise,Other Services,60057933,CONWAY AECOM LTD,593.22,23/02/2017
Commercial,Regional Enterprise,Other Services,60070558,CONWAY AECOM LTD,876.07,01/02/2017
Commercial,Regional Enterprise,Other Services,60070560,CONWAY AECOM LTD,949.50,01/02/2017
Commercial,Regional Enterprise,Other Services,60070569,CONWAY AECOM LTD,"1,519.20",07/02/2017
Commercial,Regional Enterprise,Other Services,60070571,CONWAY AECOM LTD,"3,646.08",01/02/2017
Commercial,Regional Enterprise,Other Services,60070585,CONWAY AECOM LTD,"29,993.51",01/02/2017
Commercial,Regional Enterprise,Other Services,60070587,CONWAY AECOM LTD,554.53,01/02/2017
Commercial,Regional Enterprise,Other Services,60070592,CONWAY AECOM LTD,"1,590.10",01/02/2017
Commercial,Regional Enterprise,Other Services,60070593,CONWAY AECOM LTD,"1,316.64",07/02/2017
Commercial,Regional Enterprise,Other Services,60070597,CONWAY AECOM LTD,746.94,01/02/2017
Commercial,Regional Enterprise,Other Services,60070600,CONWAY AECOM LTD,"3,659.56",01/02/2017
Commercial,Regional Enterprise,Other Services,60070601,CONWAY AECOM LTD,"1,329.30",01/02/2017
Commercial,Regional Enterprise,Other Services,60070602,CONWAY AECOM LTD,"18,291.06",01/02/2017
Commercial,Regional Enterprise,Other Services,60070610,CONWAY AECOM LTD,"1,164.72",01/02/2017
Commercial,Regional Enterprise,Other Services,60070612,CONWAY AECOM LTD,"7,937.89",01/02/2017
Commercial,Regional Enterprise,Other Services,60070614,CONWAY AECOM LTD,"10,750.79",07/02/2017
Commercial,Regional Enterprise,Other Services,60070635,CONWAY AECOM LTD,"31,590.81",01/02/2017
Commercial,Regional Enterprise,Other Services,60070637,CONWAY AECOM LTD,778.59,01/02/2017
Commercial,Regional Enterprise,Other Services,60070638,CONWAY AECOM LTD,"5,771.19",01/02/2017
Commercial,Regional Enterprise,Other Services,60070642,CONWAY AECOM LTD,"8,451.81",01/02/2017
Commercial,Regional Enterprise,Other Services,60070649,CONWAY AECOM LTD,"27,387.91",01/02/2017
Commercial,Regional Enterprise,Other Services,60070664,CONWAY AECOM LTD,"36,646.94",01/02/2017
Commercial,Regional Enterprise,Other Services,60070668,CONWAY AECOM LTD,949.50,01/02/2017
Commercial,Regional Enterprise,Other Services,60070669,CONWAY AECOM LTD,"13,882.38",02/02/2017
Commercial,Regional Enterprise,Other Services,60070672,CONWAY AECOM LTD,"7,632.89",01/02/2017
Commercial,Regional Enterprise,Other Services,60070680,CONWAY AECOM LTD,"28,880.66",01/02/2017
Commercial,Regional Enterprise,Other Services,60070683,CONWAY AECOM LTD,"1,012.80",01/02/2017
Commercial,Regional Enterprise,Other Services,60070684,CONWAY AECOM LTD,683.64,01/02/2017
Commercial,Regional Enterprise,Other Services,60070691,CONWAY AECOM LTD,313.34,01/02/2017
Commercial,Regional Enterprise,Other Services,60070699,CONWAY AECOM LTD,"1,291.32",01/02/2017
Commercial,Regional Enterprise,Other Services,60070700,CONWAY AECOM LTD,759.60,01/02/2017
Commercial,Regional Enterprise,Other Services,60070701,CONWAY AECOM LTD,664.65,01/02/2017
Commercial,Regional Enterprise,Other Services,60070703,CONWAY AECOM LTD,"5,827.58",01/02/2017
Commercial,Regional Enterprise,Other Services,60070707,CONWAY AECOM LTD,835.56,07/02/2017
Commercial,Regional Enterprise,Other Services,60070722,CONWAY AECOM LTD,"1,202.70",07/02/2017
Commercial,Regional Enterprise,Other Services,60070725,CONWAY AECOM LTD,465.26,07/02/2017
Commercial,Regional Enterprise,Other Services,60070730,CONWAY AECOM LTD,525.39,07/02/2017
Commercial,Regional Enterprise,Other Services,60070732,CONWAY AECOM LTD,700.11,07/02/2017
Commercial,Regional Enterprise,Other Services,60070741,CONWAY AECOM LTD,664.65,07/02/2017
Commercial,Regional Enterprise,Other Services,60070774,CONWAY AECOM LTD,379.80,07/02/2017
Commercial,Regional Enterprise,Other Services,60070778,CONWAY AECOM LTD,"19,323.32",16/02/2017
Commercial,Regional Enterprise,Other Services,60070893,CONWAY AECOM LTD,343.33,16/02/2017
Commercial,Regional Enterprise,Other Services,60070978,CONWAY AECOM LTD,"1,671.54",16/02/2017
Commercial,Regional Enterprise,Other Services,60070982,CONWAY AECOM LTD,"10,821.97",17/02/2017
Commercial,Regional Enterprise,Other Services,60070988,CONWAY AECOM LTD,"8,468.84",17/02/2017
Commercial,Regional Enterprise,Other Services,60070993,CONWAY AECOM LTD,"2,834.46",17/02/2017
Commercial,Regional Enterprise,Other Services,60070996,CONWAY AECOM LTD,273.34,17/02/2017
Commercial,Regional Enterprise,Other Services,60070999,CONWAY AECOM LTD,"14,399.03",17/02/2017
Commercial,Regional Enterprise,Other Services,60071010,CONWAY AECOM LTD,"9,620.95",17/02/2017
Commercial,Regional Enterprise,Other Services,60071046,CONWAY AECOM LTD,"32,939.36",17/02/2017
Commercial,Regional Enterprise,Other Services,60071047,CONWAY AECOM LTD,"87,908.18",17/02/2017
Commercial,Regional Enterprise,Other Services,60071049,CONWAY AECOM LTD,"38,662.47",17/02/2017
Commercial,Regional Enterprise,Other Services,60071059,CONWAY AECOM LTD,567.60,01/02/2017
Commercial,Regional Enterprise,Other Services,60071061,CONWAY AECOM LTD,"2,481.02",17/02/2017
Commercial,Regional Enterprise,Other Services,60071066,CONWAY AECOM LTD,"4,132.13",01/02/2017
Commercial,Regional Enterprise,Other Services,60071069,CONWAY AECOM LTD,263.07,16/02/2017
Commercial,Regional Enterprise,Other Services,60071073,CONWAY AECOM LTD,"11,023.14",01/02/2017
Commercial,Regional Enterprise,Other Services,60071078,CONWAY AECOM LTD,"2,897.79",17/02/2017
Commercial,Regional Enterprise,Other Services,60071079,CONWAY AECOM LTD,343.33,17/02/2017
Commercial,Regional Enterprise,Other Services,60071080,CONWAY AECOM LTD,"2,735.00",17/02/2017
Commercial,Regional Enterprise,Other Services,60071088,CONWAY AECOM LTD,393.54,16/02/2017
Commercial,Regional Enterprise,Other Services,60071095,CONWAY AECOM LTD,574.21,17/02/2017
Commercial,Regional Enterprise,Other Services,60071108,CONWAY AECOM LTD,248.50,17/02/2017
Commercial,Regional Enterprise,Other Services,60071112,CONWAY AECOM LTD,775.39,17/02/2017
Commercial,Regional Enterprise,Other Services,60071124,CONWAY AECOM LTD,"15,451.66",01/02/2017
Commercial,Regional Enterprise,Other Services,60071135,CONWAY AECOM LTD,302.72,01/02/2017
Commercial,Regional Enterprise,Other Services,60071136,CONWAY AECOM LTD,"10,098.70",17/02/2017
Commercial,Regional Enterprise,Other Services,60071139,CONWAY AECOM LTD,119.36,01/02/2017
Commercial,Regional Enterprise,Other Services,60071146,CONWAY AECOM LTD,393.54,01/02/2017
Commercial,Regional Enterprise,Other Services,60071149,CONWAY AECOM LTD,"5,237.64",17/02/2017
Commercial,Regional Enterprise,Other Services,60071238,CONWAY AECOM LTD,"4,309.19",03/02/2017
Commercial,Regional Enterprise,Other Services,60071241,CONWAY AECOM LTD,"1,664.44",03/02/2017
Commercial,Regional Enterprise,Other Services,60071243,CONWAY AECOM LTD,"66,244.91",03/02/2017
Commercial,Regional Enterprise,Other Services,60071245,CONWAY AECOM LTD,812.16,23/02/2017
Commercial,Regional Enterprise,Other Services,60071249,CONWAY AECOM LTD,378.40,03/02/2017
Commercial,Regional Enterprise,Other Services,60071264,CONWAY AECOM LTD,528.89,03/02/2017
Commercial,Regional Enterprise,Other Services,60071274,CONWAY AECOM LTD,"1,756.40",03/02/2017
Commercial,Regional Enterprise,Other Services,60071277,CONWAY AECOM LTD,778.32,23/02/2017
Commercial,Regional Enterprise,Other Services,60071284,CONWAY AECOM LTD,243.62,03/02/2017
Commercial,Regional Enterprise,Other Services,60071289,CONWAY AECOM LTD,974.48,03/02/2017
Commercial,Regional Enterprise,Other Services,60071292,CONWAY AECOM LTD,"15,155.81",24/02/2017
Commercial,Regional Enterprise,Other Services,60071845,CONWAY AECOM LTD,"112,707.59",09/02/2017
Commercial,Regional Enterprise,Other Services,60071892,CONWAY AECOM LTD,780.18,09/02/2017
Commercial,Regional Enterprise,Other Services,60071908,CONWAY AECOM LTD,"22,205.40",09/02/2017
Commercial,Regional Enterprise,Other Services,60071912,CONWAY AECOM LTD,"283,367.07",09/02/2017
Commercial,Regional Enterprise,Other Services,60071929,CONWAY AECOM LTD,"49,429.20",09/02/2017
Commercial,Regional Enterprise,Other Services,60071932,CONWAY AECOM LTD,"73,864.10",09/02/2017
Commercial,Regional Enterprise,Other Services,60072002,CONWAY AECOM LTD,"90,848.00",13/02/2017
Commercial,Regional Enterprise,Other Services,60072009,CONWAY AECOM LTD,465.50,16/02/2017
Commercial,Regional Enterprise,Other Services,60072013,CONWAY AECOM LTD,"54,987.52",13/02/2017
Commercial,Regional Enterprise,Other Services,60072024,CONWAY AECOM LTD,"7,965.92",22/02/2017
Commercial,Regional Enterprise,Other Services,60072030,CONWAY AECOM LTD,"31,023.25",13/02/2017
Commercial,Regional Enterprise,Other Services,60072039,CONWAY AECOM LTD,"219,513.69",13/02/2017
Commercial,Regional Enterprise,Other Services,60072040,CONWAY AECOM LTD,"164,855.01",13/02/2017
Commercial,Regional Enterprise,Other Services,60072048,CONWAY AECOM LTD,"48,547.98",20/02/2017
Commercial,Regional Enterprise,Other Services,60072057,CONWAY AECOM LTD,"3,445.48",24/02/2017
Commercial,Regional Enterprise,Other Services,60072065,CONWAY AECOM LTD,534.28,16/02/2017
Commercial,Regional Enterprise,Other Services,60072072,CONWAY AECOM LTD,"32,144.77",22/02/2017
Commercial,Regional Enterprise,Other Services,60072075,CONWAY AECOM LTD,521.66,22/02/2017
Commercial,Regional Enterprise,Other Services,60072081,CONWAY AECOM LTD,"21,648.56",22/02/2017
Commercial,Regional Enterprise,Other Services,60072091,CONWAY AECOM LTD,"33,401.90",22/02/2017
Commercial,Regional Enterprise,Other Services,60072106,CONWAY AECOM LTD,"25,119.73",14/02/2017
Commercial,Regional Enterprise,Other Services,60072108,CONWAY AECOM LTD,"24,302.60",22/02/2017
Commercial,Regional Enterprise,Other Services,60072123,CONWAY AECOM LTD,"19,744.00",13/02/2017
Commercial,Regional Enterprise,Other Services,60072179,CONWAY AECOM LTD,854.55,23/02/2017
Commercial,Regional Enterprise,Other Services,60072203,CONWAY AECOM LTD,"1,519.20",23/02/2017
Commercial,Regional Enterprise,Other Services,60072252,CONWAY AECOM LTD,"1,671.12",23/02/2017
Commercial,Regional Enterprise,Other Services,60072272,CONWAY AECOM LTD,800.75,23/02/2017
Commercial,Regional Enterprise,Other Services,60072274,CONWAY AECOM LTD,873.54,23/02/2017
Commercial,Regional Enterprise,Other Services,60072289,CONWAY AECOM LTD,"1,439.02",23/02/2017
Commercial,Regional Enterprise,Other Services,60072295,CONWAY AECOM LTD,"1,012.80",23/02/2017
Commercial,Regional Enterprise,Other Services,60072297,CONWAY AECOM LTD,211.00,23/02/2017
Commercial,Regional Enterprise,Other Services,60072462,CONWAY AECOM LTD,"1,960.04",28/02/2017
Commercial,Regional Enterprise,Other Services,60072682,CONWAY AECOM LTD,"138,430.72",21/02/2017
Commercial,Regional Enterprise,Other Services,60072705,CONWAY AECOM LTD,"47,976.03",24/02/2017
Commercial,Regional Enterprise,Other Services,60073476,CONWAY AECOM LTD,"3,956.34",28/02/2017
Commercial,Regional Enterprise,Other Services,60073483,CONWAY AECOM LTD,244.91,28/02/2017
Commercial,Regional Enterprise,Other Services,60073491,CONWAY AECOM LTD,"5,572.83",28/02/2017
Commercial,Regional Enterprise,Other Services,60073530,CONWAY AECOM LTD,120.21,28/02/2017
Commercial,Regional Enterprise,Other Services,60073545,CONWAY AECOM LTD,699.67,28/02/2017
Commercial,Regional Enterprise,Other Services,60073560,CONWAY AECOM LTD,"31,432.19",28/02/2017
Commercial,Regional Enterprise,Other Services,60073569,CONWAY AECOM LTD,"6,646.48",28/02/2017
Commercial,Regional Enterprise,Other Services,60073589,CONWAY AECOM LTD,"7,588.97",28/02/2017
Commercial,Regional Enterprise,Other Services,60073613,CONWAY AECOM LTD,421.59,28/02/2017
Commercial,Regional Enterprise,Other Services,60073618,CONWAY AECOM LTD,"3,653.75",28/02/2017
Commercial,Regional Enterprise,Other Services,60073635,CONWAY AECOM LTD,"8,302.08",28/02/2017
Commercial,Regional Enterprise,Other Services,60073645,CONWAY AECOM LTD,"23,500.00",28/02/2017
Commercial,Regional Enterprise,Other Services,60073648,CONWAY AECOM LTD,"8,975.08",28/02/2017
Commercial,Regional Enterprise,Other Services,60073682,CONWAY AECOM LTD,"8,528.27",28/02/2017
Commercial,Regional Enterprise,Other Services,60072100,KELTIC CLOTHING,109.85,22/02/2017
Commercial,Regional Enterprise,Other Services,60072097,LONDON BUS SERVICES LTD,413.99,28/02/2017
Commercial,Regional Enterprise,Other Services,60072102,LONDON BUS SERVICES LTD,"2,643.19",28/02/2017
Commercial,Regional Enterprise,Other Services,60070581,THAMES WATER UTILITIES LIMITED,226.63,03/02/2017
Commercial,Regional Enterprise,Other Services,60072007,TRAFFIC SURVEY PARTNERS (TSP) LTD,690.00,24/02/2017
Commercial,Regional Enterprise,Other Services,60072076,TRAFFIC SURVEY PARTNERS (TSP) LTD,"1,420.00",24/02/2017
Commercial,Regional Enterprise,Other Services,60072096,TRAFFIC SURVEY PARTNERS (TSP) LTD,"3,300.00",24/02/2017
Commercial,Regional Enterprise,Other Services,60072130,TRAFFIC SURVEY PARTNERS (TSP) LTD,330.00,24/02/2017
Commercial,Regional Enterprise,Other Services,60072137,TRAFFIC SURVEY PARTNERS (TSP) LTD,125.00,24/02/2017
Commercial,Regional Enterprise,Other Services,60029508,WESTCOTEC LIMITED,"4,700.00",03/02/2017
Commercial,Regional Enterprise,RE Services Contract Payment,10013645,RE (REGIONAL ENTERPRISE) LIMITED,"-23,947.00",27/02/2017
Commercial,Regional Enterprise,RE Services Contract Payment,10013661,RE (REGIONAL ENTERPRISE) LIMITED,"639,872.57",28/02/2017
Commercial,Regional Enterprise,RE Services Contract Payment,60071246,RE (REGIONAL ENTERPRISE) LIMITED,"2,500.00",03/02/2017
Commercial,Regional Enterprise,RE Services Contract Payment,60073559,RE (REGIONAL ENTERPRISE) LIMITED,"64,844.00",27/02/2017
Commissioning,Commissioning,Agency/Interim Hays,60071404,SUE HILL RECRUITMENT & SERVICES LTD,938.16,28/02/2017
Commissioning,Commissioning,Agency/Interim Hays,60072064,SUE HILL RECRUITMENT & SERVICES LTD,938.16,14/02/2017
Commissioning,Commissioning,Agency/Interim Hays,60072090,SUE HILL RECRUITMENT & SERVICES LTD,951.19,16/02/2017
Commissioning,Commissioning,Agency/Interim Hays,60072116,SUE HILL RECRUITMENT & SERVICES LTD,742.71,14/02/2017
Commissioning,Commissioning,Building Repairs & Maintenance,60071965,MERRIDALE MIS FUEL MONITORING LTD,600.00,10/02/2017
Commissioning,Commissioning,Building Repairs & Maintenance,60067756,S W BRUCE & CO LTD,"10,334.83",28/02/2017
Commissioning,Commissioning,Building Repairs & Maintenance,60069550,S W BRUCE & CO LTD,"56,169.92",24/02/2017
Commissioning,Commissioning,Consultants Fees,60071988,ALLEN LANE LTD,"1,000.00",10/02/2017
Commissioning,Commissioning,Consultants Fees,60071062,CONSULTCIH (T/A CIH CONSULTANCY),"8,775.20",13/02/2017
Commissioning,Commissioning,Consultants Fees,60070327,GALLIFORD TRY,"775,183.75",02/02/2017
Commissioning,Commissioning,Consultants Fees,60072902,GALLIFORD TRY,"523,346.02",24/02/2017
Commissioning,Commissioning,Consultants Fees,60070321,LEIDOS INNOVATIONS UK LTD,"12,531.58",14/02/2017
Commissioning,Commissioning,Consultants Fees,60070856,PROJECT CENTRE LTD,"5,408.75",09/02/2017
Commissioning,Commissioning,Consultants Fees,60070906,PROJECT CENTRE LTD,"6,906.25",09/02/2017
Commissioning,Commissioning,Consultants Fees,60072587,PROJECT CENTRE LTD,"2,750.00",21/02/2017
Commissioning,Commissioning,Consultants Fees,60071102,SPACEHIVE LTD,"30,000.00",27/02/2017
Commissioning,Commissioning,Consultants Fees,60072433,WILLMOTT DIXON CONSTRUCTION LTD,"1,059,340.00",23/02/2017
Commissioning,Commissioning,Employee Expenses,10013637,NHS BARNET CCG,"8,040.84",16/02/2017
Commissioning,Commissioning,Employee Expenses,10013638,NHS BARNET CCG,"11,798.00",16/02/2017
Commissioning,Commissioning,Employee Expenses,10013639,NHS BARNET CCG,"6,878.55",16/02/2017
Commissioning,Commissioning,Employee Expenses,10013640,NHS BARNET CCG,"9,146.36",16/02/2017
Commissioning,Commissioning,Employee Expenses,10013641,NHS BARNET CCG,"11,612.05",16/02/2017
Commissioning,Commissioning,Grant Payments,80008158,1ST/3RD NEW BARNET SCOUT GROUP,"5,000.00",01/02/2017
Commissioning,Commissioning,Grant Payments,80008358,ACHEINU LTD,"2,400.00",17/02/2017
Commissioning,Commissioning,Grant Payments,80008312,BARNET BOROUGH ARTS COUNCIL,"1,800.00",17/02/2017
Commissioning,Commissioning,Grant Payments,80008117,MILL HILL NEIGHBOURHOOD FORUM,750.00,01/02/2017
Commissioning,Commissioning,Grant Payments,80008165,NORTH LONDON HOSPICE,"5,000.00",01/02/2017
Commissioning,Commissioning,Grant Payments,80008169,PHOENIX CANOE CLUB LIMITED,"5,000.00",02/02/2017
Commissioning,Commissioning,Grant Payments,80008149,THE BOYS CLUBHOUSE,"2,400.00",01/02/2017
Commissioning,Commissioning,Health authorities - Third Par,60071936,REDACTED - PERSONAL DATA,75.00,23/02/2017
Commissioning,Commissioning,Joint Authorities - Third Part,EBX0158891,NORTH LONDON WASTE AUTHORITY,"904,617.00",23/02/2017
Commissioning,Commissioning,Other Agencies - Third Party P,60070072,FAMILY FUND TRADING LTD,"1,668.33",07/02/2017
Commissioning,Commissioning,Other Agencies - Third Party P,60070801,FAMILY FUND TRADING LTD,352.50,17/02/2017
Commissioning,Commissioning,Other Agencies - Third Party P,60070875,FAMILY FUND TRADING LTD,"1,112.50",17/02/2017
Commissioning,Commissioning,Other Agencies - Third Party P,60070878,FAMILY FUND TRADING LTD,35.00,17/02/2017
Commissioning,Commissioning,Other Services,80008234,AGE UK,200.00,06/02/2017
Commissioning,Commissioning,Other Services,80008157,AGE UK BARENT,600.00,02/02/2017
Commissioning,Commissioning,Other Services,60071956,BLUE 9 SECURITY LIMITED,"3,394.26",13/02/2017
Commissioning,Commissioning,Other Services,60072984,DEMCO EUROPE LIMITED,"1,967.15",22/02/2017
Commissioning,Commissioning,Other Services,60070254,F G LIBRARY PRODUCTS LTD,259.00,09/02/2017
Commissioning,Commissioning,Other Services,60071349,F G LIBRARY PRODUCTS LTD,"7,195.00",28/02/2017
Commissioning,Commissioning,Other Services,60069987,GLS EDUCATIONAL SUPPLIES LTD,239.98,02/02/2017
Commissioning,Commissioning,Other Services,60071312,HARROW GREEN LTD,"5,852.25",24/02/2017
Commissioning,Commissioning,Other Services,60071368,HARROW GREEN LTD,"7,333.70",24/02/2017
Commissioning,Commissioning,Other Services,60071370,HARROW GREEN LTD,"2,615.30",24/02/2017
Commissioning,Commissioning,Other Services,80008436,LONDON SPORT,30.00,16/02/2017
Commissioning,Commissioning,Other Services,60070559,OPENING THE BOOK LTD,"1,012.50",16/02/2017
Commissioning,Commissioning,Other Services,60070177,PELL FRISCHMAN CONSULTING ENGINEERS LTD,"3,999.60",15/02/2017
Commissioning,Commissioning,Other Services,60071761,PELL FRISCHMAN CONSULTING ENGINEERS LTD,"4,651.05",24/02/2017
Commissioning,Commissioning,Other Services,60071569,THE GREEK CYPRIOT COMMUNITY TRUST,140.00,20/02/2017
Commissioning,Commissioning,Other Services,80008359,THE KINGSFUND,220.00,15/02/2017
Commissioning,Commissioning,Other Services,60071491,TMP (UK) LTD,841.00,06/02/2017
Commissioning,Commissioning,Other Services,60072003,TRAFFIC SURVEY PARTNERS (TSP) LTD,720.00,24/02/2017
Commissioning,Commissioning,Other Services,60072074,TRAFFIC SURVEY PARTNERS (TSP) LTD,250.00,24/02/2017
Commissioning,Commissioning,Other Transfer Payments to Soc,60070069,GROUNDWORK LONDON,"19,205.52",02/02/2017
Commissioning,Commissioning,Other Transfer Payments to Soc,60065875,LIQUID PERSONNEL LTD,"25,444.00",14/02/2017
Commissioning,Commissioning,Other Transfer Payments to Soc,60071316,SOLACE WOMEN'S AID,"52,461.75",06/02/2017
Commissioning,Commissioning,Other Transfer Payments to Soc,60071383,SOLACE WOMEN'S AID,"74,552.50",06/02/2017
Commissioning,Commissioning,Other Transfer Payments to Soc,60071395,SOLACE WOMEN'S AID,"52,461.75",06/02/2017
Commissioning,Commissioning,Other Transfer Payments to Soc,60071405,SOLACE WOMEN'S AID,"74,552.50",06/02/2017
Commissioning,Commissioning,Private Contractors - Third Pa,60072509,GREENWICH LEISURE LTD,"101,631.70",21/02/2017
Commissioning,Commissioning,Professional Services,10013612,GENERAL DYNAMICS INFORMATION TECHNOLOGY,"4,742.08",01/02/2017
Commissioning,Commissioning,Professional Services,10013647,GENERAL DYNAMICS INFORMATION TECHNOLOGY,"4,703.16",27/02/2017
Commissioning,Commissioning,Professional Services,60071309,HESTIA,"14,270.00",06/02/2017
Commissioning,Commissioning,Professional Services,60071353,HESTIA,"14,270.00",06/02/2017
Commissioning,Commissioning,Professional Services,60071318,LONDON SPORT TRADING LTD,"1,250.00",03/02/2017
Commissioning,Commissioning,Professional Services,60070790,ONSIDE YOUTH ZONES,"100,000.00",21/02/2017
Commissioning,Commissioning,Professional Services,60072495,QUALITY FIELDWORK & RESEARCH,"1,097.00",16/02/2017
Commissioning,Commissioning,Professional Services,60072675,QUALITY FIELDWORK & RESEARCH,"1,250.00",20/02/2017
Commissioning,Commissioning,Professional Services,60072713,QUALITY FIELDWORK & RESEARCH,"4,500.00",20/02/2017
Commissioning,Commissioning,Professional Services,60072730,QUALITY FIELDWORK & RESEARCH,637.50,17/02/2017
Commissioning,Commissioning,Professional Services,60072036,REDACTED - PERSONAL DATA,157.50,23/02/2017
Commissioning,Commissioning,Professional Services,60073073,SUBERBOS COMMUNITY CIC,"2,194.00",23/02/2017
Commissioning,Commissioning,Professional Services,80008427,TEACHERS' PENSIONS,"2,316.74",16/02/2017
Commissioning,Commissioning,Publications,60072176,ADVANCED PERSONNEL LTD,210.00,14/02/2017
Commissioning,Commissioning,Publications,10013620,LETTERBOX DISTRIBUTION.COM,"9,828.00",09/02/2017
Commissioning,Commissioning,Publications,10013621,LETTERBOX DISTRIBUTION.COM,"9,828.00",15/02/2017
Commissioning,Commissioning,Publications,10013616,MELTWATER UK LTD,"1,565.00",07/02/2017
Commissioning,Commissioning,Publications,60073469,NLA MEDIA ACCESS LTD,449.00,27/02/2017
Commissioning,Commissioning,Rents,10013615,NETWORK RAIL ACCOUNTS RECEIVABLE,"20,375.00",02/02/2017
Commissioning,Commissioning,Rents,60049793,NETWORK RAIL ACCOUNTS RECEIVABLE,"-18,292.39",02/02/2017
Commissioning,Commissioning,Rents,60073632,NETWORK RAIL ACCOUNTS RECEIVABLE,"20,375.00",28/02/2017
Commissioning,Commissioning,Software Licences & Support,60070764,DOTTED EYES LTD,"1,360.00",16/02/2017
Commissioning,Commissioning,Training,60072113,DOD'S PARLIAMENTARY,295.00,24/02/2017
Commissioning,Commissioning,Training,80007330,LOVE AND TATE PLC,265.00,23/02/2017
Commissioning,Commissioning,Transport Hire Charges,60070205,MOTT MACDONALD LTD/CAMBRIDGE EDUCATION,12.00,09/02/2017
Corporate Accounting,Corporate Accounting,Other Agencies - Third Party P,60073014,THE BARNETGROUP LIMITED,"6,000,000.00",27/02/2017
Corporate Accounting,Corporate Accounting,Other Local Authorities - Thir,EBX0156632,GREATER LONDON AUTHORITY,"1,521,304.00",10/02/2017
Corporate Accounting,Corporate Accounting,Other Local Authorities - Thir,EBX0157615,GREATER LONDON AUTHORITY,"230,277.00",20/02/2017
Corporate Accounting,Corporate Accounting,Other Transfer Payments to Soc,60071539,CITIBANK NA LONDON,107.90,07/02/2017
Corporate Accounting,Corporate Accounting,Other Transfer Payments to Soc,60071553,CITIBANK NA LONDON,595.62,07/02/2017
Corporate Accounting,Corporate Accounting,Other Transfer Payments to Soc,60071585,CITIBANK NA LONDON,100.00,16/02/2017
Corporate Accounting,Corporate Accounting,Other Transfer Payments to Soc,60071602,CITIBANK NA LONDON,580.36,07/02/2017
Corporate Accounting,Corporate Accounting,Other Transfer Payments to Soc,60071607,CITIBANK NA LONDON,"1,437.86",07/02/2017
Corporate Accounting,Corporate Accounting,Other Transfer Payments to Soc,60071609,CITIBANK NA LONDON,360.00,07/02/2017
Corporate Accounting,Corporate Accounting,Other Transfer Payments to Soc,60071625,CITIBANK NA LONDON,"1,241.50",07/02/2017
Corporate Accounting,Corporate Accounting,Other Transfer Payments to Soc,60071651,CITIBANK NA LONDON,241.40,07/02/2017
Corporate Accounting,Corporate Accounting,Other Transfer Payments to Soc,60071665,CITIBANK NA LONDON,766.40,07/02/2017
Corporate Accounting,Corporate Accounting,Other Transfer Payments to Soc,60071685,CITIBANK NA LONDON,521.06,20/02/2017
Corporate Accounting,Corporate Accounting,Other Transfer Payments to Soc,60071840,CITIBANK NA LONDON,"2,415.50",10/02/2017
Corporate Accounting,Corporate Accounting,Other Transfer Payments to Soc,60071849,CITIBANK NA LONDON,57.90,10/02/2017
Corporate Accounting,Corporate Accounting,Other Transfer Payments to Soc,60071862,CITIBANK NA LONDON,200.00,10/02/2017
Corporate Accounting,Corporate Accounting,Other Transfer Payments to Soc,60071864,CITIBANK NA LONDON,511.40,10/02/2017
Corporate Accounting,Corporate Accounting,Other Transfer Payments to Soc,60071899,CITIBANK NA LONDON,"3,200.80",10/02/2017
Corporate Accounting,Corporate Accounting,Other Transfer Payments to Soc,60071900,CITIBANK NA LONDON,50.00,10/02/2017
Corporate Accounting,Corporate Accounting,Other Transfer Payments to Soc,60071906,CITIBANK NA LONDON,165.10,10/02/2017
Corporate Accounting,Corporate Accounting,Other Transfer Payments to Soc,60071916,CITIBANK NA LONDON,57.90,10/02/2017
Corporate Accounting,Corporate Accounting,Other Transfer Payments to Soc,60072004,CITIBANK NA LONDON,770.00,21/02/2017
Corporate Accounting,Corporate Accounting,Other Transfer Payments to Soc,60072010,CITIBANK NA LONDON,127.90,14/02/2017
Corporate Accounting,Corporate Accounting,Other Transfer Payments to Soc,60072093,CITIBANK NA LONDON,552.69,14/02/2017
Corporate Accounting,Corporate Accounting,Other Transfer Payments to Soc,60072098,CITIBANK NA LONDON,70.00,14/02/2017
Corporate Accounting,Corporate Accounting,Other Transfer Payments to Soc,60072114,CITIBANK NA LONDON,"1,070.00",14/02/2017
Corporate Accounting,Corporate Accounting,Other Transfer Payments to Soc,60072897,CITIBANK NA LONDON,724.39,21/02/2017
Corporate Accounting,Corporate Accounting,Other Transfer Payments to Soc,60072921,CITIBANK NA LONDON,313.80,21/02/2017
Corporate Accounting,Corporate Accounting,Other Transfer Payments to Soc,60072963,CITIBANK NA LONDON,50.00,21/02/2017
Corporate Accounting,Corporate Accounting,Other Transfer Payments to Soc,60072978,CITIBANK NA LONDON,"1,038.20",21/02/2017
Delivery Units,Adults and Communities,Advertising,60065319,TMP (UK) LTD,557.00,02/02/2017
Delivery Units,Adults and Communities,Advertising,60068324,TMP (UK) LTD,752.00,21/02/2017
Delivery Units,Adults and Communities,Advertising,60068834,TMP (UK) LTD,841.00,06/02/2017
Delivery Units,Adults and Communities,Capital Construction and Works,60071460,QUANTUM GEOTECHNICAL LTD,"23,314.03",28/02/2017
Delivery Units,Adults and Communities,Capital Construction and Works,60072187,THAMES WATER UTILITIES LIMITED,398.00,22/02/2017
Delivery Units,Adults and Communities,Capital Construction and Works,60072211,THAMES WATER UTILITIES LIMITED,398.00,21/02/2017
Delivery Units,Adults and Communities,Capital Construction and Works,60072879,THAMES WATER UTILITIES LIMITED,398.00,21/02/2017
Delivery Units,Adults and Communities,Consultants Fees,60070647,BARNET CITIZENS ADVICE BUREAU,"84,705.00",01/02/2017
Delivery Units,Adults and Communities,Consultants Fees,60071515,VOICEABILITY,"2,884.00",20/02/2017
Delivery Units,Adults and Communities,Electricity,60071371,KENT COUNTY COUNCIL (KCS),169.70,17/02/2017
Delivery Units,Adults and Communities,Employee Expenses,60065203,CENTRAL LONDONCOMMUNITY HEALTHCARE,"88,097.00",10/02/2017
Delivery Units,Adults and Communities,Employee Expenses,60067139,CENTRAL LONDONCOMMUNITY HEALTHCARE,"88,097.00",06/02/2017
Delivery Units,Adults and Communities,Employee Expenses,60070976,CENTRAL LONDONCOMMUNITY HEALTHCARE,"88,097.00",08/02/2017
Delivery Units,Adults and Communities,Equipment and Materials Purcha,60070162,BACK CARE SOLUTIONS LIMITED,666.00,08/02/2017
Delivery Units,Adults and Communities,Equipment and Materials Purcha,60070670,HANDS FREE COMPUTING LTD,350.00,02/02/2017
Delivery Units,Adults and Communities,Equipment and Materials Purcha,60071481,HANDS FREE COMPUTING LTD,125.95,06/02/2017
Delivery Units,Adults and Communities,Equipment and Materials Purcha,60070804,LANDYS CHEMIST,"3,088.57",15/02/2017
Delivery Units,Adults and Communities,Equipment and Materials Purcha,60071444,MEDEQUIP ASSISTIVE TECHNOLOGY LTD,"177,417.94",07/02/2017
Delivery Units,Adults and Communities,Equipment and Materials Purcha,60071454,MEDEQUIP ASSISTIVE TECHNOLOGY LTD,"1,058.33",07/02/2017
Delivery Units,Adults and Communities,Equipment and Materials Purcha,60071468,MEDEQUIP ASSISTIVE TECHNOLOGY LTD,444.00,07/02/2017
Delivery Units,Adults and Communities,Equipment and Materials Purcha,80007925,REDACTED - PERSONAL DATA,250.00,03/02/2017
Delivery Units,Adults and Communities,Equipment and Materials Purcha,60071496,SABEL CHEMIST,407.55,06/02/2017
Delivery Units,Adults and Communities,Food Costs,60071338,MULLER MILK & INGREDIENTS,1.62,10/02/2017
Delivery Units,Adults and Communities,Food Costs,60071339,MULLER MILK & INGREDIENTS,0.81,03/02/2017
Delivery Units,Adults and Communities,Food Costs,60071366,MULLER MILK & INGREDIENTS,1.62,17/02/2017
Delivery Units,Adults and Communities,Food Costs,60071989,MULLER MILK & INGREDIENTS,1.62,24/02/2017
Delivery Units,Adults and Communities,Gas,60071425,KENT COUNTY COUNCIL (KCS),217.87,03/02/2017
Delivery Units,Adults and Communities,I18 - Additional Grants for Sc,60071239,BEECHES HR CONSULTANCY,500.00,24/02/2017
Delivery Units,Adults and Communities,I18 - Additional Grants for Sc,60070899,KAIROS HEALTHCARE TRAINING,400.00,17/02/2017
Delivery Units,Adults and Communities,I18 - Additional Grants for Sc,60071109,KAIROS HEALTHCARE TRAINING,400.00,17/02/2017
Delivery Units,Adults and Communities,I18 - Additional Grants for Sc,60071122,KAIROS HEALTHCARE TRAINING,400.00,21/02/2017
Delivery Units,Adults and Communities,Other Agencies - Third Party P,30155395,AARANDALE LODGE,"15,042.84",23/02/2017
Delivery Units,Adults and Communities,Other Agencies - Third Party P,30155396,AARANDALE LODGE,"2,878.57",23/02/2017
Delivery Units,Adults and Communities,Other Agencies - Third Party P,30155397,AARANDALE LODGE,"2,600.00",23/02/2017
Delivery Units,Adults and Communities,Other Agencies - Third Party P,30156289,AARON COURT CARE HOME,"2,001.92",27/02/2017
Delivery Units,Adults and Communities,Other Agencies - Third Party P,30154526,ABBEY RAVENSCROFT PARK NURSING HOME,600.00,21/02/2017
Delivery Units,Adults and Communities,Other Agencies - Third Party P,30155385,ABBEY RAVENSCROFT PARK NURSING HOME,"3,255.00",23/02/2017
Delivery Units,Adults and Communities,Other Agencies - Third Party P,30155389,ABBEY RAVENSCROFT PARK NURSING HOME,"3,255.00",23/02/2017
Delivery Units,Adults and Communities,Other Agencies - Third Party P,30155390,ABBEY RAVENSCROFT PARK NURSING HOME,"2,892.86",23/02/2017
Delivery Units,Adults and Communities,Other Agencies - Third Party P,30155392,ABBEY RAVENSCROFT PARK NURSING HOME,"3,321.43",23/02/2017
Delivery Units,Adults and Communities,Other Agencies - Third Party P,30155482,ABBEY RAVENSCROFT PARK NURSING HOME,315.00,23/02/2017
Delivery Units,Adults and Communities,Other Agencies - Third Party P,30155483,ABBEY RAVENSCROFT PARK NURSING HOME,"3,255.00",23/02/2017
Delivery Units,Adults and Communities,Other Agencies - Third Party P,30155484,ABBEY RAVENSCROFT PARK NURSING HOME,"3,255.00",23/02/2017
Delivery Units,Adults and Communities,Other Agencies - Third Party P,30155485,ABBEY RAVENSCROFT PARK NURSING HOME,"3,150.00",23/02/2017
Delivery Units,Adults and Communities,Other Agencies - Third Party P,30156190,ABBEY RAVENSCROFT PARK NURSING HOME,"2,800.00",27/02/2017
Delivery Units,Adults and Communities,Other Agencies - Third Party P,30156191,ABBEY RAVENSCROFT PARK NURSING HOME,"2,940.00",27/02/2017
Delivery Units,Adults and Communities,Other Agencies - Third Party P,30156192,ABBEY RAVENSCROFT PARK NURSING HOME,"2,940.00",27/02/2017
Delivery Units,Adults and Communities,Other Agencies - Third Party P,30156193,ABBEY RAVENSCROFT PARK NURSING HOME,"2,518.48",27/02/2017
Delivery Units,Adults and Communities,Other Agencies - Third Party P,30156194,ABBEY RAVENSCROFT PARK NURSING HOME,"2,518.48",27/02/2017
Delivery Units,Adults and Communities,Other Agencies - Third Party P,30156195,ABBEY RAVENSCROFT PARK NURSING HOME,"2,518.48",27/02/2017
Delivery Units,Adults and Communities,Other Agencies - Third Party P,30156196,ABBEY RAVENSCROFT PARK NURSING HOME,"2,518.48",27/02/2017
Delivery Units,Adults and Communities,Other Agencies - Third Party P,30156197,ABBEY RAVENSCROFT PARK NURSING HOME,"2,940.00",27/02/2017
Delivery Units,Adults and Communities,Other Agencies - Third Party P,30156198,ABBEY RAVENSCROFT PARK NURSING HOME,"2,940.00",27/02/2017
Delivery Units,Adults and Communities,Other Agencies - Third Party P,30156199,ABBEY RAVENSCROFT PARK NURSING HOME,"3,200.00",27/02/2017
Delivery Units,Adults and Communities,Other Agencies - Third Party P,30156200,ABBEY RAVENSCROFT PARK NURSING HOME,"2,940.00",27/02/2017
Delivery Units,Adults and Communities,Other Agencies - Third Party P,30156201,ABBEY RAVENSCROFT PARK NURSING HOME,"2,518.48",27/02/2017
Delivery Units,Adults and Communities,Other Agencies - Third Party P,30156202,ABBEY RAVENSCROFT PARK NURSING HOME,"2,800.00",27/02/2017
Delivery Units,Adults and Communities,Other Agencies - Third Party P,30156203,ABBEY RAVENSCROFT PARK NURSING HOME,"2,518.48",27/02/2017
Delivery Units,Adults and Communities,Other Agencies - Third Party P,30156204,ABBEY RAVENSCROFT PARK NURSING HOME,"2,940.00",27/02/2017
Delivery Units,Adults and Communities,Other Agencies - Third Party P,30156205,ABBEY RAVENSCROFT PARK NURSING HOME,"2,940.00",27/02/2017
Delivery Units,Adults and Communities,Other Agencies - Third Party P,30156206,ABBEY RAVENSCROFT PARK NURSING HOME,"2,518.48",27/02/2017
Delivery Units,Adults and Communities,Other Agencies - Third Party P,30156207,ABBEY RAVENSCROFT PARK NURSING HOME,"2,518.48",27/02/2017
Delivery Units,Adults and Communities,Other Agencies - Third Party P,30156208,ABBEY RAVENSCROFT PARK NURSING HOME,"2,835.00",27/02/2017
Delivery Units,Adults and Communities,Other Agencies - Third Party P,30156209,ABBEY RAVENSCROFT PARK NURSING HOME,"2,940.00",27/02/2017
Delivery Units,Adults and Communities,Other Agencies - Third Party P,30156210,ABBEY RAVENSCROFT PARK NURSING HOME,"2,518.48",27/02/2017
Delivery Units,Adults and Communities,Other Agencies - Third Party P,30156211,ABBEY RAVENSCROFT PARK NURSING HOME,"2,273.96",27/02/2017
Delivery Units,Adults and Communities,Other Agencies - Third Party P,30156212,ABBEY RAVENSCROFT PARK NURSING HOME,"2,800.00",27/02/2017
Delivery Units,Adults and Communities,Other Agencies - Third Party P,30153206,ABOUT ME CARE & SUPPORT LTD,"1,365.84",10/02/2017
Delivery Units,Adults and Communities,Other Agencies - Third Party P,30153776,AGUDAS ISRAEL HOUSING ASSCTN LTD,"3,154.25",15/02/2017
Delivery Units,Adults and Communities,Other Agencies - Third Party P,30153777,AGUDAS ISRAEL HOUSING ASSCTN LTD,"3,281.25",15/02/2017
Delivery Units,Adults and Communities,Other Agencies - Third Party P,30153778,AGUDAS ISRAEL HOUSING ASSCTN LTD,"2,736.86",15/02/2017
Delivery Units,Adults and Communities,Other Agencies - Third Party P,30153531,ALEXANDRA HOUSE (RUNWOOD HOMES),"2,262.69",10/02/2017
Delivery Units,Adults and Communities,Other Agencies - Third Party P,30153071,ALLIED HEALTHCARE LTD,"3,167.02",08/02/2017
Delivery Units,Adults and Communities,Other Agencies - Third Party P,30153074,AN DIANDAN HOUSE,"20,034.64",08/02/2017
Delivery Units,Adults and Communities,Other Agencies - Third Party P,30153779,ANA HOMECARE LTD,314.86,15/02/2017
Delivery Units,Adults and Communities,Other Agencies - Third Party P,30153780,ANA HOMECARE LTD,367.36,15/02/2017
Delivery Units,Adults and Communities,Other Agencies - Third Party P,30153237,ANASTASIA LODGE,"3,000.00",10/02/2017
Delivery Units,Adults and Communities,Other Agencies - Third Party P,30155422,ANGEL HEALTHCARE LTD - GLENMUIR HOUSE,"2,211.72",23/02/2017
Delivery Units,Adults and Communities,Other Agencies - Third Party P,30153079,APPLE TREE COURT CARE HOME,507.91,08/02/2017
Delivery Units,Adults and Communities,Other Agencies - Third Party P,30154979,APPLE TREE COURT CARE HOME,"2,397.72",21/02/2017
Delivery Units,Adults and Communities,Other Agencies - Third Party P,30154980,APPLE TREE COURT CARE HOME,"2,019.72",21/02/2017
Delivery Units,Adults and Communities,Other Agencies - Third Party P,30154981,APPLE TREE COURT CARE HOME,"2,570.70",21/02/2017
Delivery Units,Adults and Communities,Other Agencies - Third Party P,30154982,APPLE TREE COURT CARE HOME,"2,570.70",21/02/2017
Delivery Units,Adults and Communities,Other Agencies - Third Party P,30154983,APPLE TREE COURT CARE HOME,"2,570.70",21/02/2017
Delivery Units,Adults and Communities,Other Agencies - Third Party P,30154984,APPLE TREE COURT CARE HOME,"1,542.86",21/02/2017
Delivery Units,Adults and Communities,Other Agencies - Third Party P,30154985,APPLE TREE COURT CARE HOME,"2,418.04",21/02/2017
Delivery Units,Adults and Communities,Other Agencies - Third Party P,30154986,APPLE TREE COURT CARE HOME,"2,570.70",21/02/2017
Delivery Units,Adults and Communities,Other Agencies - Third Party P,30154987,APPLE TREE COURT CARE HOME,"3,542.86",21/02/2017
Delivery Units,Adults and Communities,Other Agencies - Third Party P,30154988,APPLE TREE COURT CARE HOME,"2,397.72",21/02/2017
Delivery Units,Adults and Communities,Other Agencies - Third Party P,30156264,APPLE TREE COURT CARE HOME,"2,570.70",27/02/2017
Delivery Units,Adults and Communities,Other Agencies - Third Party P,30156265,APPLE TREE COURT CARE HOME,"2,321.92",27/02/2017
Delivery Units,Adults and Communities,Other Agencies - Third Party P,30156266,APPLE TREE COURT CARE HOME,"2,321.92",27/02/2017
Delivery Units,Adults and Communities,Other Agencies - Third Party P,30156267,APPLE TREE COURT CARE HOME,"2,321.92",27/02/2017
Delivery Units,Adults and Communities,Other Agencies - Third Party P,30156268,APPLE TREE COURT CARE HOME,"2,184.04",27/02/2017
Delivery Units,Adults and Communities,Other Agencies - Third Party P,30156269,APPLE TREE COURT CARE HOME,"2,321.92",27/02/2017
Delivery Units,Adults and Communities,Other Agencies - Third Party P,30156270,APPLE TREE COURT CARE HOME,"3,200.00",27/02/2017
Delivery Units,Adults and Communities,Other Agencies - Third Party P,30156271,APPLE TREE COURT CARE HOME,"2,165.68",27/02/2017
Delivery Units,Adults and Communities,Other Agencies - Third Party P,30152914,AREA 51 EDUCATION LTD,316.00,06/02/2017
Delivery Units,Adults and Communities,Other Agencies - Third Party P,30152915,AREA 51 EDUCATION LTD,316.00,06/02/2017
Delivery Units,Adults and Communities,Other Agencies - Third Party P,30152916,AREA 51 EDUCATION LTD,"1,027.00",06/02/2017
Delivery Units,Adults and Communities,Other Agencies - Third Party P,30152917,AREA 51 EDUCATION LTD,553.00,06/02/2017
Delivery Units,Adults and Communities,Other Agencies - Third Party P,30156276,ASH COURT CARE CENTRE,"3,764.29",27/02/2017
Delivery Units,Adults and Communities,Other Agencies - Third Party P,30156277,ASH COURT CARE CENTRE,"3,764.29",27/02/2017
Delivery Units,Adults and Communities,Other Agencies - Third Party P,30156278,ASH COURT CARE CENTRE,"3,642.86",27/02/2017
Delivery Units,Adults and Communities,Other Agencies - Third Party P,30153329,ASHFIELDS RESIDENTIAL CARE HOME,"2,448.78",10/02/2017
Delivery Units,Adults and Communities,Other Agencies - Third Party P,30153330,ASHFIELDS RESIDENTIAL CARE HOME,"2,448.78",10/02/2017
Delivery Units,Adults and Communities,Other Agencies - Third Party P,30153331,ASHFIELDS RESIDENTIAL CARE HOME,"2,448.78",10/02/2017
Delivery Units,Adults and Communities,Other Agencies - Third Party P,30153332,ASHFIELDS RESIDENTIAL CARE HOME,"2,657.14",10/02/2017
Delivery Units,Adults and Communities,Other Agencies - Third Party P,30153333,ASHFIELDS RESIDENTIAL CARE HOME,"2,448.78",10/02/2017
Delivery Units,Adults and Communities,Other Agencies - Third Party P,30153334,ASHFIELDS RESIDENTIAL CARE HOME,"2,249.27",10/02/2017
Delivery Units,Adults and Communities,Other Agencies - Third Party P,30153335,ASHFIELDS RESIDENTIAL CARE HOME,"2,448.78",10/02/2017
Delivery Units,Adults and Communities,Other Agencies - Third Party P,30153336,ASHFIELDS RESIDENTIAL CARE HOME,"2,448.78",10/02/2017
Delivery Units,Adults and Communities,Other Agencies - Third Party P,30155497,ASHFIELDS RESIDENTIAL CARE HOME,"2,211.80",23/02/2017
Delivery Units,Adults and Communities,Other Agencies - Third Party P,30155498,ASHFIELDS RESIDENTIAL CARE HOME,"2,211.80",23/02/2017
Delivery Units,Adults and Communities,Other Agencies - Third Party P,30155499,ASHFIELDS RESIDENTIAL CARE HOME,"2,031.60",23/02/2017
Delivery Units,Adults and Communities,Other Agencies - Third Party P,30153683,ASHTON LODGE CARE CENTRE,"-1,027.95",14/02/2017
Delivery Units,Adults and Communities,Other Agencies - Third Party P,30153705,ASHTON LODGE CARE CENTRE,"3,932.57",14/02/2017
Delivery Units,Adults and Communities,Other Agencies - Third Party P,30153706,ASHTON LODGE CARE CENTRE,-761.14,14/02/2017
Delivery Units,Adults and Communities,Other Agencies - Third Party P,30153829,ASHTON LODGE CARE CENTRE,"4,074.65",15/02/2017
Delivery Units,Adults and Communities,Other Agencies - Third Party P,30153864,ASHTON LODGE CARE CENTRE,"-3,157.14",15/02/2017
Delivery Units,Adults and Communities,Other Agencies - Third Party P,30156721,ASHTON LODGE CARE CENTRE,"2,398.56",28/02/2017
Delivery Units,Adults and Communities,Other Agencies - Third Party P,30156722,ASHTON LODGE CARE CENTRE,"2,398.56",28/02/2017
Delivery Units,Adults and Communities,Other Agencies - Third Party P,30156723,ASHTON LODGE CARE CENTRE,"-1,884.58",28/02/2017
Delivery Units,Adults and Communities,Other Agencies - Third Party P,30156747,ASHTON LODGE CARE CENTRE,"2,518.48",28/02/2017
Delivery Units,Adults and Communities,Other Agencies - Third Party P,30156755,ASHTON LODGE CARE CENTRE,"3,642.86",28/02/2017
Delivery Units,Adults and Communities,Other Agencies - Third Party P,30156756,ASHTON LODGE CARE CENTRE,"2,398.56",28/02/2017
Delivery Units,Adults and Communities,Other Agencies - Third Party P,30156757,ASHTON LODGE CARE CENTRE,"2,165.68",28/02/2017
Delivery Units,Adults and Communities,Other Agencies - Third Party P,30156758,ASHTON LODGE CARE CENTRE,"2,400.00",28/02/2017
Delivery Units,Adults and Communities,Other Agencies - Third Party P,30156763,ASHTON LODGE CARE CENTRE,"2,400.00",28/02/2017
Delivery Units,Adults and Communities,Other Agencies - Third Party P,30156764,ASHTON LODGE CARE CENTRE,"2,211.80",28/02/2017
Delivery Units,Adults and Communities,Other Agencies - Third Party P,30156766,ASHTON LODGE CARE CENTRE,"2,775.00",28/02/2017
Delivery Units,Adults and Communities,Other Agencies - Third Party P,30156767,ASHTON LODGE CARE CENTRE,"2,165.68",28/02/2017
Delivery Units,Adults and Communities,Other Agencies - Third Party P,30156769,ASHTON LODGE CARE CENTRE,"2,211.80",28/02/2017
Delivery Units,Adults and Communities,Other Agencies - Third Party P,30156770,ASHTON LODGE CARE CENTRE,"2,952.00",28/02/2017
Delivery Units,Adults and Communities,Other Agencies - Third Party P,30156773,ASHTON LODGE CARE CENTRE,"2,600.00",28/02/2017
Delivery Units,Adults and Communities,Other Agencies - Third Party P,30156774,ASHTON LODGE CARE CENTRE,"2,775.00",28/02/2017
Delivery Units,Adults and Communities,Other Agencies - Third Party P,30156775,ASHTON LODGE CARE CENTRE,"2,165.68",28/02/2017
Delivery Units,Adults and Communities,Other Agencies - Third Party P,30156777,ASHTON LODGE CARE CENTRE,"2,211.80",28/02/2017
Delivery Units,Adults and Communities,Other Agencies - Third Party P,30154991,ASPEN VILLAGES LTD,"3,771.43",21/02/2017
Delivery Units,Adults and Communities,Other Agencies - Third Party P,30155508,ASPEN VILLAGES LTD,"4,714.29",23/02/2017
Delivery Units,Adults and Communities,Other Agencies - Third Party P,30156295,ASPEN VILLAGES LTD,"2,001.92",27/02/2017
Delivery Units,Adults and Communities,Other Agencies - Third Party P,30156296,ASPEN VILLAGES LTD,"4,400.00",27/02/2017
Delivery Units,Adults and Communities,Other Agencies - Third Party P,30156297,ASPEN VILLAGES LTD,"3,000.00",27/02/2017
Delivery Units,Adults and Communities,Other Agencies - Third Party P,30156299,ASPEN VILLAGES LTD,"3,200.00",27/02/2017
Delivery Units,Adults and Communities,Other Agencies - Third Party P,30156300,ASPEN VILLAGES LTD,"5,400.00",27/02/2017
Delivery Units,Adults and Communities,Other Agencies - Third Party P,30156301,ASPEN VILLAGES LTD,"2,184.04",27/02/2017
Delivery Units,Adults and Communities,Other Agencies - Third Party P,30156302,ASPEN VILLAGES LTD,"4,400.00",27/02/2017
Delivery Units,Adults and Communities,Other Agencies - Third Party P,30156303,ASPEN VILLAGES LTD,"3,800.00",27/02/2017
Delivery Units,Adults and Communities,Other Agencies - Third Party P,30156304,ASPEN VILLAGES LTD,"3,200.00",27/02/2017
Delivery Units,Adults and Communities,Other Agencies - Third Party P,30156305,ASPEN VILLAGES LTD,"4,400.00",27/02/2017
Delivery Units,Adults and Communities,Other Agencies - Third Party P,30156306,ASPEN VILLAGES LTD,"3,400.00",27/02/2017
Delivery Units,Adults and Communities,Other Agencies - Third Party P,30153261,AUTUMN GARDENS,"3,160.00",10/02/2017
Delivery Units,Adults and Communities,Other Agencies - Third Party P,30153262,AUTUMN GARDENS,"4,800.00",10/02/2017
Delivery Units,Adults and Communities,Other Agencies - Third Party P,30153263,AUTUMN GARDENS,"2,880.00",10/02/2017
Delivery Units,Adults and Communities,Other Agencies - Third Party P,30153264,AUTUMN GARDENS,"2,800.00",10/02/2017
Delivery Units,Adults and Communities,Other Agencies - Third Party P,30153265,AUTUMN GARDENS,"2,184.04",10/02/2017
Delivery Units,Adults and Communities,Other Agencies - Third Party P,30153815,AUTUMN GARDENS,"4,285.71",15/02/2017
Delivery Units,Adults and Communities,Other Agencies - Third Party P,30156252,AUTUMN GARDENS,"4,800.00",27/02/2017
Delivery Units,Adults and Communities,Other Agencies - Third Party P,30156311,B & M CARE,"3,400.00",27/02/2017
Delivery Units,Adults and Communities,Other Agencies - Third Party P,30152972,BARNET MENCAP,131.60,06/02/2017
Delivery Units,Adults and Communities,Other Agencies - Third Party P,30152973,BARNET MENCAP,131.60,06/02/2017
Delivery Units,Adults and Communities,Other Agencies - Third Party P,30152974,BARNET MENCAP,131.60,06/02/2017
Delivery Units,Adults and Communities,Other Agencies - Third Party P,30153871,BARNET MENCAP,"18,197.25",15/02/2017
Delivery Units,Adults and Communities,Other Agencies - Third Party P,30154017,BARNET MENCAP,131.60,16/02/2017
Delivery Units,Adults and Communities,Other Agencies - Third Party P,30154018,BARNET MENCAP,131.60,16/02/2017
Delivery Units,Adults and Communities,Other Agencies - Third Party P,30154023,BARNET MENCAP,"-2,500.40",16/02/2017
Delivery Units,Adults and Communities,Other Agencies - Third Party P,30155523,BARNET MENCAP,393.10,23/02/2017
Delivery Units,Adults and Communities,Other Agencies - Third Party P,30155448,BAYTREE COMMUNITY CARE (LONDON) LTD,"2,610.60",23/02/2017
Delivery Units,Adults and Communities,Other Agencies - Third Party P,30155449,BAYTREE COMMUNITY CARE (LONDON) LTD,"2,426.68",23/02/2017
Delivery Units,Adults and Communities,Other Agencies - Third Party P,30155450,BAYTREE COMMUNITY CARE (LONDON) LTD,"1,880.52",23/02/2017
Delivery Units,Adults and Communities,Other Agencies - Third Party P,30155451,BAYTREE COMMUNITY CARE (LONDON) LTD,"3,196.00",23/02/2017
Delivery Units,Adults and Communities,Other Agencies - Third Party P,30153406,BLUEBIRD CARE (BARNET),684.00,10/02/2017
Delivery Units,Adults and Communities,Other Agencies - Third Party P,30153967,BLUEBIRD CARE (BARNET),672.00,16/02/2017
Delivery Units,Adults and Communities,Other Agencies - Third Party P,30153968,BLUEBIRD CARE (BARNET),294.90,16/02/2017
Delivery Units,Adults and Communities,Other Agencies - Third Party P,30153969,BLUEBIRD CARE (BARNET),583.20,16/02/2017
Delivery Units,Adults and Communities,Other Agencies - Third Party P,30153970,BLUEBIRD CARE (BARNET),"1,311.00",16/02/2017
Delivery Units,Adults and Communities,Other Agencies - Third Party P,30154227,BLUEBIRD CARE (BARNET),"1,107.00",20/02/2017
Delivery Units,Adults and Communities,Other Agencies - Third Party P,30154228,BLUEBIRD CARE (BARNET),"1,055.70",20/02/2017
Delivery Units,Adults and Communities,Other Agencies - Third Party P,30156223,BLUEBIRD CARE (BARNET),696.00,27/02/2017
Delivery Units,Adults and Communities,Other Agencies - Third Party P,30156484,BLUEBIRD CARE (BARNET),222.00,28/02/2017
Delivery Units,Adults and Communities,Other Agencies - Third Party P,30156487,BLUEBIRD CARE (BARNET),144.00,28/02/2017
Delivery Units,Adults and Communities,Other Agencies - Third Party P,30156488,BLUEBIRD CARE (BARNET),650.00,28/02/2017
Delivery Units,Adults and Communities,Other Agencies - Third Party P,30156489,BLUEBIRD CARE (BARNET),492.00,28/02/2017
Delivery Units,Adults and Communities,Other Agencies - Third Party P,30156490,BLUEBIRD CARE (BARNET),252.00,28/02/2017
Delivery Units,Adults and Communities,Other Agencies - Third Party P,30156491,BLUEBIRD CARE (BARNET),283.00,28/02/2017
Delivery Units,Adults and Communities,Other Agencies - Third Party P,30156492,BLUEBIRD CARE (BARNET),36.20,28/02/2017
Delivery Units,Adults and Communities,Other Agencies - Third Party P,30156493,BLUEBIRD CARE (BARNET),71.50,28/02/2017
Delivery Units,Adults and Communities,Other Agencies - Third Party P,30156494,BLUEBIRD CARE (BARNET),216.00,28/02/2017
Delivery Units,Adults and Communities,Other Agencies - Third Party P,30156495,BLUEBIRD CARE (BARNET),72.00,28/02/2017
Delivery Units,Adults and Communities,Other Agencies - Third Party P,30156496,BLUEBIRD CARE (BARNET),933.00,28/02/2017
Delivery Units,Adults and Communities,Other Agencies - Third Party P,30156497,BLUEBIRD CARE (BARNET),42.00,28/02/2017
Delivery Units,Adults and Communities,Other Agencies - Third Party P,30156501,BLUEBIRD CARE (BARNET),168.00,28/02/2017
Delivery Units,Adults and Communities,Other Agencies - Third Party P,30156502,BLUEBIRD CARE (BARNET),156.00,28/02/2017
Delivery Units,Adults and Communities,Other Agencies - Third Party P,30156503,BLUEBIRD CARE (BARNET),156.00,28/02/2017
Delivery Units,Adults and Communities,Other Agencies - Third Party P,30156504,BLUEBIRD CARE (BARNET),-583.20,28/02/2017
Delivery Units,Adults and Communities,Other Agencies - Third Party P,30156505,BLUEBIRD CARE (BARNET),"-1,055.70",28/02/2017
Delivery Units,Adults and Communities,Other Agencies - Third Party P,30156506,BLUEBIRD CARE (BARNET),"-1,311.00",28/02/2017
Delivery Units,Adults and Communities,Other Agencies - Third Party P,30156508,BLUEBIRD CARE (BARNET),544.00,28/02/2017
Delivery Units,Adults and Communities,Other Agencies - Third Party P,30156509,BLUEBIRD CARE (BARNET),513.90,28/02/2017
Delivery Units,Adults and Communities,Other Agencies - Third Party P,30156510,BLUEBIRD CARE (BARNET),651.00,28/02/2017
Delivery Units,Adults and Communities,Other Agencies - Third Party P,30156511,BLUEBIRD CARE (BARNET),355.50,28/02/2017
Delivery Units,Adults and Communities,Other Agencies - Third Party P,30156512,BLUEBIRD CARE (BARNET),336.00,28/02/2017
Delivery Units,Adults and Communities,Other Agencies - Third Party P,30156513,BLUEBIRD CARE (BARNET),491.00,28/02/2017
Delivery Units,Adults and Communities,Other Agencies - Third Party P,30156514,BLUEBIRD CARE (BARNET),486.00,28/02/2017
Delivery Units,Adults and Communities,Other Agencies - Third Party P,30156515,BLUEBIRD CARE (BARNET),582.00,28/02/2017
Delivery Units,Adults and Communities,Other Agencies - Third Party P,30156516,BLUEBIRD CARE (BARNET),384.00,28/02/2017
Delivery Units,Adults and Communities,Other Agencies - Third Party P,30156517,BLUEBIRD CARE (BARNET),201.00,28/02/2017
Delivery Units,Adults and Communities,Other Agencies - Third Party P,30156519,BLUEBIRD CARE (BARNET),229.40,28/02/2017
Delivery Units,Adults and Communities,Other Agencies - Third Party P,30156520,BLUEBIRD CARE (BARNET),504.00,28/02/2017
Delivery Units,Adults and Communities,Other Agencies - Third Party P,30156521,BLUEBIRD CARE (BARNET),462.20,28/02/2017
Delivery Units,Adults and Communities,Other Agencies - Third Party P,30156522,BLUEBIRD CARE (BARNET),594.00,28/02/2017
Delivery Units,Adults and Communities,Other Agencies - Third Party P,30156523,BLUEBIRD CARE (BARNET),192.00,28/02/2017
Delivery Units,Adults and Communities,Other Agencies - Third Party P,30153358,BROOKDALE HEALTHCARE,"3,759.36",10/02/2017
Delivery Units,Adults and Communities,Other Agencies - Third Party P,30156184,BROOKDALE HEALTHCARE,"8,400.00",27/02/2017
Delivery Units,Adults and Communities,Other Agencies - Third Party P,30156185,BROOKDALE HEALTHCARE,"8,680.00",27/02/2017
Delivery Units,Adults and Communities,Other Agencies - Third Party P,30156318,BRUNSWICK SUPPORTED LIVING SERVICES,"1,412.68",27/02/2017
Delivery Units,Adults and Communities,Other Agencies - Third Party P,30156319,BRUNSWICK SUPPORTED LIVING SERVICES,"1,942.84",27/02/2017
Delivery Units,Adults and Communities,Other Agencies - Third Party P,30156323,BRUNSWICK SUPPORTED LIVING SERVICES,"2,153.92",27/02/2017
Delivery Units,Adults and Communities,Other Agencies - Third Party P,30153064,BUPA CARE HOMES,522.57,08/02/2017
Delivery Units,Adults and Communities,Other Agencies - Third Party P,30153065,BUPA CARE HOMES,74.65,08/02/2017
Delivery Units,Adults and Communities,Other Agencies - Third Party P,30153085,BUPA CARE HOMES,"2,165.68",08/02/2017
Delivery Units,Adults and Communities,Other Agencies - Third Party P,30153086,BUPA CARE HOMES,"2,398.56",08/02/2017
Delivery Units,Adults and Communities,Other Agencies - Third Party P,30153512,BUPA CARE HOMES,"2,398.56",10/02/2017
Delivery Units,Adults and Communities,Other Agencies - Third Party P,30153513,BUPA CARE HOMES,"6,866.76",10/02/2017
Delivery Units,Adults and Communities,Other Agencies - Third Party P,30153514,BUPA CARE HOMES,"2,314.24",10/02/2017
Delivery Units,Adults and Communities,Other Agencies - Third Party P,30153515,BUPA CARE HOMES,"1,756.81",10/02/2017
Delivery Units,Adults and Communities,Other Agencies - Third Party P,30153516,BUPA CARE HOMES,"1,622.27",10/02/2017
Delivery Units,Adults and Communities,Other Agencies - Third Party P,30153517,BUPA CARE HOMES,"2,464.06",10/02/2017
Delivery Units,Adults and Communities,Other Agencies - Third Party P,30153518,BUPA CARE HOMES,"2,464.06",10/02/2017
Delivery Units,Adults and Communities,Other Agencies - Third Party P,30153519,BUPA CARE HOMES,"3,468.06",10/02/2017
Delivery Units,Adults and Communities,Other Agencies - Third Party P,30153830,BUPA CARE HOMES,"1,659.82",15/02/2017
Delivery Units,Adults and Communities,Other Agencies - Third Party P,30153831,BUPA CARE HOMES,-691.96,15/02/2017
Delivery Units,Adults and Communities,Other Agencies - Third Party P,30153832,BUPA CARE HOMES,162.87,15/02/2017
Delivery Units,Adults and Communities,Other Agencies - Third Party P,30153881,BUPA CARE HOMES,"2,733.76",15/02/2017
Delivery Units,Adults and Communities,Other Agencies - Third Party P,30153882,BUPA CARE HOMES,"2,645.57",15/02/2017
Delivery Units,Adults and Communities,Other Agencies - Third Party P,30153883,BUPA CARE HOMES,"2,364.81",15/02/2017
Delivery Units,Adults and Communities,Other Agencies - Third Party P,30153884,BUPA CARE HOMES,"2,733.76",15/02/2017
Delivery Units,Adults and Communities,Other Agencies - Third Party P,30153885,BUPA CARE HOMES,"2,443.64",15/02/2017
Delivery Units,Adults and Communities,Other Agencies - Third Party P,30153886,BUPA CARE HOMES,"2,730.97",15/02/2017
Delivery Units,Adults and Communities,Other Agencies - Third Party P,30153887,BUPA CARE HOMES,394.14,15/02/2017
Delivery Units,Adults and Communities,Other Agencies - Third Party P,30153888,BUPA CARE HOMES,-2.70,15/02/2017
Delivery Units,Adults and Communities,Other Agencies - Third Party P,30153889,BUPA CARE HOMES,-2.79,15/02/2017
Delivery Units,Adults and Communities,Other Agencies - Third Party P,30153890,BUPA CARE HOMES,-2.70,15/02/2017
Delivery Units,Adults and Communities,Other Agencies - Third Party P,30153891,BUPA CARE HOMES,-2.79,15/02/2017
Delivery Units,Adults and Communities,Other Agencies - Third Party P,30153892,BUPA CARE HOMES,-2.79,15/02/2017
Delivery Units,Adults and Communities,Other Agencies - Third Party P,30153893,BUPA CARE HOMES,-2.70,15/02/2017
Delivery Units,Adults and Communities,Other Agencies - Third Party P,30153894,BUPA CARE HOMES,-2.79,15/02/2017
Delivery Units,Adults and Communities,Other Agencies - Third Party P,30153895,BUPA CARE HOMES,-2.70,15/02/2017
Delivery Units,Adults and Communities,Other Agencies - Third Party P,30153896,BUPA CARE HOMES,-2.79,15/02/2017
Delivery Units,Adults and Communities,Other Agencies - Third Party P,30154993,BUPA CARE HOMES,"2,466.05",21/02/2017
Delivery Units,Adults and Communities,Other Agencies - Third Party P,30154994,BUPA CARE HOMES,"3,007.40",21/02/2017
Delivery Units,Adults and Communities,Other Agencies - Third Party P,30154995,BUPA CARE HOMES,"2,466.05",21/02/2017
Delivery Units,Adults and Communities,Other Agencies - Third Party P,30154996,BUPA CARE HOMES,"3,816.90",21/02/2017
Delivery Units,Adults and Communities,Other Agencies - Third Party P,30156313,BUPA CARE HOMES,"4,699.26",27/02/2017
Delivery Units,Adults and Communities,Other Agencies - Third Party P,30156314,BUPA CARE HOMES,"7,323.96",27/02/2017
Delivery Units,Adults and Communities,Other Agencies - Third Party P,30156315,BUPA CARE HOMES,"7,193.92",27/02/2017
Delivery Units,Adults and Communities,Other Agencies - Third Party P,30156749,BUPA CARE HOMES,"3,027.32",28/02/2017
Delivery Units,Adults and Communities,Other Agencies - Third Party P,30156750,BUPA CARE HOMES,"3,085.52",28/02/2017
Delivery Units,Adults and Communities,Other Agencies - Third Party P,30156751,BUPA CARE HOMES,"2,274.76",28/02/2017
Delivery Units,Adults and Communities,Other Agencies - Third Party P,30153486,BUPA NURSING HOMES LTD - ARKLEY,"2,227.52",10/02/2017
Delivery Units,Adults and Communities,Other Agencies - Third Party P,30153487,BUPA NURSING HOMES LTD - ARKLEY,"2,227.24",10/02/2017
Delivery Units,Adults and Communities,Other Agencies - Third Party P,30153488,BUPA NURSING HOMES LTD - ARKLEY,"2,227.24",10/02/2017
Delivery Units,Adults and Communities,Other Agencies - Third Party P,30153489,BUPA NURSING HOMES LTD - ARKLEY,"2,089.68",10/02/2017
Delivery Units,Adults and Communities,Other Agencies - Third Party P,30153490,BUPA NURSING HOMES LTD - ARKLEY,"3,546.71",10/02/2017
Delivery Units,Adults and Communities,Other Agencies - Third Party P,30153491,BUPA NURSING HOMES LTD - ARKLEY,"2,375.44",10/02/2017
Delivery Units,Adults and Communities,Other Agencies - Third Party P,30153492,BUPA NURSING HOMES LTD - ARKLEY,"2,214.76",10/02/2017
Delivery Units,Adults and Communities,Other Agencies - Third Party P,30153493,BUPA NURSING HOMES LTD - ARKLEY,"2,056.56",10/02/2017
Delivery Units,Adults and Communities,Other Agencies - Third Party P,30153494,BUPA NURSING HOMES LTD - ARKLEY,"2,165.68",10/02/2017
Delivery Units,Adults and Communities,Other Agencies - Third Party P,30153821,BUPA NURSING HOMES LTD - ARKLEY,"3,484.16",15/02/2017
Delivery Units,Adults and Communities,Other Agencies - Third Party P,30156273,BUPA NURSING HOMES LTD - ARKLEY,"2,375.44",27/02/2017
Delivery Units,Adults and Communities,Other Agencies - Third Party P,30156274,BUPA NURSING HOMES LTD - ARKLEY,"2,455.52",27/02/2017
Delivery Units,Adults and Communities,Other Agencies - Third Party P,30153417,CAMPHILL DEVON COMMUNITY LIMITED,"4,508.00",10/02/2017
Delivery Units,Adults and Communities,Other Agencies - Third Party P,30154266,CARE ASSIST LIMITED,"3,800.00",20/02/2017
Delivery Units,Adults and Communities,Other Agencies - Third Party P,30154267,CARE ASSIST LIMITED,"3,800.00",20/02/2017
Delivery Units,Adults and Communities,Other Agencies - Third Party P,30153974,CARE WORLDWIDE (LONDON) LTD,"4,400.13",16/02/2017
Delivery Units,Adults and Communities,Other Agencies - Third Party P,30153976,CARE WORLDWIDE (LONDON) LTD,"2,680.88",16/02/2017
Delivery Units,Adults and Communities,Other Agencies - Third Party P,30153977,CARE WORLDWIDE (LONDON) LTD,"3,936.46",16/02/2017
Delivery Units,Adults and Communities,Other Agencies - Third Party P,30153978,CARE WORLDWIDE (LONDON) LTD,"4,246.53",16/02/2017
Delivery Units,Adults and Communities,Other Agencies - Third Party P,30153979,CARE WORLDWIDE (LONDON) LTD,"2,685.98",16/02/2017
Delivery Units,Adults and Communities,Other Agencies - Third Party P,30153985,CARE WORLDWIDE (LONDON) LTD,"5,380.25",16/02/2017
Delivery Units,Adults and Communities,Other Agencies - Third Party P,30153110,CARETECH COMMUNITY SERVICES LTD,"2,506.20",08/02/2017
Delivery Units,Adults and Communities,Other Agencies - Third Party P,30153111,CARETECH COMMUNITY SERVICES LTD,"1,088.14",08/02/2017
Delivery Units,Adults and Communities,Other Agencies - Third Party P,30153112,CARETECH COMMUNITY SERVICES LTD,"4,627.86",08/02/2017
Delivery Units,Adults and Communities,Other Agencies - Third Party P,30153113,CARETECH COMMUNITY SERVICES LTD,"2,589.74",08/02/2017
Delivery Units,Adults and Communities,Other Agencies - Third Party P,30155013,CARETECH COMMUNITY SERVICES LTD,"9,360.02",21/02/2017
Delivery Units,Adults and Communities,Other Agencies - Third Party P,30155014,CARETECH COMMUNITY SERVICES LTD,919.15,21/02/2017
Delivery Units,Adults and Communities,Other Agencies - Third Party P,30155500,CARETECH COMMUNITY SERVICES LTD,"-4,180.16",23/02/2017
Delivery Units,Adults and Communities,Other Agencies - Third Party P,30155501,CARETECH COMMUNITY SERVICES LTD,"-5,264.41",23/02/2017
Delivery Units,Adults and Communities,Other Agencies - Third Party P,30155529,CARETECH COMMUNITY SERVICES LTD,"4,628.03",23/02/2017
Delivery Units,Adults and Communities,Other Agencies - Third Party P,30155530,CARETECH COMMUNITY SERVICES LTD,"7,817.54",23/02/2017
Delivery Units,Adults and Communities,Other Agencies - Third Party P,30153470,CARING HOMES HEALTHCARE GROUP,"3,200.00",10/02/2017
Delivery Units,Adults and Communities,Other Agencies - Third Party P,30154207,CARLTON COURT (TLC GROUP),"3,400.00",20/02/2017
Delivery Units,Adults and Communities,Other Agencies - Third Party P,30154208,CARLTON COURT (TLC GROUP),"4,000.00",20/02/2017
Delivery Units,Adults and Communities,Other Agencies - Third Party P,30154209,CARLTON COURT (TLC GROUP),"2,211.80",20/02/2017
Delivery Units,Adults and Communities,Other Agencies - Third Party P,30154210,CARLTON COURT (TLC GROUP),"2,031.76",20/02/2017
Delivery Units,Adults and Communities,Other Agencies - Third Party P,30154211,CARLTON COURT (TLC GROUP),"2,031.76",20/02/2017
Delivery Units,Adults and Communities,Other Agencies - Third Party P,30154212,CARLTON COURT (TLC GROUP),"2,398.56",20/02/2017
Delivery Units,Adults and Communities,Other Agencies - Third Party P,30154213,CARLTON COURT (TLC GROUP),"2,398.56",20/02/2017
Delivery Units,Adults and Communities,Other Agencies - Third Party P,30154214,CARLTON COURT (TLC GROUP),"2,398.56",20/02/2017
Delivery Units,Adults and Communities,Other Agencies - Third Party P,30154215,CARLTON COURT (TLC GROUP),"2,398.56",20/02/2017
Delivery Units,Adults and Communities,Other Agencies - Third Party P,30154216,CARLTON COURT (TLC GROUP),"5,600.00",20/02/2017
Delivery Units,Adults and Communities,Other Agencies - Third Party P,30154218,CARLTON COURT (TLC GROUP),"4,400.00",20/02/2017
Delivery Units,Adults and Communities,Other Agencies - Third Party P,30154219,CARLTON COURT (TLC GROUP),"3,360.84",20/02/2017
Delivery Units,Adults and Communities,Other Agencies - Third Party P,30154220,CARLTON COURT (TLC GROUP),"2,165.68",20/02/2017
Delivery Units,Adults and Communities,Other Agencies - Third Party P,30154221,CARLTON COURT (TLC GROUP),"2,211.80",20/02/2017
Delivery Units,Adults and Communities,Other Agencies - Third Party P,30156240,CARMEN LODGE RESIDENTIAL HOME,"2,474.36",27/02/2017
Delivery Units,Adults and Communities,Other Agencies - Third Party P,30153474,CATHERINE LODGE,"3,000.00",10/02/2017
Delivery Units,Adults and Communities,Other Agencies - Third Party P,30154933,CATHERINE LODGE,"2,211.80",21/02/2017
Delivery Units,Adults and Communities,Other Agencies - Third Party P,30154934,CATHERINE LODGE,"2,920.00",21/02/2017
Delivery Units,Adults and Communities,Other Agencies - Third Party P,30154935,CATHERINE LODGE,"2,211.80",21/02/2017
Delivery Units,Adults and Communities,Other Agencies - Third Party P,30154936,CATHERINE LODGE,"2,211.80",21/02/2017
Delivery Units,Adults and Communities,Other Agencies - Third Party P,30154361,CAVENDISH RADIO CARS,901.40,20/02/2017
Delivery Units,Adults and Communities,Other Agencies - Third Party P,30153187,CDR CARE LTD,700.00,10/02/2017
Delivery Units,Adults and Communities,Other Agencies - Third Party P,30153188,CDR CARE LTD,800.00,10/02/2017
Delivery Units,Adults and Communities,Other Agencies - Third Party P,30153189,CDR CARE LTD,700.00,10/02/2017
Delivery Units,Adults and Communities,Other Agencies - Third Party P,30153190,CDR CARE LTD,"1,680.00",10/02/2017
Delivery Units,Adults and Communities,Other Agencies - Third Party P,30154336,CDR CARE LTD,"2,000.00",20/02/2017
Delivery Units,Adults and Communities,Other Agencies - Third Party P,30154337,CDR CARE LTD,"2,000.00",20/02/2017
Delivery Units,Adults and Communities,Other Agencies - Third Party P,30153824,CEDARS NURSING HOME,"11,756.55",15/02/2017
Delivery Units,Adults and Communities,Other Agencies - Third Party P,30156285,CEDARS NURSING HOME,"2,320.37",27/02/2017
Delivery Units,Adults and Communities,Other Agencies - Third Party P,30156286,CEDARS NURSING HOME,"-1,778.95",27/02/2017
Delivery Units,Adults and Communities,Other Agencies - Third Party P,30156287,CEDARS NURSING HOME,"2,064.29",27/02/2017
Delivery Units,Adults and Communities,Other Agencies - Third Party P,30154365,CENTRAL MIDDLESEX SKILLS,"1,085.52",20/02/2017
Delivery Units,Adults and Communities,Other Agencies - Third Party P,30154366,CENTRAL MIDDLESEX SKILLS,723.68,20/02/2017
Delivery Units,Adults and Communities,Other Agencies - Third Party P,30153801,CHEQUERS TRANSPORT LIMITED,134.20,15/02/2017
Delivery Units,Adults and Communities,Other Agencies - Third Party P,30153802,CHEQUERS TRANSPORT LIMITED,107.36,15/02/2017
Delivery Units,Adults and Communities,Other Agencies - Third Party P,30153803,CHEQUERS TRANSPORT LIMITED,360.00,15/02/2017
Delivery Units,Adults and Communities,Other Agencies - Third Party P,30154362,CHEQUERS TRANSPORT LIMITED,493.20,20/02/2017
Delivery Units,Adults and Communities,Other Agencies - Third Party P,30154363,CHEQUERS TRANSPORT LIMITED,390.00,20/02/2017
Delivery Units,Adults and Communities,Other Agencies - Third Party P,30155121,CHEQUERS TRANSPORT LIMITED,161.04,22/02/2017
Delivery Units,Adults and Communities,Other Agencies - Third Party P,30152938,CHILTERN SUPPORT & HOUSING LTD,"23,836.80",06/02/2017
Delivery Units,Adults and Communities,Other Agencies - Third Party P,30156248,CHILTERN SUPPORT & HOUSING LTD,"10,000.00",27/02/2017
Delivery Units,Adults and Communities,Other Agencies - Third Party P,30153509,CLARE HOUSE NURSING HOME,"2,228.72",10/02/2017
Delivery Units,Adults and Communities,Other Agencies - Third Party P,30153082,CLOVELLY HOUSE RESID. HOME LTD,"1,184.89",08/02/2017
Delivery Units,Adults and Communities,Other Agencies - Third Party P,30153083,CLOVELLY HOUSE RESID. HOME LTD,"1,026.91",08/02/2017
Delivery Units,Adults and Communities,Other Agencies - Third Party P,30153499,CLOVELLY HOUSE RESID. HOME LTD,"2,211.80",10/02/2017
Delivery Units,Adults and Communities,Other Agencies - Third Party P,30153500,CLOVELLY HOUSE RESID. HOME LTD,"2,600.00",10/02/2017
Delivery Units,Adults and Communities,Other Agencies - Third Party P,30153501,CLOVELLY HOUSE RESID. HOME LTD,"2,211.80",10/02/2017
Delivery Units,Adults and Communities,Other Agencies - Third Party P,30153502,CLOVELLY HOUSE RESID. HOME LTD,"1,900.40",10/02/2017
Delivery Units,Adults and Communities,Other Agencies - Third Party P,30153503,CLOVELLY HOUSE RESID. HOME LTD,"2,600.00",10/02/2017
Delivery Units,Adults and Communities,Other Agencies - Third Party P,30153504,CLOVELLY HOUSE RESID. HOME LTD,"2,211.80",10/02/2017
Delivery Units,Adults and Communities,Other Agencies - Third Party P,30153505,CLOVELLY HOUSE RESID. HOME LTD,"2,211.80",10/02/2017
Delivery Units,Adults and Communities,Other Agencies - Third Party P,30153506,CLOVELLY HOUSE RESID. HOME LTD,"2,600.00",10/02/2017
Delivery Units,Adults and Communities,Other Agencies - Third Party P,30153507,CLOVELLY HOUSE RESID. HOME LTD,"2,700.00",10/02/2017
Delivery Units,Adults and Communities,Other Agencies - Third Party P,30153228,CMG HOMES LTD,"3,240.96",10/02/2017
Delivery Units,Adults and Communities,Other Agencies - Third Party P,30153973,CMG HOMES LTD,"3,240.96",16/02/2017
Delivery Units,Adults and Communities,Other Agencies - Third Party P,30156226,COMPLETE CARE SERVICES LTD,"4,901.68",27/02/2017
Delivery Units,Adults and Communities,Other Agencies - Third Party P,30153183,CREATIVE SUPPORT LTD,"1,721.48",10/02/2017
Delivery Units,Adults and Communities,Other Agencies - Third Party P,30153992,DABB PAA,659.34,16/02/2017
Delivery Units,Adults and Communities,Other Agencies - Third Party P,30154393,DEVELOPMENT AND LEARNING OPPORTUNIT,652.40,20/02/2017
Delivery Units,Adults and Communities,Other Agencies - Third Party P,30154394,DEVELOPMENT AND LEARNING OPPORTUNIT,"1,056.00",20/02/2017
Delivery Units,Adults and Communities,Other Agencies - Third Party P,30154395,DEVELOPMENT AND LEARNING OPPORTUNIT,"1,875.00",20/02/2017
Delivery Units,Adults and Communities,Other Agencies - Third Party P,30154396,DEVELOPMENT AND LEARNING OPPORTUNIT,"1,053.00",20/02/2017
Delivery Units,Adults and Communities,Other Agencies - Third Party P,30154397,DEVELOPMENT AND LEARNING OPPORTUNIT,500.00,20/02/2017
Delivery Units,Adults and Communities,Other Agencies - Third Party P,30154398,DEVELOPMENT AND LEARNING OPPORTUNIT,306.00,20/02/2017
Delivery Units,Adults and Communities,Other Agencies - Third Party P,30152988,DILLON CARE LTD,"3,900.00",06/02/2017
Delivery Units,Adults and Communities,Other Agencies - Third Party P,30156367,DILLON CARE LTD,"3,900.00",27/02/2017
Delivery Units,Adults and Communities,Other Agencies - Third Party P,30153349,DIMENSIONS UK,"1,500.00",10/02/2017
Delivery Units,Adults and Communities,Other Agencies - Third Party P,30153350,DIMENSIONS UK,"1,071.43",10/02/2017
Delivery Units,Adults and Communities,Other Agencies - Third Party P,30153870,DIMENSIONS UK,"1,541.00",15/02/2017
Delivery Units,Adults and Communities,Other Agencies - Third Party P,30153874,DIMENSIONS UK,"5,904.80",15/02/2017
Delivery Units,Adults and Communities,Other Agencies - Third Party P,30153875,DIMENSIONS UK,"4,405.84",15/02/2017
Delivery Units,Adults and Communities,Other Agencies - Third Party P,30153876,DIMENSIONS UK,"4,405.84",15/02/2017
Delivery Units,Adults and Communities,Other Agencies - Third Party P,30154041,DIMENSIONS UK,"2,128.00",16/02/2017
Delivery Units,Adults and Communities,Other Agencies - Third Party P,30154049,DIMENSIONS UK,912.00,16/02/2017
Delivery Units,Adults and Communities,Other Agencies - Third Party P,30154413,DIMENSIONS UK,149.60,20/02/2017
Delivery Units,Adults and Communities,Other Agencies - Third Party P,30154414,DIMENSIONS UK,374.00,20/02/2017
Delivery Units,Adults and Communities,Other Agencies - Third Party P,30154415,DIMENSIONS UK,149.60,20/02/2017
Delivery Units,Adults and Communities,Other Agencies - Third Party P,30154416,DIMENSIONS UK,"1,122.00",20/02/2017
Delivery Units,Adults and Communities,Other Agencies - Third Party P,30154417,DIMENSIONS UK,"1,570.80",20/02/2017
Delivery Units,Adults and Communities,Other Agencies - Third Party P,30154418,DIMENSIONS UK,224.40,20/02/2017
Delivery Units,Adults and Communities,Other Agencies - Third Party P,30154419,DIMENSIONS UK,149.60,20/02/2017
Delivery Units,Adults and Communities,Other Agencies - Third Party P,30154420,DIMENSIONS UK,224.40,20/02/2017
Delivery Units,Adults and Communities,Other Agencies - Third Party P,30154421,DIMENSIONS UK,149.60,20/02/2017
Delivery Units,Adults and Communities,Other Agencies - Third Party P,30154422,DIMENSIONS UK,149.60,20/02/2017
Delivery Units,Adults and Communities,Other Agencies - Third Party P,30154423,DIMENSIONS UK,74.80,20/02/2017
Delivery Units,Adults and Communities,Other Agencies - Third Party P,30154424,DIMENSIONS UK,74.80,20/02/2017
Delivery Units,Adults and Communities,Other Agencies - Third Party P,30154425,DIMENSIONS UK,74.80,20/02/2017
Delivery Units,Adults and Communities,Other Agencies - Third Party P,30154426,DIMENSIONS UK,149.60,20/02/2017
Delivery Units,Adults and Communities,Other Agencies - Third Party P,30154427,DIMENSIONS UK,149.60,20/02/2017
Delivery Units,Adults and Communities,Other Agencies - Third Party P,30154428,DIMENSIONS UK,74.80,20/02/2017
Delivery Units,Adults and Communities,Other Agencies - Third Party P,30154429,DIMENSIONS UK,149.60,20/02/2017
Delivery Units,Adults and Communities,Other Agencies - Third Party P,30154430,DIMENSIONS UK,74.80,20/02/2017
Delivery Units,Adults and Communities,Other Agencies - Third Party P,30154431,DIMENSIONS UK,74.80,20/02/2017
Delivery Units,Adults and Communities,Other Agencies - Third Party P,30154432,DIMENSIONS UK,523.60,20/02/2017
Delivery Units,Adults and Communities,Other Agencies - Third Party P,30154433,DIMENSIONS UK,299.20,20/02/2017
Delivery Units,Adults and Communities,Other Agencies - Third Party P,30154434,DIMENSIONS UK,224.40,20/02/2017
Delivery Units,Adults and Communities,Other Agencies - Third Party P,30154435,DIMENSIONS UK,299.20,20/02/2017
Delivery Units,Adults and Communities,Other Agencies - Third Party P,30154436,DIMENSIONS UK,897.60,20/02/2017
Delivery Units,Adults and Communities,Other Agencies - Third Party P,30154437,DIMENSIONS UK,448.80,20/02/2017
Delivery Units,Adults and Communities,Other Agencies - Third Party P,30154438,DIMENSIONS UK,149.60,20/02/2017
Delivery Units,Adults and Communities,Other Agencies - Third Party P,30154439,DIMENSIONS UK,112.20,20/02/2017
Delivery Units,Adults and Communities,Other Agencies - Third Party P,30154440,DIMENSIONS UK,149.60,20/02/2017
Delivery Units,Adults and Communities,Other Agencies - Third Party P,30154441,DIMENSIONS UK,149.60,20/02/2017
Delivery Units,Adults and Communities,Other Agencies - Third Party P,30154442,DIMENSIONS UK,149.60,20/02/2017
Delivery Units,Adults and Communities,Other Agencies - Third Party P,30154443,DIMENSIONS UK,448.80,20/02/2017
Delivery Units,Adults and Communities,Other Agencies - Third Party P,30154444,DIMENSIONS UK,149.60,20/02/2017
Delivery Units,Adults and Communities,Other Agencies - Third Party P,30154446,DIMENSIONS UK,74.80,20/02/2017
Delivery Units,Adults and Communities,Other Agencies - Third Party P,30154447,DIMENSIONS UK,600.00,20/02/2017
Delivery Units,Adults and Communities,Other Agencies - Third Party P,30154448,DIMENSIONS UK,-128.56,20/02/2017
Delivery Units,Adults and Communities,Other Agencies - Third Party P,30156328,DIMENSIONS UK,"5,904.80",27/02/2017
Delivery Units,Adults and Communities,Other Agencies - Third Party P,30156329,DIMENSIONS UK,"4,405.84",27/02/2017
Delivery Units,Adults and Communities,Other Agencies - Third Party P,30156330,DIMENSIONS UK,"4,405.84",27/02/2017
Delivery Units,Adults and Communities,Other Agencies - Third Party P,80008052,DIMENSIONS UK,374.00,07/02/2017
Delivery Units,Adults and Communities,Other Agencies - Third Party P,30156249,DOWNLANDS CARE LTD,"1,877.96",27/02/2017
Delivery Units,Adults and Communities,Other Agencies - Third Party P,30153089,EASTSIDE HOUSE RESIDENTIAL CARE HOM,624.00,07/02/2017
Delivery Units,Adults and Communities,Other Agencies - Third Party P,30155005,EASTSIDE HOUSE RESIDENTIAL CARE HOM,390.00,21/02/2017
Delivery Units,Adults and Communities,Other Agencies - Third Party P,30153826,EMMAUS HOUSE,"2,211.80",15/02/2017
Delivery Units,Adults and Communities,Other Agencies - Third Party P,30153521,EVE HERSOV & CO,196.50,10/02/2017
Delivery Units,Adults and Communities,Other Agencies - Third Party P,30153289,FERNBANK NURSING HOME.,"2,397.54",10/02/2017
Delivery Units,Adults and Communities,Other Agencies - Third Party P,30153290,FERNBANK NURSING HOME.,"1,469.46",10/02/2017
Delivery Units,Adults and Communities,Other Agencies - Third Party P,30153291,FERNBANK NURSING HOME.,"2,397.54",10/02/2017
Delivery Units,Adults and Communities,Other Agencies - Third Party P,30153292,FERNBANK NURSING HOME.,"1,469.46",10/02/2017
Delivery Units,Adults and Communities,Other Agencies - Third Party P,30156256,FINBOND LIMITED,"2,400.00",27/02/2017
Delivery Units,Adults and Communities,Other Agencies - Third Party P,30156257,FINBOND LIMITED,"2,001.92",27/02/2017
Delivery Units,Adults and Communities,Other Agencies - Third Party P,30156258,FINBOND LIMITED,"3,000.00",27/02/2017
Delivery Units,Adults and Communities,Other Agencies - Third Party P,30156259,FINBOND LIMITED,"2,184.04",27/02/2017
Delivery Units,Adults and Communities,Other Agencies - Third Party P,30156260,FINBOND LIMITED,"2,196.00",27/02/2017
Delivery Units,Adults and Communities,Other Agencies - Third Party P,30153866,FLAGSWAN TWO LTD,"3,072.33",15/02/2017
Delivery Units,Adults and Communities,Other Agencies - Third Party P,30153867,FLAGSWAN TWO LTD,"2,546.43",15/02/2017
Delivery Units,Adults and Communities,Other Agencies - Third Party P,30153673,FLEXSERVE RESOURCE LTD,"2,989.65",14/02/2017
Delivery Units,Adults and Communities,Other Agencies - Third Party P,30153674,FLEXSERVE RESOURCE LTD,143.40,14/02/2017
Delivery Units,Adults and Communities,Other Agencies - Third Party P,30153675,FLEXSERVE RESOURCE LTD,992.30,14/02/2017
Delivery Units,Adults and Communities,Other Agencies - Third Party P,30153676,FLEXSERVE RESOURCE LTD,340.58,14/02/2017
Delivery Units,Adults and Communities,Other Agencies - Third Party P,30153982,FLEXSERVE RESOURCE LTD,"2,926.95",16/02/2017
Delivery Units,Adults and Communities,Other Agencies - Third Party P,30153522,FOUR SEASONS HEALTH CARE,"2,534.44",10/02/2017
Delivery Units,Adults and Communities,Other Agencies - Third Party P,30153523,FOUR SEASONS HEALTH CARE,"2,534.44",10/02/2017
Delivery Units,Adults and Communities,Other Agencies - Third Party P,30153524,FOUR SEASONS HEALTH CARE,"2,534.44",10/02/2017
Delivery Units,Adults and Communities,Other Agencies - Third Party P,30153525,FOUR SEASONS HEALTH CARE,"2,534.44",10/02/2017
Delivery Units,Adults and Communities,Other Agencies - Third Party P,30153526,FOUR SEASONS HEALTH CARE,"2,534.44",10/02/2017
Delivery Units,Adults and Communities,Other Agencies - Third Party P,30153847,FOUR SEASONS HEALTH CARE,"2,634.00",15/02/2017
Delivery Units,Adults and Communities,Other Agencies - Third Party P,30153849,FOUR SEASONS HEALTH CARE,"2,246.44",15/02/2017
Delivery Units,Adults and Communities,Other Agencies - Third Party P,30153850,FOUR SEASONS HEALTH CARE,"2,500.90",15/02/2017
Delivery Units,Adults and Communities,Other Agencies - Third Party P,30153851,FOUR SEASONS HEALTH CARE,"2,123.48",15/02/2017
Delivery Units,Adults and Communities,Other Agencies - Third Party P,30153852,FOUR SEASONS HEALTH CARE,"2,500.72",15/02/2017
Delivery Units,Adults and Communities,Other Agencies - Third Party P,30153853,FOUR SEASONS HEALTH CARE,"2,246.44",15/02/2017
Delivery Units,Adults and Communities,Other Agencies - Third Party P,30153854,FOUR SEASONS HEALTH CARE,"2,500.72",15/02/2017
Delivery Units,Adults and Communities,Other Agencies - Third Party P,30153855,FOUR SEASONS HEALTH CARE,"2,246.44",15/02/2017
Delivery Units,Adults and Communities,Other Agencies - Third Party P,30153856,FOUR SEASONS HEALTH CARE,"2,246.44",15/02/2017
Delivery Units,Adults and Communities,Other Agencies - Third Party P,30153857,FOUR SEASONS HEALTH CARE,"2,399.36",15/02/2017
Delivery Units,Adults and Communities,Other Agencies - Third Party P,30153858,FOUR SEASONS HEALTH CARE,"1,867.61",15/02/2017
Delivery Units,Adults and Communities,Other Agencies - Third Party P,30153859,FOUR SEASONS HEALTH CARE,"2,246.44",15/02/2017
Delivery Units,Adults and Communities,Other Agencies - Third Party P,30153860,FOUR SEASONS HEALTH CARE,"2,246.44",15/02/2017
Delivery Units,Adults and Communities,Other Agencies - Third Party P,30153861,FOUR SEASONS HEALTH CARE,"2,246.44",15/02/2017
Delivery Units,Adults and Communities,Other Agencies - Third Party P,30153862,FOUR SEASONS HEALTH CARE,512.76,15/02/2017
Delivery Units,Adults and Communities,Other Agencies - Third Party P,30155003,FOUR SEASONS HEALTH CARE,"2,489.08",21/02/2017
Delivery Units,Adults and Communities,Other Agencies - Third Party P,30155004,FOUR SEASONS HEALTH CARE,"2,246.44",21/02/2017
Delivery Units,Adults and Communities,Other Agencies - Third Party P,30153806,FOUR SEASONS HEALTH CARE (NO.4) LTD,"2,004.00",15/02/2017
Delivery Units,Adults and Communities,Other Agencies - Third Party P,30145524,FREEWAYS TRUST LIMITED,-387.92,10/02/2017
Delivery Units,Adults and Communities,Other Agencies - Third Party P,30145525,FREEWAYS TRUST LIMITED,"-3,947.44",10/02/2017
Delivery Units,Adults and Communities,Other Agencies - Third Party P,30149164,FREEWAYS TRUST LIMITED,829.80,10/02/2017
Delivery Units,Adults and Communities,Other Agencies - Third Party P,30153534,FREEWAYS TRUST LIMITED,829.80,10/02/2017
Delivery Units,Adults and Communities,Other Agencies - Third Party P,30155541,FREEWAYS TRUST LIMITED,829.80,23/02/2017
Delivery Units,Adults and Communities,Other Agencies - Third Party P,30154242,FREMANTLE TRUST,"3,048.00",22/02/2017
Delivery Units,Adults and Communities,Other Agencies - Third Party P,30154273,FREMANTLE TRUST,"1,423.52",22/02/2017
Delivery Units,Adults and Communities,Other Agencies - Third Party P,30155513,FREMANTLE TRUST,"19,619.60",23/02/2017
Delivery Units,Adults and Communities,Other Agencies - Third Party P,30155514,FREMANTLE TRUST,"19,665.63",23/02/2017
Delivery Units,Adults and Communities,Other Agencies - Third Party P,30155516,FREMANTLE TRUST,"32,221.08",23/02/2017
Delivery Units,Adults and Communities,Other Agencies - Third Party P,80007952,FREMANTLE TRUST,"-13,050.74",22/02/2017
Delivery Units,Adults and Communities,Other Agencies - Third Party P,30152675,FRIARY LODGE,"2,448.78",01/02/2017
Delivery Units,Adults and Communities,Other Agencies - Third Party P,30152676,FRIARY LODGE,"2,249.44",01/02/2017
Delivery Units,Adults and Communities,Other Agencies - Third Party P,30152678,FRIARY LODGE,"2,448.78",01/02/2017
Delivery Units,Adults and Communities,Other Agencies - Third Party P,30152682,FRIARY LODGE,"2,448.78",01/02/2017
Delivery Units,Adults and Communities,Other Agencies - Third Party P,30152952,GENTLE CARE,246.14,06/02/2017
Delivery Units,Adults and Communities,Other Agencies - Third Party P,30154029,GENTLE HANDS CARE AGENCY,108.00,16/02/2017
Delivery Units,Adults and Communities,Other Agencies - Third Party P,30154030,GENTLE HANDS CARE AGENCY,351.00,16/02/2017
Delivery Units,Adults and Communities,Other Agencies - Third Party P,30153511,GENTLE HANDS CARE HOMES LIMITED,"4,394.00",10/02/2017
Delivery Units,Adults and Communities,Other Agencies - Third Party P,30154031,GENTLE HANDS CARE HOMES LIMITED,"2,700.00",16/02/2017
Delivery Units,Adults and Communities,Other Agencies - Third Party P,30154032,GENTLE HANDS CARE HOMES LIMITED,"3,419.00",16/02/2017
Delivery Units,Adults and Communities,Other Agencies - Third Party P,30154033,GENTLE HANDS CARE HOMES LIMITED,"3,419.00",16/02/2017
Delivery Units,Adults and Communities,Other Agencies - Third Party P,30154265,HALLMARK CARE (KINGS LYNN) LTD,"2,610.60",20/02/2017
Delivery Units,Adults and Communities,Other Agencies - Third Party P,30153066,HARTWIG CARE LIMITED,895.90,08/02/2017
Delivery Units,Adults and Communities,Other Agencies - Third Party P,30153067,HARTWIG CARE LIMITED,577.92,08/02/2017
Delivery Units,Adults and Communities,Other Agencies - Third Party P,30153068,HARTWIG CARE LIMITED,"1,025.29",08/02/2017
Delivery Units,Adults and Communities,Other Agencies - Third Party P,30153069,HARTWIG CARE LIMITED,704.75,08/02/2017
Delivery Units,Adults and Communities,Other Agencies - Third Party P,30154271,HARTWIG CARE LIMITED,"1,233.37",20/02/2017
Delivery Units,Adults and Communities,Other Agencies - Third Party P,30154272,HARTWIG CARE LIMITED,636.80,20/02/2017
Delivery Units,Adults and Communities,Other Agencies - Third Party P,30151465,HEADWAY EAST LONDON,376.08,09/02/2017
Delivery Units,Adults and Communities,Other Agencies - Third Party P,30152185,HEADWAY EAST LONDON,634.84,09/02/2017
Delivery Units,Adults and Communities,Other Agencies - Third Party P,30153205,HEATHCOTES SOUTHERN LTD,"4,447.82",10/02/2017
Delivery Units,Adults and Communities,Other Agencies - Third Party P,30153227,HEATHCOTES SOUTHERN LTD,"10,606.34",10/02/2017
Delivery Units,Adults and Communities,Other Agencies - Third Party P,30153287,HEATHCOTES SOUTHERN LTD,"10,264.20",10/02/2017
Delivery Units,Adults and Communities,Other Agencies - Third Party P,30155431,HEATHCOTES SOUTHERN LTD,"10,264.20",23/02/2017
Delivery Units,Adults and Communities,Other Agencies - Third Party P,30155432,HEATHCOTES SOUTHERN LTD,"10,606.34",23/02/2017
Delivery Units,Adults and Communities,Other Agencies - Third Party P,30156719,HILTON LODGE LTD.,"1,828.58",28/02/2017
Delivery Units,Adults and Communities,Other Agencies - Third Party P,30156720,HILTON LODGE LTD.,"2,800.00",28/02/2017
Delivery Units,Adults and Communities,Other Agencies - Third Party P,30156753,HILTON LODGE LTD.,"2,480.00",28/02/2017
Delivery Units,Adults and Communities,Other Agencies - Third Party P,30156762,HILTON LODGE LTD.,"2,480.00",28/02/2017
Delivery Units,Adults and Communities,Other Agencies - Third Party P,30156765,HILTON LODGE LTD.,"2,211.80",28/02/2017
Delivery Units,Adults and Communities,Other Agencies - Third Party P,30156771,HILTON LODGE LTD.,"2,211.80",28/02/2017
Delivery Units,Adults and Communities,Other Agencies - Third Party P,30156776,HILTON LODGE LTD.,"2,211.80",28/02/2017
Delivery Units,Adults and Communities,Other Agencies - Third Party P,30156281,HONISTER RESIDENTIAL CARE LTD,"2,184.04",27/02/2017
Delivery Units,Adults and Communities,Other Agencies - Third Party P,30153981,INDEPENDENCE HOMES LIMITED,"2,900.00",16/02/2017
Delivery Units,Adults and Communities,Other Agencies - Third Party P,30153193,INDIVIDUALISED CARE LIMITED,280.00,10/02/2017
Delivery Units,Adults and Communities,Other Agencies - Third Party P,30153194,INDIVIDUALISED CARE LIMITED,288.00,10/02/2017
Delivery Units,Adults and Communities,Other Agencies - Third Party P,30153195,INDIVIDUALISED CARE LIMITED,793.00,10/02/2017
Delivery Units,Adults and Communities,Other Agencies - Third Party P,30153196,INDIVIDUALISED CARE LIMITED,"1,000.00",10/02/2017
Delivery Units,Adults and Communities,Other Agencies - Third Party P,30153197,INDIVIDUALISED CARE LIMITED,256.00,10/02/2017
Delivery Units,Adults and Communities,Other Agencies - Third Party P,30153198,INDIVIDUALISED CARE LIMITED,224.00,10/02/2017
Delivery Units,Adults and Communities,Other Agencies - Third Party P,30153199,INDIVIDUALISED CARE LIMITED,165.00,10/02/2017
Delivery Units,Adults and Communities,Other Agencies - Third Party P,30153200,INDIVIDUALISED CARE LIMITED,300.00,10/02/2017
Delivery Units,Adults and Communities,Other Agencies - Third Party P,30153201,INDIVIDUALISED CARE LIMITED,500.00,10/02/2017
Delivery Units,Adults and Communities,Other Agencies - Third Party P,30153202,INDIVIDUALISED CARE LIMITED,"1,158.00",10/02/2017
Delivery Units,Adults and Communities,Other Agencies - Third Party P,30153203,INDIVIDUALISED CARE LIMITED,"1,800.00",10/02/2017
Delivery Units,Adults and Communities,Other Agencies - Third Party P,30153225,IVER HOUSE LTD,"3,151.48",10/02/2017
Delivery Units,Adults and Communities,Other Agencies - Third Party P,30153983,JACARANDA HEALTHCARE,588.70,16/02/2017
Delivery Units,Adults and Communities,Other Agencies - Third Party P,30153984,JACARANDA HEALTHCARE,609.00,16/02/2017
Delivery Units,Adults and Communities,Other Agencies - Third Party P,30153180,JEMINI RESPONSE,"9,100.00",14/02/2017
Delivery Units,Adults and Communities,Other Agencies - Third Party P,30153042,JEWISH CARE,-497.66,08/02/2017
Delivery Units,Adults and Communities,Other Agencies - Third Party P,30153043,JEWISH CARE,-487.28,08/02/2017
Delivery Units,Adults and Communities,Other Agencies - Third Party P,30153044,JEWISH CARE,"9,107.15",08/02/2017
Delivery Units,Adults and Communities,Other Agencies - Third Party P,30153293,JEWISH CARE,"2,307.14",10/02/2017
Delivery Units,Adults and Communities,Other Agencies - Third Party P,30153294,JEWISH CARE,497.66,10/02/2017
Delivery Units,Adults and Communities,Other Agencies - Third Party P,30154235,JEWISH CARE,"1,990.63",20/02/2017
Delivery Units,Adults and Communities,Other Agencies - Third Party P,30154238,JEWISH CARE,"-4,727.75",20/02/2017
Delivery Units,Adults and Communities,Other Agencies - Third Party P,30154384,JEWISH CARE,825.00,20/02/2017
Delivery Units,Adults and Communities,Other Agencies - Third Party P,30154386,JEWISH CARE,220.00,20/02/2017
Delivery Units,Adults and Communities,Other Agencies - Third Party P,30154387,JEWISH CARE,220.00,20/02/2017
Delivery Units,Adults and Communities,Other Agencies - Third Party P,30154931,JEWISH CARE,580.60,21/02/2017
Delivery Units,Adults and Communities,Other Agencies - Third Party P,30154932,JEWISH CARE,"1,066.68",21/02/2017
Delivery Units,Adults and Communities,Other Agencies - Third Party P,30156687,JEWISH CARE,"3,200.00",28/02/2017
Delivery Units,Adults and Communities,Other Agencies - Third Party P,30156692,JEWISH CARE,"2,060.70",28/02/2017
Delivery Units,Adults and Communities,Other Agencies - Third Party P,30156697,JEWISH CARE,"-1,371.45",28/02/2017
Delivery Units,Adults and Communities,Other Agencies - Third Party P,30156698,JEWISH CARE,-44.97,28/02/2017
Delivery Units,Adults and Communities,Other Agencies - Third Party P,30156699,JEWISH CARE,-81.21,28/02/2017
Delivery Units,Adults and Communities,Other Agencies - Third Party P,30153932,JIGSAW CREATIVE CARE LIMITED,"3,021.76",16/02/2017
Delivery Units,Adults and Communities,Other Agencies - Third Party P,30153933,JIGSAW CREATIVE CARE LIMITED,"2,783.00",16/02/2017
Delivery Units,Adults and Communities,Other Agencies - Third Party P,30153934,JIGSAW CREATIVE CARE LIMITED,"1,412.00",16/02/2017
Delivery Units,Adults and Communities,Other Agencies - Third Party P,30153936,JIGSAW CREATIVE CARE LIMITED,"9,065.28",16/02/2017
Delivery Units,Adults and Communities,Other Agencies - Third Party P,30153937,JIGSAW CREATIVE CARE LIMITED,"4,236.00",16/02/2017
Delivery Units,Adults and Communities,Other Agencies - Third Party P,30153938,JIGSAW CREATIVE CARE LIMITED,"8,349.00",16/02/2017
Delivery Units,Adults and Communities,Other Agencies - Third Party P,30153940,JIGSAW CREATIVE CARE LIMITED,"17,577.00",16/02/2017
Delivery Units,Adults and Communities,Other Agencies - Third Party P,30154356,JIGSAW CREATIVE CARE LIMITED,"3,021.76",20/02/2017
Delivery Units,Adults and Communities,Other Agencies - Third Party P,30154357,JIGSAW CREATIVE CARE LIMITED,"1,412.00",20/02/2017
Delivery Units,Adults and Communities,Other Agencies - Third Party P,30154359,JIGSAW CREATIVE CARE LIMITED,"5,859.00",20/02/2017
Delivery Units,Adults and Communities,Other Agencies - Third Party P,30154360,JIGSAW CREATIVE CARE LIMITED,"2,783.00",20/02/2017
Delivery Units,Adults and Communities,Other Agencies - Third Party P,30156218,JIGSAW CREATIVE CARE LIMITED,"3,021.76",27/02/2017
Delivery Units,Adults and Communities,Other Agencies - Third Party P,30156219,JIGSAW CREATIVE CARE LIMITED,"1,412.00",27/02/2017
Delivery Units,Adults and Communities,Other Agencies - Third Party P,30156220,JIGSAW CREATIVE CARE LIMITED,"2,783.00",27/02/2017
Delivery Units,Adults and Communities,Other Agencies - Third Party P,30156222,JIGSAW CREATIVE CARE LIMITED,"5,859.00",27/02/2017
Delivery Units,Adults and Communities,Other Agencies - Third Party P,30153249,KARE PLUS BARNET,88.36,10/02/2017
Delivery Units,Adults and Communities,Other Agencies - Third Party P,30153251,KARE PLUS BARNET,324.53,10/02/2017
Delivery Units,Adults and Communities,Other Agencies - Third Party P,30153252,KARE PLUS BARNET,88.36,10/02/2017
Delivery Units,Adults and Communities,Other Agencies - Third Party P,30153253,KARE PLUS BARNET,324.53,10/02/2017
Delivery Units,Adults and Communities,Other Agencies - Third Party P,30153254,KARE PLUS BARNET,235.22,10/02/2017
Delivery Units,Adults and Communities,Other Agencies - Third Party P,30153255,KARE PLUS BARNET,177.67,10/02/2017
Delivery Units,Adults and Communities,Other Agencies - Third Party P,30153256,KARE PLUS BARNET,310.74,10/02/2017
Delivery Units,Adults and Communities,Other Agencies - Third Party P,30153258,KARE PLUS BARNET,88.36,10/02/2017
Delivery Units,Adults and Communities,Other Agencies - Third Party P,30153259,KARE PLUS BARNET,235.22,10/02/2017
Delivery Units,Adults and Communities,Other Agencies - Third Party P,30153260,KARE PLUS BARNET,245.01,10/02/2017
Delivery Units,Adults and Communities,Other Agencies - Third Party P,30153420,KARE PLUS BARNET,235.22,10/02/2017
Delivery Units,Adults and Communities,Other Agencies - Third Party P,30153421,KARE PLUS BARNET,225.43,10/02/2017
Delivery Units,Adults and Communities,Other Agencies - Third Party P,30153422,KARE PLUS BARNET,213.65,10/02/2017
Delivery Units,Adults and Communities,Other Agencies - Third Party P,30153423,KARE PLUS BARNET,251.10,10/02/2017
Delivery Units,Adults and Communities,Other Agencies - Third Party P,30153424,KARE PLUS BARNET,225.43,10/02/2017
Delivery Units,Adults and Communities,Other Agencies - Third Party P,30153425,KARE PLUS BARNET,251.10,10/02/2017
Delivery Units,Adults and Communities,Other Agencies - Third Party P,30153426,KARE PLUS BARNET,244.44,10/02/2017
Delivery Units,Adults and Communities,Other Agencies - Third Party P,30153427,KARE PLUS BARNET,284.58,10/02/2017
Delivery Units,Adults and Communities,Other Agencies - Third Party P,30153428,KARE PLUS BARNET,225.43,10/02/2017
Delivery Units,Adults and Communities,Other Agencies - Third Party P,30153429,KARE PLUS BARNET,269.24,10/02/2017
Delivery Units,Adults and Communities,Other Agencies - Third Party P,30153430,KARE PLUS BARNET,235.22,10/02/2017
Delivery Units,Adults and Communities,Other Agencies - Third Party P,30153431,KARE PLUS BARNET,147.33,10/02/2017
Delivery Units,Adults and Communities,Other Agencies - Third Party P,30153432,KARE PLUS BARNET,225.43,10/02/2017
Delivery Units,Adults and Communities,Other Agencies - Third Party P,30153433,KARE PLUS BARNET,216.83,10/02/2017
Delivery Units,Adults and Communities,Other Agencies - Third Party P,30153434,KARE PLUS BARNET,93.98,10/02/2017
Delivery Units,Adults and Communities,Other Agencies - Third Party P,30153435,KARE PLUS BARNET,256.68,10/02/2017
Delivery Units,Adults and Communities,Other Agencies - Third Party P,30153436,KARE PLUS BARNET,147.82,10/02/2017
Delivery Units,Adults and Communities,Other Agencies - Third Party P,30153437,KARE PLUS BARNET,215.64,10/02/2017
Delivery Units,Adults and Communities,Other Agencies - Third Party P,30153438,KARE PLUS BARNET,225.43,10/02/2017
Delivery Units,Adults and Communities,Other Agencies - Third Party P,30153439,KARE PLUS BARNET,229.06,10/02/2017
Delivery Units,Adults and Communities,Other Agencies - Third Party P,30153440,KARE PLUS BARNET,236.43,10/02/2017
Delivery Units,Adults and Communities,Other Agencies - Third Party P,30153441,KARE PLUS BARNET,213.51,10/02/2017
Delivery Units,Adults and Communities,Other Agencies - Third Party P,30153442,KARE PLUS BARNET,221.50,10/02/2017
Delivery Units,Adults and Communities,Other Agencies - Third Party P,30153443,KARE PLUS BARNET,225.43,10/02/2017
Delivery Units,Adults and Communities,Other Agencies - Third Party P,30153444,KARE PLUS BARNET,324.53,10/02/2017
Delivery Units,Adults and Communities,Other Agencies - Third Party P,30153445,KARE PLUS BARNET,224.56,10/02/2017
Delivery Units,Adults and Communities,Other Agencies - Third Party P,30153446,KARE PLUS BARNET,329.54,10/02/2017
Delivery Units,Adults and Communities,Other Agencies - Third Party P,30153447,KARE PLUS BARNET,115.75,10/02/2017
Delivery Units,Adults and Communities,Other Agencies - Third Party P,30153448,KARE PLUS BARNET,245.01,10/02/2017
Delivery Units,Adults and Communities,Other Agencies - Third Party P,30153449,KARE PLUS BARNET,223.49,10/02/2017
Delivery Units,Adults and Communities,Other Agencies - Third Party P,30153450,KARE PLUS BARNET,137.22,10/02/2017
Delivery Units,Adults and Communities,Other Agencies - Third Party P,30153451,KARE PLUS BARNET,228.34,10/02/2017
Delivery Units,Adults and Communities,Other Agencies - Third Party P,30153452,KARE PLUS BARNET,189.93,10/02/2017
Delivery Units,Adults and Communities,Other Agencies - Third Party P,30153453,KARE PLUS BARNET,235.22,10/02/2017
Delivery Units,Adults and Communities,Other Agencies - Third Party P,30153454,KARE PLUS BARNET,235.22,10/02/2017
Delivery Units,Adults and Communities,Other Agencies - Third Party P,30153455,KARE PLUS BARNET,223.49,10/02/2017
Delivery Units,Adults and Communities,Other Agencies - Third Party P,30153456,KARE PLUS BARNET,235.22,10/02/2017
Delivery Units,Adults and Communities,Other Agencies - Third Party P,30153458,KARE PLUS BARNET,191.16,10/02/2017
Delivery Units,Adults and Communities,Other Agencies - Third Party P,30153459,KARE PLUS BARNET,215.64,10/02/2017
Delivery Units,Adults and Communities,Other Agencies - Third Party P,30153460,KARE PLUS BARNET,34.27,10/02/2017
Delivery Units,Adults and Communities,Other Agencies - Third Party P,30153461,KARE PLUS BARNET,19.58,10/02/2017
Delivery Units,Adults and Communities,Other Agencies - Third Party P,30153462,KARE PLUS BARNET,256.68,10/02/2017
Delivery Units,Adults and Communities,Other Agencies - Third Party P,30153463,KARE PLUS BARNET,266.47,10/02/2017
Delivery Units,Adults and Communities,Other Agencies - Third Party P,30153464,KARE PLUS BARNET,88.36,10/02/2017
Delivery Units,Adults and Communities,Other Agencies - Third Party P,30153465,KARE PLUS BARNET,73.63,10/02/2017
Delivery Units,Adults and Communities,Other Agencies - Third Party P,30153467,KARE PLUS BARNET,88.36,10/02/2017
Delivery Units,Adults and Communities,Other Agencies - Third Party P,30153468,KARE PLUS BARNET,88.36,10/02/2017
Delivery Units,Adults and Communities,Other Agencies - Third Party P,30154368,KARE PLUS BARNET,177.67,20/02/2017
Delivery Units,Adults and Communities,Other Agencies - Third Party P,30154369,KARE PLUS BARNET,257.03,20/02/2017
Delivery Units,Adults and Communities,Other Agencies - Third Party P,30154370,KARE PLUS BARNET,235.22,20/02/2017
Delivery Units,Adults and Communities,Other Agencies - Third Party P,30154371,KARE PLUS BARNET,177.67,20/02/2017
Delivery Units,Adults and Communities,Other Agencies - Third Party P,30154372,KARE PLUS BARNET,225.43,20/02/2017
Delivery Units,Adults and Communities,Other Agencies - Third Party P,30154373,KARE PLUS BARNET,235.22,20/02/2017
Delivery Units,Adults and Communities,Other Agencies - Third Party P,30154374,KARE PLUS BARNET,177.67,20/02/2017
Delivery Units,Adults and Communities,Other Agencies - Third Party P,30154375,KARE PLUS BARNET,215.64,20/02/2017
Delivery Units,Adults and Communities,Other Agencies - Third Party P,30154376,KARE PLUS BARNET,235.22,20/02/2017
Delivery Units,Adults and Communities,Other Agencies - Third Party P,30154377,KARE PLUS BARNET,235.22,20/02/2017
Delivery Units,Adults and Communities,Other Agencies - Third Party P,30154378,KARE PLUS BARNET,235.22,20/02/2017
Delivery Units,Adults and Communities,Other Agencies - Third Party P,30154379,KARE PLUS BARNET,193.61,20/02/2017
Delivery Units,Adults and Communities,Other Agencies - Third Party P,30154380,KARE PLUS BARNET,41.61,20/02/2017
Delivery Units,Adults and Communities,Other Agencies - Third Party P,30154381,KARE PLUS BARNET,235.22,20/02/2017
Delivery Units,Adults and Communities,Other Agencies - Third Party P,30154382,KARE PLUS BARNET,235.22,20/02/2017
Delivery Units,Adults and Communities,Other Agencies - Third Party P,30154383,KARE PLUS BARNET,235.22,20/02/2017
Delivery Units,Adults and Communities,Other Agencies - Third Party P,30155131,KARE PLUS BARNET,100.03,22/02/2017
Delivery Units,Adults and Communities,Other Agencies - Third Party P,30155142,KARE PLUS BARNET,324.53,22/02/2017
Delivery Units,Adults and Communities,Other Agencies - Third Party P,30155147,KARE PLUS BARNET,324.53,22/02/2017
Delivery Units,Adults and Communities,Other Agencies - Third Party P,30155149,KARE PLUS BARNET,324.53,22/02/2017
Delivery Units,Adults and Communities,Other Agencies - Third Party P,30155152,KARE PLUS BARNET,324.53,22/02/2017
Delivery Units,Adults and Communities,Other Agencies - Third Party P,30155153,KARE PLUS BARNET,360.85,22/02/2017
Delivery Units,Adults and Communities,Other Agencies - Third Party P,30155157,KARE PLUS BARNET,323.58,22/02/2017
Delivery Units,Adults and Communities,Other Agencies - Third Party P,30155159,KARE PLUS BARNET,319.40,22/02/2017
Delivery Units,Adults and Communities,Other Agencies - Third Party P,30155161,KARE PLUS BARNET,323.58,22/02/2017
Delivery Units,Adults and Communities,Other Agencies - Third Party P,30155162,KARE PLUS BARNET,324.53,22/02/2017
Delivery Units,Adults and Communities,Other Agencies - Third Party P,30155165,KARE PLUS BARNET,311.34,22/02/2017
Delivery Units,Adults and Communities,Other Agencies - Third Party P,30155167,KARE PLUS BARNET,324.53,22/02/2017
Delivery Units,Adults and Communities,Other Agencies - Third Party P,30155169,KARE PLUS BARNET,323.58,22/02/2017
Delivery Units,Adults and Communities,Other Agencies - Third Party P,30155175,KARE PLUS BARNET,323.55,22/02/2017
Delivery Units,Adults and Communities,Other Agencies - Third Party P,30155176,KARE PLUS BARNET,182.29,22/02/2017
Delivery Units,Adults and Communities,Other Agencies - Third Party P,30155179,KARE PLUS BARNET,43.14,22/02/2017
Delivery Units,Adults and Communities,Other Agencies - Third Party P,30155194,KARE PLUS BARNET,311.80,22/02/2017
Delivery Units,Adults and Communities,Other Agencies - Third Party P,30155208,KARE PLUS BARNET,11.78,22/02/2017
Delivery Units,Adults and Communities,Other Agencies - Third Party P,30155241,KARE PLUS BARNET,45.13,22/02/2017
Delivery Units,Adults and Communities,Other Agencies - Third Party P,30155254,KARE PLUS BARNET,23.56,22/02/2017
Delivery Units,Adults and Communities,Other Agencies - Third Party P,30155276,KARE PLUS BARNET,23.56,22/02/2017
Delivery Units,Adults and Communities,Other Agencies - Third Party P,30155277,KARE PLUS BARNET,161.79,22/02/2017
Delivery Units,Adults and Communities,Other Agencies - Third Party P,30155279,KARE PLUS BARNET,61.28,22/02/2017
Delivery Units,Adults and Communities,Other Agencies - Third Party P,30155280,KARE PLUS BARNET,161.79,22/02/2017
Delivery Units,Adults and Communities,Other Agencies - Third Party P,30155281,KARE PLUS BARNET,63.18,22/02/2017
Delivery Units,Adults and Communities,Other Agencies - Third Party P,30155296,KARE PLUS BARNET,11.78,22/02/2017
Delivery Units,Adults and Communities,Other Agencies - Third Party P,30155297,KARE PLUS BARNET,161.79,22/02/2017
Delivery Units,Adults and Communities,Other Agencies - Third Party P,30155299,KARE PLUS BARNET,97.08,22/02/2017
Delivery Units,Adults and Communities,Other Agencies - Third Party P,30155302,KARE PLUS BARNET,161.79,22/02/2017
Delivery Units,Adults and Communities,Other Agencies - Third Party P,30155304,KARE PLUS BARNET,208.25,22/02/2017
Delivery Units,Adults and Communities,Other Agencies - Third Party P,30155314,KARE PLUS BARNET,161.79,22/02/2017
Delivery Units,Adults and Communities,Other Agencies - Third Party P,30155317,KARE PLUS BARNET,112.79,22/02/2017
Delivery Units,Adults and Communities,Other Agencies - Third Party P,30155319,KARE PLUS BARNET,134.82,22/02/2017
Delivery Units,Adults and Communities,Other Agencies - Third Party P,30155321,KARE PLUS BARNET,235.22,22/02/2017
Delivery Units,Adults and Communities,Other Agencies - Third Party P,30155324,KARE PLUS BARNET,21.57,22/02/2017
Delivery Units,Adults and Communities,Other Agencies - Third Party P,30155325,KARE PLUS BARNET,152.49,22/02/2017
Delivery Units,Adults and Communities,Other Agencies - Third Party P,30155326,KARE PLUS BARNET,152.49,22/02/2017
Delivery Units,Adults and Communities,Other Agencies - Third Party P,30155327,KARE PLUS BARNET,213.68,22/02/2017
Delivery Units,Adults and Communities,Other Agencies - Third Party P,30155328,KARE PLUS BARNET,124.03,22/02/2017
Delivery Units,Adults and Communities,Other Agencies - Third Party P,30155329,KARE PLUS BARNET,174.05,22/02/2017
Delivery Units,Adults and Communities,Other Agencies - Third Party P,30155330,KARE PLUS BARNET,200.43,22/02/2017
Delivery Units,Adults and Communities,Other Agencies - Third Party P,30155332,KARE PLUS BARNET,53.92,22/02/2017
Delivery Units,Adults and Communities,Other Agencies - Third Party P,30155333,KARE PLUS BARNET,250.89,22/02/2017
Delivery Units,Adults and Communities,Other Agencies - Third Party P,30155347,KARE PLUS BARNET,-28.82,22/02/2017
Delivery Units,Adults and Communities,Other Agencies - Third Party P,30155348,KARE PLUS BARNET,-28.82,22/02/2017
Delivery Units,Adults and Communities,Other Agencies - Third Party P,30155349,KARE PLUS BARNET,-28.82,22/02/2017
Delivery Units,Adults and Communities,Other Agencies - Third Party P,30155350,KARE PLUS BARNET,-64.69,22/02/2017
Delivery Units,Adults and Communities,Other Agencies - Third Party P,30155351,KARE PLUS BARNET,-9.79,22/02/2017
Delivery Units,Adults and Communities,Other Agencies - Third Party P,30155352,KARE PLUS BARNET,-28.82,22/02/2017
Delivery Units,Adults and Communities,Other Agencies - Third Party P,30155353,KARE PLUS BARNET,-28.82,22/02/2017
Delivery Units,Adults and Communities,Other Agencies - Third Party P,30155354,KARE PLUS BARNET,-28.82,22/02/2017
Delivery Units,Adults and Communities,Other Agencies - Third Party P,30155355,KARE PLUS BARNET,-28.82,22/02/2017
Delivery Units,Adults and Communities,Other Agencies - Third Party P,30155356,KARE PLUS BARNET,-3.34,22/02/2017
Delivery Units,Adults and Communities,Other Agencies - Third Party P,30155357,KARE PLUS BARNET,-16.75,22/02/2017
Delivery Units,Adults and Communities,Other Agencies - Third Party P,30155358,KARE PLUS BARNET,-42.62,22/02/2017
Delivery Units,Adults and Communities,Other Agencies - Third Party P,30155359,KARE PLUS BARNET,-10.01,22/02/2017
Delivery Units,Adults and Communities,Other Agencies - Third Party P,30155360,KARE PLUS BARNET,-28.82,22/02/2017
Delivery Units,Adults and Communities,Other Agencies - Third Party P,30155361,KARE PLUS BARNET,-28.82,22/02/2017
Delivery Units,Adults and Communities,Other Agencies - Third Party P,30155362,KARE PLUS BARNET,-15.58,22/02/2017
Delivery Units,Adults and Communities,Other Agencies - Third Party P,30155363,KARE PLUS BARNET,-52.53,22/02/2017
Delivery Units,Adults and Communities,Other Agencies - Third Party P,30155364,KARE PLUS BARNET,-11.85,22/02/2017
Delivery Units,Adults and Communities,Other Agencies - Third Party P,30155365,KARE PLUS BARNET,-28.82,22/02/2017
Delivery Units,Adults and Communities,Other Agencies - Third Party P,30155366,KARE PLUS BARNET,-28.82,22/02/2017
Delivery Units,Adults and Communities,Other Agencies - Third Party P,30155367,KARE PLUS BARNET,-3.63,22/02/2017
Delivery Units,Adults and Communities,Other Agencies - Third Party P,30155368,KARE PLUS BARNET,-11.45,22/02/2017
Delivery Units,Adults and Communities,Other Agencies - Third Party P,30155369,KARE PLUS BARNET,-11.00,22/02/2017
Delivery Units,Adults and Communities,Other Agencies - Third Party P,30155370,KARE PLUS BARNET,-28.82,22/02/2017
Delivery Units,Adults and Communities,Other Agencies - Third Party P,30155371,KARE PLUS BARNET,-28.82,22/02/2017
Delivery Units,Adults and Communities,Other Agencies - Third Party P,30155372,KARE PLUS BARNET,-28.82,22/02/2017
Delivery Units,Adults and Communities,Other Agencies - Third Party P,30155373,KARE PLUS BARNET,-9.79,22/02/2017
Delivery Units,Adults and Communities,Other Agencies - Third Party P,30155374,KARE PLUS BARNET,-33.83,22/02/2017
Delivery Units,Adults and Communities,Other Agencies - Third Party P,30155375,KARE PLUS BARNET,-9.79,22/02/2017
Delivery Units,Adults and Communities,Other Agencies - Third Party P,30155376,KARE PLUS BARNET,-2.91,22/02/2017
Delivery Units,Adults and Communities,Other Agencies - Third Party P,30155377,KARE PLUS BARNET,-15.58,22/02/2017
Delivery Units,Adults and Communities,Other Agencies - Third Party P,30155378,KARE PLUS BARNET,-15.58,22/02/2017
Delivery Units,Adults and Communities,Other Agencies - Third Party P,30156182,KEMBLE HOUSE,"7,400.12",27/02/2017
Delivery Units,Adults and Communities,Other Agencies - Third Party P,30156183,KEMBLE HOUSE,"8,743.56",27/02/2017
Delivery Units,Adults and Communities,Other Agencies - Third Party P,30156186,KEMBLE HOUSE,"1,644.72",27/02/2017
Delivery Units,Adults and Communities,Other Agencies - Third Party P,30156187,KEMBLE HOUSE,"3,015.88",27/02/2017
Delivery Units,Adults and Communities,Other Agencies - Third Party P,30155020,KILCULLEN HOMES (UK) LLP,"1,569.48",21/02/2017
Delivery Units,Adults and Communities,Other Agencies - Third Party P,30153480,KISHARON DAY SCHOOL,"1,369.23",10/02/2017
Delivery Units,Adults and Communities,Other Agencies - Third Party P,30153481,KISHARON DAY SCHOOL,"1,241.16",10/02/2017
Delivery Units,Adults and Communities,Other Agencies - Third Party P,30153995,KISHARON DAY SCHOOL,"1,464.03",16/02/2017
Delivery Units,Adults and Communities,Other Agencies - Third Party P,30153996,KISHARON DAY SCHOOL,"4,260.72",16/02/2017
Delivery Units,Adults and Communities,Other Agencies - Third Party P,30153997,KISHARON DAY SCHOOL,"2,144.10",16/02/2017
Delivery Units,Adults and Communities,Other Agencies - Third Party P,30153998,KISHARON DAY SCHOOL,"2,284.24",16/02/2017
Delivery Units,Adults and Communities,Other Agencies - Third Party P,30153999,KISHARON DAY SCHOOL,"1,373.49",16/02/2017
Delivery Units,Adults and Communities,Other Agencies - Third Party P,30154000,KISHARON DAY SCHOOL,397.11,16/02/2017
Delivery Units,Adults and Communities,Other Agencies - Third Party P,30154001,KISHARON DAY SCHOOL,"1,679.87",16/02/2017
Delivery Units,Adults and Communities,Other Agencies - Third Party P,30154002,KISHARON DAY SCHOOL,"1,340.18",16/02/2017
Delivery Units,Adults and Communities,Other Agencies - Third Party P,30154003,KISHARON DAY SCHOOL,"1,373.68",16/02/2017
Delivery Units,Adults and Communities,Other Agencies - Third Party P,30154004,KISHARON DAY SCHOOL,"1,595.00",16/02/2017
Delivery Units,Adults and Communities,Other Agencies - Third Party P,30154006,KISHARON DAY SCHOOL,"1,275.96",16/02/2017
Delivery Units,Adults and Communities,Other Agencies - Third Party P,30154010,KISHARON DAY SCHOOL,"1,914.00",16/02/2017
Delivery Units,Adults and Communities,Other Agencies - Third Party P,30154014,KISHARON DAY SCHOOL,"1,977.44",16/02/2017
Delivery Units,Adults and Communities,Other Agencies - Third Party P,30154015,KISHARON DAY SCHOOL,"1,369.23",16/02/2017
Delivery Units,Adults and Communities,Other Agencies - Third Party P,30154016,KISHARON DAY SCHOOL,"1,241.16",16/02/2017
Delivery Units,Adults and Communities,Other Agencies - Third Party P,30156262,KISHARON DAY SCHOOL,733.72,27/02/2017
Delivery Units,Adults and Communities,Other Agencies - Third Party P,30152913,LANGDON COMMUNITY LTD,"2,128.00",06/02/2017
Delivery Units,Adults and Communities,Other Agencies - Third Party P,30153392,LANGDON COMMUNITY LTD,"1,064.00",10/02/2017
Delivery Units,Adults and Communities,Other Agencies - Third Party P,30153393,LANGDON COMMUNITY LTD,243.20,10/02/2017
Delivery Units,Adults and Communities,Other Agencies - Third Party P,30153395,LANGDON COMMUNITY LTD,135.00,10/02/2017
Delivery Units,Adults and Communities,Other Agencies - Third Party P,30153397,LANGDON COMMUNITY LTD,135.00,10/02/2017
Delivery Units,Adults and Communities,Other Agencies - Third Party P,30153398,LANGDON COMMUNITY LTD,135.00,10/02/2017
Delivery Units,Adults and Communities,Other Agencies - Third Party P,30153399,LANGDON COMMUNITY LTD,"1,276.80",10/02/2017
Delivery Units,Adults and Communities,Other Agencies - Third Party P,30153400,LANGDON COMMUNITY LTD,790.40,10/02/2017
Delivery Units,Adults and Communities,Other Agencies - Third Party P,30153401,LANGDON COMMUNITY LTD,972.80,10/02/2017
Delivery Units,Adults and Communities,Other Agencies - Third Party P,30153402,LANGDON COMMUNITY LTD,608.00,10/02/2017
Delivery Units,Adults and Communities,Other Agencies - Third Party P,30153403,LANGDON COMMUNITY LTD,135.00,10/02/2017
Delivery Units,Adults and Communities,Other Agencies - Third Party P,30153928,LANGDON COMMUNITY LTD,"1,155.20",16/02/2017
Delivery Units,Adults and Communities,Other Agencies - Third Party P,30154338,LANGDON COMMUNITY LTD,956.36,20/02/2017
Delivery Units,Adults and Communities,Other Agencies - Third Party P,30154339,LANGDON COMMUNITY LTD,851.20,20/02/2017
Delivery Units,Adults and Communities,Other Agencies - Third Party P,30154340,LANGDON COMMUNITY LTD,425.60,20/02/2017
Delivery Units,Adults and Communities,Other Agencies - Third Party P,30154341,LANGDON COMMUNITY LTD,"1,064.00",20/02/2017
Delivery Units,Adults and Communities,Other Agencies - Third Party P,30154343,LANGDON COMMUNITY LTD,"1,315.12",20/02/2017
Delivery Units,Adults and Communities,Other Agencies - Third Party P,30154344,LANGDON COMMUNITY LTD,"1,763.20",20/02/2017
Delivery Units,Adults and Communities,Other Agencies - Third Party P,30154345,LANGDON COMMUNITY LTD,243.20,20/02/2017
Delivery Units,Adults and Communities,Other Agencies - Third Party P,30154346,LANGDON COMMUNITY LTD,"2,403.92",20/02/2017
Delivery Units,Adults and Communities,Other Agencies - Third Party P,30154348,LANGDON COMMUNITY LTD,"2,097.60",20/02/2017
Delivery Units,Adults and Communities,Other Agencies - Third Party P,30154349,LANGDON COMMUNITY LTD,"1,641.60",20/02/2017
Delivery Units,Adults and Communities,Other Agencies - Third Party P,30154350,LANGDON COMMUNITY LTD,"4,594.04",20/02/2017
Delivery Units,Adults and Communities,Other Agencies - Third Party P,30154351,LANGDON COMMUNITY LTD,"3,411.48",20/02/2017
Delivery Units,Adults and Communities,Other Agencies - Third Party P,30154352,LANGDON COMMUNITY LTD,"1,276.80",20/02/2017
Delivery Units,Adults and Communities,Other Agencies - Third Party P,30154353,LANGDON COMMUNITY LTD,"1,094.40",20/02/2017
Delivery Units,Adults and Communities,Other Agencies - Third Party P,30154354,LANGDON COMMUNITY LTD,972.80,20/02/2017
Delivery Units,Adults and Communities,Other Agencies - Third Party P,30154355,LANGDON COMMUNITY LTD,608.00,20/02/2017
Delivery Units,Adults and Communities,Other Agencies - Third Party P,30155065,LANGDON COMMUNITY LTD,956.36,22/02/2017
Delivery Units,Adults and Communities,Other Agencies - Third Party P,30156438,LANGDON COMMUNITY LTD,"1,155.20",28/02/2017
Delivery Units,Adults and Communities,Other Agencies - Third Party P,30156439,LANGDON COMMUNITY LTD,"2,128.00",28/02/2017
Delivery Units,Adults and Communities,Other Agencies - Third Party P,30153807,L'ARCHE,"1,472.97",15/02/2017
Delivery Units,Adults and Communities,Other Agencies - Third Party P,30153808,L'ARCHE,"1,472.97",15/02/2017
Delivery Units,Adults and Communities,Other Agencies - Third Party P,30153809,L'ARCHE,"1,472.97",15/02/2017
Delivery Units,Adults and Communities,Other Agencies - Third Party P,30153810,L'ARCHE,"1,472.97",15/02/2017
Delivery Units,Adults and Communities,Other Agencies - Third Party P,30153811,L'ARCHE,"1,472.97",15/02/2017
Delivery Units,Adults and Communities,Other Agencies - Third Party P,30153812,L'ARCHE,"1,472.97",22/02/2017
Delivery Units,Adults and Communities,Other Agencies - Third Party P,30152987,LCS PARTNERSHIPS LTD,896.00,06/02/2017
Delivery Units,Adults and Communities,Other Agencies - Third Party P,30154410,LCS PARTNERSHIPS LTD,896.00,23/02/2017
Delivery Units,Adults and Communities,Other Agencies - Third Party P,30153845,LEEMING BAR CARE HOME,"2,107.69",15/02/2017
Delivery Units,Adults and Communities,Other Agencies - Third Party P,30155012,LEO BAECK HOUSING ASSOC. LTD,"1,295.25",21/02/2017
Delivery Units,Adults and Communities,Other Agencies - Third Party P,30155502,LEO BAECK HOUSING ASSOC. LTD,"2,211.80",24/02/2017
Delivery Units,Adults and Communities,Other Agencies - Third Party P,30155503,LEO BAECK HOUSING ASSOC. LTD,"2,031.76",24/02/2017
Delivery Units,Adults and Communities,Other Agencies - Third Party P,30155511,LEO BAECK HOUSING ASSOC. LTD,"2,031.76",24/02/2017
Delivery Units,Adults and Communities,Other Agencies - Third Party P,30155512,LEO BAECK HOUSING ASSOC. LTD,"2,211.80",24/02/2017
Delivery Units,Adults and Communities,Other Agencies - Third Party P,30155522,LEO BAECK HOUSING ASSOC. LTD,"2,102.00",24/02/2017
Delivery Units,Adults and Communities,Other Agencies - Third Party P,30155527,LEO BAECK HOUSING ASSOC. LTD,"2,133.36",24/02/2017
Delivery Units,Adults and Communities,Other Agencies - Third Party P,30155542,LEO BAECK HOUSING ASSOC. LTD,"2,031.76",24/02/2017
Delivery Units,Adults and Communities,Other Agencies - Third Party P,30155543,LEO BAECK HOUSING ASSOC. LTD,"2,133.36",24/02/2017
Delivery Units,Adults and Communities,Other Agencies - Third Party P,30154293,LEWIS.W.HAMMERSON MEMORIAL HOME,269.10,20/02/2017
Delivery Units,Adults and Communities,Other Agencies - Third Party P,30155539,LEWIS.W.HAMMERSON MEMORIAL HOME,"2,317.83",23/02/2017
Delivery Units,Adults and Communities,Other Agencies - Third Party P,30153248,LIFESTYLE CARE 2011 PLC,"2,138.00",10/02/2017
Delivery Units,Adults and Communities,Other Agencies - Third Party P,30153244,LIFESTYLE CARE PLC,"2,094.52",10/02/2017
Delivery Units,Adults and Communities,Other Agencies - Third Party P,30153245,LIFESTYLE CARE PLC,"2,398.56",10/02/2017
Delivery Units,Adults and Communities,Other Agencies - Third Party P,30153246,LIFESTYLE CARE PLC,"2,398.56",10/02/2017
Delivery Units,Adults and Communities,Other Agencies - Third Party P,30153247,LIFESTYLE CARE PLC,856.63,10/02/2017
Delivery Units,Adults and Communities,Other Agencies - Third Party P,30153418,LIFESTYLE CARE PLC,"2,468.54",10/02/2017
Delivery Units,Adults and Communities,Other Agencies - Third Party P,30153419,LIFESTYLE CARE PLC,"2,398.56",10/02/2017
Delivery Units,Adults and Communities,Other Agencies - Third Party P,30153538,LIFESTYLE CARE PLC,"-1,456.27",10/02/2017
Delivery Units,Adults and Communities,Other Agencies - Third Party P,30153510,LIFEWAYS,"2,251.64",10/02/2017
Delivery Units,Adults and Communities,Other Agencies - Third Party P,30154244,LIFEWAYS,"3,145.24",20/02/2017
Delivery Units,Adults and Communities,Other Agencies - Third Party P,30154245,LIFEWAYS,"6,930.00",20/02/2017
Delivery Units,Adults and Communities,Other Agencies - Third Party P,30154247,LIFEWAYS,"5,037.40",20/02/2017
Delivery Units,Adults and Communities,Other Agencies - Third Party P,30154248,LIFEWAYS,"5,943.00",20/02/2017
Delivery Units,Adults and Communities,Other Agencies - Third Party P,30154254,LIFEWAYS,"3,656.00",20/02/2017
Delivery Units,Adults and Communities,Other Agencies - Third Party P,30154255,LIFEWAYS,"5,766.44",20/02/2017
Delivery Units,Adults and Communities,Other Agencies - Third Party P,30154256,LIFEWAYS,"2,377.20",20/02/2017
Delivery Units,Adults and Communities,Other Agencies - Third Party P,30154257,LIFEWAYS,"4,828.24",20/02/2017
Delivery Units,Adults and Communities,Other Agencies - Third Party P,30154261,LIFEWAYS,"5,275.20",20/02/2017
Delivery Units,Adults and Communities,Other Agencies - Third Party P,30154262,LIFEWAYS,"2,251.64",20/02/2017
Delivery Units,Adults and Communities,Other Agencies - Third Party P,30156724,LIFEWAYS,"3,145.24",28/02/2017
Delivery Units,Adults and Communities,Other Agencies - Third Party P,30156726,LIFEWAYS,"5,037.40",28/02/2017
Delivery Units,Adults and Communities,Other Agencies - Third Party P,30156727,LIFEWAYS,"5,943.00",28/02/2017
Delivery Units,Adults and Communities,Other Agencies - Third Party P,30156733,LIFEWAYS,"3,656.00",28/02/2017
Delivery Units,Adults and Communities,Other Agencies - Third Party P,30156734,LIFEWAYS,"5,766.44",28/02/2017
Delivery Units,Adults and Communities,Other Agencies - Third Party P,30156735,LIFEWAYS,"2,377.20",28/02/2017
Delivery Units,Adults and Communities,Other Agencies - Third Party P,30156736,LIFEWAYS,"4,828.24",28/02/2017
Delivery Units,Adults and Communities,Other Agencies - Third Party P,30156740,LIFEWAYS,"5,275.20",28/02/2017
Delivery Units,Adults and Communities,Other Agencies - Third Party P,30156741,LIFEWAYS,"2,251.64",28/02/2017
Delivery Units,Adults and Communities,Other Agencies - Third Party P,30153091,LIVABILITY,"6,279.24",08/02/2017
Delivery Units,Adults and Communities,Other Agencies - Third Party P,30153092,LIVABILITY,"6,279.24",08/02/2017
Delivery Units,Adults and Communities,Other Agencies - Third Party P,30153093,LIVABILITY,"6,279.24",08/02/2017
Delivery Units,Adults and Communities,Other Agencies - Third Party P,30153679,LIVABILITY,"2,400.00",14/02/2017
Delivery Units,Adults and Communities,Other Agencies - Third Party P,30153681,LIVABILITY,"3,424.00",14/02/2017
Delivery Units,Adults and Communities,Other Agencies - Third Party P,30156320,M D HOMES,"3,200.00",27/02/2017
Delivery Units,Adults and Communities,Other Agencies - Third Party P,30153686,MACINTYRE CARE,758.80,14/02/2017
Delivery Units,Adults and Communities,Other Agencies - Third Party P,30153532,MADELAYNE COURT,"2,216.41",10/02/2017
Delivery Units,Adults and Communities,Other Agencies - Third Party P,30153794,MAISON MOTI LTD,"3,764.29",15/02/2017
Delivery Units,Adults and Communities,Other Agencies - Third Party P,30153795,MAISON MOTI LTD,"3,764.29",15/02/2017
Delivery Units,Adults and Communities,Other Agencies - Third Party P,30153799,MAISON MOTI LTD,"3,609.29",15/02/2017
Delivery Units,Adults and Communities,Other Agencies - Third Party P,30153800,MAISON MOTI LTD,"3,764.29",15/02/2017
Delivery Units,Adults and Communities,Other Agencies - Third Party P,30153925,MAISON MOTI LTD,"2,500.00",16/02/2017
Delivery Units,Adults and Communities,Other Agencies - Third Party P,30153926,MAISON MOTI LTD,"2,980.00",16/02/2017
Delivery Units,Adults and Communities,Other Agencies - Third Party P,30153927,MAISON MOTI LTD,"2,380.00",16/02/2017
Delivery Units,Adults and Communities,Other Agencies - Third Party P,30153930,MAISON MOTI LTD,"2,200.00",16/02/2017
Delivery Units,Adults and Communities,Other Agencies - Third Party P,30153931,MAISON MOTI LTD,"2,200.00",16/02/2017
Delivery Units,Adults and Communities,Other Agencies - Third Party P,30153986,MAISON MOTI LTD,"2,500.00",16/02/2017
Delivery Units,Adults and Communities,Other Agencies - Third Party P,30153987,MAISON MOTI LTD,"2,500.00",16/02/2017
Delivery Units,Adults and Communities,Other Agencies - Third Party P,30153988,MAISON MOTI LTD,"2,500.00",16/02/2017
Delivery Units,Adults and Communities,Other Agencies - Third Party P,30153989,MAISON MOTI LTD,"2,500.00",16/02/2017
Delivery Units,Adults and Communities,Other Agencies - Third Party P,30153990,MAISON MOTI LTD,"2,500.00",16/02/2017
Delivery Units,Adults and Communities,Other Agencies - Third Party P,30153991,MAISON MOTI LTD,"1,140.00",16/02/2017
Delivery Units,Adults and Communities,Other Agencies - Third Party P,30155537,MARLBOROUGH HOUSE,"3,569.04",23/02/2017
Delivery Units,Adults and Communities,Other Agencies - Third Party P,30154412,MARRILYNE LODGE,"2,554.16",20/02/2017
Delivery Units,Adults and Communities,Other Agencies - Third Party P,30151955,MEERA NURSING HOME LIMITED,"-1,314.88",20/02/2017
Delivery Units,Adults and Communities,Other Agencies - Third Party P,30153868,MEERA NURSING HOME LIMITED,"1,284.94",20/02/2017
Delivery Units,Adults and Communities,Other Agencies - Third Party P,30154269,MEERA NURSING HOME LIMITED,"2,165.68",20/02/2017
Delivery Units,Adults and Communities,Other Agencies - Third Party P,30154270,MEERA NURSING HOME LIMITED,"-1,546.91",20/02/2017
Delivery Units,Adults and Communities,Other Agencies - Third Party P,30156280,MEERA NURSING HOME LIMITED,"2,165.68",27/02/2017
Delivery Units,Adults and Communities,Other Agencies - Third Party P,30156291,MEERA NURSING HOME LIMITED,"2,165.68",27/02/2017
Delivery Units,Adults and Communities,Other Agencies - Third Party P,30156312,MEERA NURSING HOME LIMITED,"2,165.68",27/02/2017
Delivery Units,Adults and Communities,Other Agencies - Third Party P,30156326,MEERA NURSING HOME LIMITED,"2,165.68",27/02/2017
Delivery Units,Adults and Communities,Other Agencies - Third Party P,30156327,MEERA NURSING HOME LIMITED,"2,165.68",27/02/2017
Delivery Units,Adults and Communities,Other Agencies - Third Party P,30156366,MEERA NURSING HOME LIMITED,"2,165.68",27/02/2017
Delivery Units,Adults and Communities,Other Agencies - Third Party P,30153338,METHODIST HOMES FOR THE AGED,"2,631.76",10/02/2017
Delivery Units,Adults and Communities,Other Agencies - Third Party P,30153344,METHODIST HOMES FOR THE AGED,"2,001.92",10/02/2017
Delivery Units,Adults and Communities,Other Agencies - Third Party P,30153347,METHODIST HOMES FOR THE AGED,"2,500.00",10/02/2017
Delivery Units,Adults and Communities,Other Agencies - Third Party P,30154992,METHODIST HOMES FOR THE AGED,"2,631.76",21/02/2017
Delivery Units,Adults and Communities,Other Agencies - Third Party P,30155011,METHODIST HOMES FOR THE AGED,"6,635.40",21/02/2017
Delivery Units,Adults and Communities,Other Agencies - Third Party P,30155518,METHODIST HOMES FOR THE AGED,"2,001.92",28/02/2017
Delivery Units,Adults and Communities,Other Agencies - Third Party P,30155521,METHODIST HOMES FOR THE AGED,"2,500.00",28/02/2017
Delivery Units,Adults and Communities,Other Agencies - Third Party P,30153267,METRO RADIO CARS,118.80,10/02/2017
Delivery Units,Adults and Communities,Other Agencies - Third Party P,30153268,METRO RADIO CARS,118.80,10/02/2017
Delivery Units,Adults and Communities,Other Agencies - Third Party P,30153269,METRO RADIO CARS,118.80,10/02/2017
Delivery Units,Adults and Communities,Other Agencies - Third Party P,30153271,METRO RADIO CARS,148.50,10/02/2017
Delivery Units,Adults and Communities,Other Agencies - Third Party P,30153272,METRO RADIO CARS,178.20,10/02/2017
Delivery Units,Adults and Communities,Other Agencies - Third Party P,30153273,METRO RADIO CARS,118.80,10/02/2017
Delivery Units,Adults and Communities,Other Agencies - Third Party P,30153274,METRO RADIO CARS,118.80,10/02/2017
Delivery Units,Adults and Communities,Other Agencies - Third Party P,30153275,METRO RADIO CARS,178.20,10/02/2017
Delivery Units,Adults and Communities,Other Agencies - Third Party P,30153276,METRO RADIO CARS,118.80,10/02/2017
